Workbook

Sheet Cover
A1: Cover
B3: Water net zero
B5: Model code: | C5: PR24CA44
B6: Version number: | C6: 1
B7: File name: | C7: =MID(CELL("filename"), FIND("[", CELL("filename"), 1) + 1, FIND("]", CELL("filename"), 1) - FIND("[", CELL("filename"), 1) - 1) -> 
B8: Date: | C8: 2024-12-19
B10: For enquiries please contact: | C10: PR24@ofwat.gov.uk
B27: Sheet | C27: Description
B28: Inputs
B29: PR24_BP | C29: Inputs from PR24 business plan data tables
B30: Consolidated inputs
B31: Data | C31: Key input data from PR24_BP required for model and assessment
B32: Override | C32: Overrides to input sheet with explanation
B33: Final data | C33: Input data after overrides
B34: Analysis
B35: Phase 1 | C35: Written scheme level assessment
B36: Phase 2 | C36: Written scheme level assessment
B37: Unit cost | C37: Written assessment of process emissions
B38: Phase 3 | C38: Written scheme level unit cost assessment
B39: Outputs
B40: Allowances | C40: Calculated allowances

Sheet Conceptual model
A1: =RIGHT(CELL("filename", A1), LEN(CELL("filename", A1)) - SEARCH("]", CELL("filename", A1))) -> 
A3: Conceptual model
A49: End of sheet

Sheet Inputs >>

Sheet BPT input
C2: Scheme ID | D2: Scheme name | E2: Scheme description | F2: Selected or Feasible | G2: Units | H2: DPs | I2: 1 | J2: 2 | K2: 3 | L2: 4 | M2: 5 | N2: 6 | O2: 7 | P2: 8 | Q2: 9 | R2: 10 | S2: 11 | T2: 12 | U2: 13 | V2: 14 | W2: 15 | X2: 16 | Y2: 17 | Z2: 18 | AA2: 19 | AB2: 20 | AD2: 21 | AE2: 22 | AF2: 23 | AG2: 24 | AH2: 25 | AJ2: 26 | AL2: PR24 BP reference
I3: Scheme Capex | J3: Scheme Opex | K3: Scheme Totex | L3: Scheme Capex | M3: Scheme Opex | N3: Scheme Totex | O3: Scheme Capex | P3: Scheme Opex | Q3: Scheme Totex | R3: Scheme Capex | S3: Scheme Opex | T3: Scheme Totex | U3: Scheme Capex | V3: Scheme Opex | W3: Scheme Totex | X3: AMP8 Capex Total | Y3: AMP8 Opex Total | Z3: AMP8 Totex Total | AA3: Water Resources costs (% of AMP 8 Totex) | AB3: Water Network + costs (% of AMP 8 Totex) | AD3: Scheme benefits (cumulative impact on tCO2e) | AE3: Scheme benefits (cumulative impact on tCO2e) | AF3: Scheme benefits (cumulative impact on tCO2e) | AG3: Scheme benefits (cumulative impact on tCO2e) | AH3: Scheme benefits (cumulative impact on tCO2e) | AJ3: Overall scheme impact on total greehouse gas emissions (total impact on tCO2e)
A4: Company | B4: Date of BPT | I4: 2025-26 | L4: 2026-27 | O4: 2027-28 | R4: 2028-29 | U4: 2029-30 | X4: 2025-30 | AD4: 2025-26 | AE4: 2026-27 | AF4: 2027-28 | AG4: 2028-29 | AH4: 2029-30 | AJ4: 2029-30
A5: ANH | B5: 2024-01-25 | C5: CW21.1 | D5: AMP8 Small Scale Solar Delivery WS | E5: WS Mounted Panels | F5: Feasible | G5: £m | H5: 3 | I5: 2.017 | J5: 0 | K5: 2.017 | L5: 2.017 | M5: -0.24 | N5: 1.777 | O5: 2.017 | P5: -0.481 | Q5: 1.536 | R5: 2.017 | S5: -0.721 | T5: 1.296 | U5: 2.017 | V5: -0.962 | W5: 1.055 | X5: 10.085 | Y5: -2.404 | Z5: 7.681 | AA5: 0 | AB5: 100 | AD5: 0 | AE5: -454.48 | AF5: -1363.74 | AG5: -2727.48 | AH5: -4545.8 | AJ5: -3045.8 | AL5: CW19.1
A6: AFW | B6: 2024-02-08 | C6: AFW_EV | D6: Net Zero: Electric Vehicles | E6: To replace all operational liveried diesel vehicles with electric vehicles with an aim to remove 1920 TC02e operational carbon per year (the amount emitted by the current diesel vehicles fleet) by the end of AMP 8. | F6: Selected | G6: £m | H6: 3 | I6: 0.912 | J6: 0.078 | K6: 0.99 | L6: 0.966 | M6: 0.134 | N6: 1.1 | O6: 0.836 | P6: 0.178 | Q6: 1.014 | R6: 0.434 | S6: 0.186 | T6: 0.62 | U6: 0.335 | V6: 0.243 | W6: 0.578 | X6: 3.483 | Y6: 0.819 | Z6: 4.302 | AA6: 10 | AB6: 90 | AD6: -322.6 | AE6: -937 | AF6: -1858.6 | AG6: -3087.4 | AH6: -4700.2 | AJ6: -4135.732 | AL6: CW19.1
A7: HDD | B7: 2024-02-15 | D7: EV & low carbon alternative fuels & charge points | F7: Select from Dropdown | G7: £m | H7: 3 | I7: 0.193 | J7: 0.119 | K7: 0.312 | M7: 0.148 | N7: 0.148 | P7: 0.169 | Q7: 0.169 | S7: 0.243 | T7: 0.243 | V7: 0.275 | W7: 0.275 | X7: 0.193 | Y7: 0.953 | Z7: 1.145 | AA7: 50 | AB7: 50 | AD7: -236.566 | AE7: -288.077 | AF7: -328.294 | AG7: -517.766 | AH7: -563.82 | AJ7: 516.25 | AL7: CW19.1
A8: HDD | B8: 2024-02-15 | D8: Heat decarbonisation | F8: Select from Dropdown | G8: £m | H8: 3 | I8: 0.015 | K8: 0.015 | N8: 0 | Q8: 0 | T8: 0 | W8: 0 | X8: 0.015 | Y8: 0 | Z8: 0.015 | AA8: 50 | AB8: 50 | AE8: -2.093 | AF8: -4.186 | AG8: -6.279 | AH8: -8.373 | AJ8: -8.083 | AL8: CW19.2
A9: SEW | B9: 2024-01-31 | D9: Ozone upgrade at Barcombe | E9: Upgrade of the current air-fed ozone treatment plant at Barcombe to a liquid oxygen fed ozone treatment plant. This will drastically reduce plant emissions, energy usage and reduce operating costs. | F9: Selected | G9: £m | H9: 3 | I9: 0.153 | J9: 0 | K9: 0.153 | L9: 0.399 | M9: 0 | N9: 0.399 | O9: 1.258 | P9: 0 | Q9: 1.258 | R9: 1.258 | S9: 0 | T9: 1.258 | U9: 0 | V9: 0.099 | W9: 0.099 | X9: 3.069 | Y9: 0.099 | Z9: 3.168 | AA9: 0 | AB9: 100 | AD9: 0 | AE9: 0 | AF9: 0 | AG9: 0 | AH9: -573 | AJ9: 464 | AL9: CW19.1
A10: SEW | B10: 2024-01-31 | D10: Ozone upgrade at Arlington | E10: Upgrade of the current air-fed ozone treatment plant at Arlington to a liquid oxygen fed ozone treatment plant. This will drastically reduce plant emissions, energy usage and reduce operating costs. | F10: Selected | G10: £m | H10: 3 | I10: 0.059 | J10: 0 | K10: 0.059 | L10: 0.154 | M10: 0 | N10: 0.154 | O10: 0.486 | P10: 0 | Q10: 0.486 | R10: 0.486 | S10: 0 | T10: 0.486 | U10: 0 | V10: 0.036 | W10: 0.036 | X10: 1.185 | Y10: 0.036 | Z10: 1.22 | AA10: 0 | AB10: 100 | AD10: 0 | AE10: 0 | AF10: 0 | AG10: 0 | AH10: -114 | AJ10: 272 | AL10: CW19.2
A11: SEW | B11: 2024-01-31 | D11: Power resilience (generators) | E11: Upgrading existing backup diesel generators with hybrid generators to reduce carbon equivalent emissions. Hybrid generators involve a combination of diesel and battery technologies. | F11: Selected | G11: £m | H11: 3 | I11: 0.16 | J11: 0 | K11: 0.16 | L11: 0.16 | M11: 0 | N11: 0.16 | O11: 0.107 | P11: 0 | Q11: 0.107 | R11: 0.107 | S11: 0 | T11: 0.107 | U11: 0 | V11: 0 | W11: 0 | X11: 0.534 | Y11: 0 | Z11: 0.534 | AA11: 0 | AB11: 100 | AD11: -169 | AE11: -338 | AF11: -508 | AG11: -677 | AH11: -846 | AJ11: -689 | AL11: CW19.3
A12: SEW | B12: 2024-01-31 | D12: Transport offset (Electrifying fleet) | E12: Procurement of a new fleet of electric vehicles to reduce company carbon equivalent emissions. A total of 227 vehicles will be procured across AMP8. | F12: Selected | G12: £m | H12: 3 | I12: 1.605 | J12: 0 | K12: 1.605 | L12: 1.47 | M12: 0 | N12: 1.47 | O12: 1.914 | P12: 0 | Q12: 1.914 | R12: 1.337 | S12: 0 | T12: 1.337 | U12: 1.881 | V12: 0 | W12: 1.881 | X12: 8.207 | Y12: 0 | Z12: 8.207 | AA12: 0 | AB12: 100 | AD12: -181 | AE12: -423 | AF12: -707 | AG12: -888 | AH12: -1371 | AJ12: 2548 | AL12: CW19.4
A13: SSC | B13: 2024-02-16 | C13: SSC_CW21_1 | D13: Renewable electricity behind the meter assets | E13: Ground mounted Solar PV at four key sites including two water treatment works | F13: Selected | G13: £m | H13: 3 | I13: 0 | J13: 0 | K13: 0 | L13: 0 | M13: 0 | N13: 0 | O13: 1.758 | P13: 0 | Q13: 1.758 | R13: 5.478 | S13: 0 | T13: 5.478 | U13: 0 | V13: 0 | W13: 0 | X13: 7.237 | Y13: 0 | Z13: 7.237 | AA13: 0 | AB13: 1 | AD13: 0 | AE13: 0 | AF13: 0 | AG13: -297.262 | AH13: -1551.262 | AJ13: -993.262 | AL13: CW19.1
A14: SVE | B14: 2024-02-15 | C14: NZ#1w | D14: EV Charging Infrastructure | E14: EV charge points - Included in our Net Zero Challenge Fund Investment Case | F14: Selected | G14: £m | H14: 3 | I14: 0 | J14: 0 | K14: 0 | L14: 0.88 | M14: 0 | N14: 0.88 | O14: 0 | P14: 0 | Q14: 0 | R14: 0 | S14: 0 | T14: 0 | U14: 0 | V14: 0 | W14: 0 | X14: 0.88 | Y14: 0 | Z14: 0.88 | AA14: 50 | AB14: 50 | AD14: 0 | AE14: 0 | AF14: -380.6 | AG14: -1141.8 | AH14: -2283.6 | AJ14: -2262.59 | AL14: CW19.1
A15: SVE | B15: 2024-02-15 | C15: NZ#2w | D15: Heat pumps | E15: Replacement of fossil fuel boilers with heat pumps for space heating - Included in our Net Zero Challenge Fund Investment Case | F15: Selected | G15: £m | H15: 3 | I15: 8.064 | J15: 0 | K15: 8.064 | L15: 0 | M15: 0 | N15: 0 | O15: 0 | P15: -0.073 | Q15: -0.073 | R15: 0 | S15: -0.11 | T15: -0.11 | U15: 0 | V15: -0.11 | W15: -0.11 | X15: 8.064 | Y15: -0.293 | Z15: 7.771 | AA15: 50 | AB15: 50 | AD15: 0 | AE15: 0 | AF15: -465 | AG15: -1395 | AH15: -2790 | AJ15: -2687.57 | AL15: CW19.2
A16: SVE | B16: 2024-02-15 | C16: NZ#3w | D16: HVO diesel replacement | E16: Infrastructure to enable replacement of mineral diesel with HVO - Included in our Net Zero Challenge Fund Investment Case | F16: Selected | G16: £m | H16: 3 | I16: 0.331 | J16: 0 | K16: 0.331 | L16: 0 | M16: 0 | N16: 0 | O16: 0 | P16: 0 | Q16: 0 | R16: 0 | S16: 0 | T16: 0 | U16: 0 | V16: 0 | W16: 0 | X16: 0.331 | Y16: 0 | Z16: 0.331 | AA16: 50 | AB16: 50 | AD16: 0 | AE16: 0 | AF16: -693 | AG16: -2079 | AH16: -4158 | AJ16: -2486 | AL16: CW19.3
A17: SVE | B17: 2024-02-15 | C17: NZ#4w | D17: Hydrogen Production | E17: Production of hydrogen by electrolysis of high strength liquors - Not included in our Investment Cases, we consider this to be base expenditure if economic. | F17: Feasible | G17: £m | H17: 3 | I17: 0.55 | J17: 0 | K17: 0.55 | L17: 0.55 | M17: 0 | N17: 0.55 | O17: 0.55 | P17: -0.26 | Q17: 0.29 | R17: 0.55 | S17: -0.26 | T17: 0.29 | U17: 0.55 | V17: -0.26 | W17: 0.29 | X17: 2.75 | Y17: -0.78 | Z17: 1.97 | AA17: 50 | AB17: 50 | AD17: 0 | AE17: 0 | AF17: -985.6 | AG17: -1971.2 | AH17: -2956.8 | AJ17: -2720.979 | AL17: CW19.4
A18: SVE | B18: 2024-02-15 | C18: NZ#5w | D18: Electrical storage | E18: Behind the meter battery storage - Not included in our Investment Cases, we consider this to be base expenditure if economic. | F18: Feasible | G18: £m | H18: 3 | I18: 1.21 | J18: 0 | K18: 1.21 | L18: 1.21 | M18: 0 | N18: 1.21 | O18: 1.21 | P18: -0.504 | Q18: 0.706 | R18: 1.21 | S18: -0.504 | T18: 0.706 | U18: 1.21 | V18: -0.504 | W18: 0.706 | X18: 6.05 | Y18: -1.512 | Z18: 4.538 | AA18: 50 | AB18: 50 | AD18: - | AE18: - | AF18: -40.15 | AG18: -80.3 | AH18: -120.45 | AJ18: 398.356 | AL18: CW19.5
A19: SVE | B19: 2024-02-15 | C19: NZ#6w | D19: EV fleet only | E19: EV vehicles - Not included in our Investment Cases, we consider vehicle replacement to be part of base expenditure but note that there is a cost premium for electric vehicles. | F19: Feasible | G19: £m | H19: 3 | I19: 0.803 | J19: 0 | K19: 0.803 | L19: 0.803 | M19: 0 | N19: 0.803 | O19: 0.803 | P19: 0 | Q19: 0.803 | R19: 0.803 | S19: 0 | T19: 0.803 | U19: 0.803 | V19: 0 | W19: 0.803 | X19: 4.015 | Y19: 0 | Z19: 4.015 | AA19: 50 | AB19: 50 | AD19: 0 | AE19: -381 | AF19: -1142 | AG19: -2284 | AH19: -3806 | AJ19: -3461.701 | AL19: CW19.6
A20: SVE | B20: 2024-02-15 | C20: NZ#7w | D20: HVO fuel only | E20: HVO (marginal cost of fuel only) - Not included in our Investment Cases, we consider this to be base expenditure but note that there is a cost premium for HVO fuel. | F20: Feasible | G20: £m | H20: 3 | I20: 0 | J20: 0.44 | K20: 0.44 | L20: 0 | M20: 0.44 | N20: 0.44 | O20: 0 | P20: 0.44 | Q20: 0.44 | R20: 0 | S20: 0.44 | T20: 0.44 | U20: 0 | V20: 0.44 | W20: 0.44 | X20: 0 | Y20: 2.2 | Z20: 2.2 | AA20: 50 | AB20: 50 | AD20: -2776.4 | AE20: -5552.8 | AF20: -8329.2 | AG20: -11105.6 | AH20: -13882 | AJ20: -13693.343 | AL20: CW19.7
A21: SVE | B21: 2024-02-15 | C21: NZ#8w | D21: Solar PV | E21: Solar PV (other than very small scale) - Not included in our Investment Cases, we consider this to be base expenditure if economic. | F21: Feasible | G21: £m | H21: 3 | I21: 2.86 | J21: 0 | K21: 2.86 | L21: 2.86 | M21: 0 | N21: 2.86 | O21: 2.86 | P21: -3.209 | Q21: -0.349 | R21: 2.86 | S21: -3.209 | T21: -0.349 | U21: 2.86 | V21: -3.209 | W21: -0.349 | X21: 14.3 | Y21: -9.627 | Z21: 4.673 | AA21: 50 | AB21: 50 | AD21: 0 | AE21: 0 | AF21: -3208.788 | AG21: -6417.576 | AH21: -9626.364 | AJ21: -8400.094 | AL21: CW19.8
A22: TMS | B22: 2023-12-08 | C22: CW21_1 | D22: S40840/2 (PR24 Fleet - Life expired Enhancement (cost to convert to electrical) (Water)) | E22: Costs above base of converting life-expired transport to electric or alternative fuelled vehicle. | F22: Feasible | G22: £m | H22: 3 | I22: 4.853 | J22: -0.375 | K22: 4.478 | L22: 4.418 | M22: -0.399 | N22: 4.019 | O22: 3.579 | P22: -0.428 | Q22: 3.151 | R22: 2.608 | S22: -0.475 | T22: 2.133 | U22: 0.768 | V22: -0.675 | W22: 0.093 | X22: 16.226 | Y22: -2.352 | Z22: 13.874 | AA22: 0 | AB22: 1 | AD22: -808 | AE22: -2100 | AF22: -3847 | AG22: -6094 | AH22: -8762 | AJ22: 1377 | AL22: CW19.1
A23: TMS | B23: 2023-12-08 | C23: CW21_2 | D23: S40142/2 (PR24 Hybrid air source heat pump/existing boiler for 4 corporate offices (Water)) | E23: Lower GHG emission hybrid heating at four corporate offices | F23: Feasible | G23: £m | H23: 3 | I23: 0.406 | J23: -0.002 | K23: 0.404 | L23: 0.408 | M23: -0.054 | N23: 0.354 | O23: 0 | P23: -0.036 | Q23: -0.036 | R23: 0 | S23: -0.024 | T23: -0.024 | U23: 0 | V23: -0.017 | W23: -0.017 | X23: 0.814 | Y23: -0.133 | Z23: 0.681 | AA23: 0 | AB23: 1 | AD23: -132.5 | AE23: -397.52 | AF23: -662.54 | AG23: -927.56 | AH23: -1192.58 | AJ23: -1703.58 | AL23: CW19.2
A24: TMS | B24: 2023-12-08 | C24: CW21_3 | D24: S40144/2 (PR24 Air source heat pump for site office (enhancement cost) (Water)) | E24: Lower GHG emission heating for life-expired site office boilers | F24: Feasible | G24: £m | H24: 3 | I24: 0.334 | J24: 0.003 | K24: 0.337 | L24: 0.335 | M24: 0.015 | N24: 0.35 | O24: 0.337 | P24: 0.027 | Q24: 0.364 | R24: 0.338 | S24: 0.04 | T24: 0.378 | U24: 0.34 | V24: 0.054 | W24: 0.394 | X24: 1.684 | Y24: 0.139 | Z24: 1.823 | AA24: 0 | AB24: 1 | AD24: -33.33 | AE24: -100 | AF24: -200.04 | AG24: -333.39 | AH24: -500.06 | AJ24: -241.81 | AL24: CW19.3
A25: NWT | B25: 2024-02-19 | C25: E00001340 | D25: Transport fossil fuel reductions - Green fleet LCVs phase 1 | E25: Procuring zero emission (Electric Vehicle, EV) cars & vans | F25: Selected | G25: £m | H25: 3 | I25: 0.909 | J25: -0.074 | K25: 0.834 | L25: 1.155 | M25: -0.288 | N25: 0.867 | O25: 2.292 | P25: -0.633 | Q25: 1.659 | R25: 1.974 | S25: -0.995 | T25: 0.979 | U25: 0 | V25: -1.199 | W25: -1.199 | X25: 6.33 | Y25: -3.189 | Z25: 3.141 | AA25: 0.036 | AB25: 0.315 | AD25: -182.742 | AE25: -776.651 | AF25: -2055.842 | AG25: -4179.298 | AH25: -6690.167 | AJ25: -6690.167 | AL25: CW19.1
A26: NWT | B26: 2024-02-19 | C26: E00001341 | D26: Transport fossil fuel reductions - Green fleet LCVs phase 2 | E26: Procuring zero emission (Electric Vehicle, EV) cars & vans | F26: Selected | G26: £m | H26: 3 | I26: 1.069 | J26: -0.026 | K26: 1.043 | L26: 1.358 | M26: -0.099 | N26: 1.259 | O26: 2.696 | P26: -0.219 | Q26: 2.477 | R26: 2.321 | S26: -0.344 | T26: 1.977 | U26: 0 | V26: -0.415 | W26: -0.415 | X26: 7.444 | Y26: -1.102 | Z26: 6.341 | AA26: 0.036 | AB26: 0.315 | AD26: -63.181 | AE26: -268.519 | AF26: -710.786 | AG26: -1444.948 | AH26: -2313.055 | AJ26: -2313.055 | AL26: CW19.2
A27: NWT | B27: 2024-02-19 | C27: E00001344 | D27: Peatland restoration | E27: Habitat restoration works across 1494 hectares of peatland by 2030, verified by Natural England (or equivalent standard). | F27: Selected | G27: £m | H27: 3 | I27: 2.018 | J27: 0 | K27: 2.018 | L27: 5.542 | M27: 0 | N27: 5.542 | O27: 5.501 | P27: 0 | Q27: 5.501 | R27: 5.587 | S27: 0 | T27: 5.587 | U27: 1.857 | V27: 0 | W27: 1.857 | X27: 20.505 | Y27: 0 | Z27: 20.505 | AA27: 0 | AB27: 1 | AD27: 0 | AE27: 0 | AF27: 0 | AG27: 0 | AH27: -13227 | AJ27: -13227 | AL27: CW19.3
A28: NWT | B28: 2024-02-19 | C28: E00001345 | D28: Woodland creation | E28: Creation of 465 hectares of woodland from planting trees by 2030, verified by the Woodland Carbon Code (or equivalent standard). | F28: Selected | G28: £m | H28: 3 | I28: 0.843 | J28: 0 | K28: 0.843 | L28: 0.858 | M28: 0 | N28: 0.858 | O28: 0.845 | P28: 0 | Q28: 0.845 | R28: 0 | S28: 0 | T28: 0 | U28: 0 | V28: 0 | W28: 0 | X28: 2.546 | Y28: 0 | Z28: 2.546 | AA28: 0 | AB28: 1 | AD28: 0 | AE28: 0 | AF28: -427.015 | AG28: -854.03 | AH28: -1662.633 | AJ28: -1662.633 | AL28: CW19.4
A29: NWT | B29: 2024-02-19 | C29: E00001346 | D29: Property emissions reductions | E29: Decarbonising heat within our UUW owned property portfolio, focused at moving away from fossil fuel usage. | F29: Selected | G29: £m | H29: 3 | I29: 1.206 | J29: 0 | K29: 1.206 | L29: 0 | M29: 0 | N29: 0 | O29: 0 | P29: 0 | Q29: 0 | R29: 0 | S29: 0 | T29: 0 | U29: 0 | V29: 0 | W29: 0 | X29: 1.206 | Y29: 0 | Z29: 1.206 | AA29: 0 | AB29: 0.333 | AD29: -408.284 | AE29: -816.569 | AF29: -1224.853 | AG29: -1633.138 | AH29: -2041.422 | AJ29: -1994.413 | AL29: CW19.5
A30: NWT | B30: 2024-02-19 | C30: E00001426 | D30: Phase 2 – Further low regrets emissions reductions in AMP8 | E30: Development of a net zero catchment strategy for St Cuthbert's garden village development to support the new WwTw in Carlisle, facilating the expected population growth | F30: Selected | G30: £m | H30: 3 | I30: 0 | J30: 0 | K30: 0 | L30: 0 | M30: 0 | N30: 0 | O30: 7.61 | P30: 0 | Q30: 7.61 | R30: 7.727 | S30: 0 | T30: 7.727 | U30: 7.702 | V30: 0 | W30: 7.702 | X30: 23.039 | Y30: 0 | Z30: 23.039 | AA30: 0.007 | AB30: 0.269 | AD30: 0 | AE30: 0 | AF30: -5021.104 | AG30: -10042.207 | AH30: -15063.311 | AJ30: -14732.26 | AL30: CW19.6
A31: WSH | B31: 2024-02-09 | C31: CW21_1 | D31: Net Zero Carbon Strategy: Network Control Systems (Water) | E31: Delivery of a new Network Control System for Water to reduce energy consumption by using factors such as weather and demand patterns to predict optimum set points, and as a result, control and optimise pumping regimes | F31: Selected | G31: £m | H31: 3 | I31: 0.174 | J31: -0.042 | K31: 0.132 | L31: 0.394 | M31: -0.097 | N31: 0.297 | O31: 0.394 | P31: -0.097 | Q31: 0.297 | R31: 0.414 | S31: -0.101 | T31: 0.313 | U31: 0.349 | V31: -0.084 | W31: 0.265 | X31: 1.725 | Y31: -0.421 | Z31: 1.304 | AA31: 0 | AB31: 100 | AD31: -50 | AE31: -165 | AF31: -285 | AG31: -400 | AH31: -500 | AJ31: -360 | AL31: CW19.1
A32: WSH | B32: 2024-02-09 | C32: CW21_2 | D32: Net Zero Carbon Strategy: Carbon Work Package 6 (Peatland & Woodland Restoration) | E32: Restoration of degraded peatland and creation of new woodland to offset carbon emissions | F32: Selected | G32: £m | H32: 3 | I32: 5.06 | J32: 0 | K32: 5.06 | L32: 5.06 | M32: 0 | N32: 5.06 | O32: 5.06 | P32: 0 | Q32: 5.06 | R32: 5.06 | S32: 0 | T32: 5.06 | U32: 5.06 | V32: 0 | W32: 5.06 | X32: 25.3 | Y32: 0 | Z32: 25.3 | AA32: 100 | AB32: 0 | AD32: 0 | AE32: 0 | AF32: 0 | AG32: 0 | AH32: 0 | AJ32: 0 | AL32: CW19.2
A33: WSX | B33: 2024-02-05 | C33: CW21_1 | D33: Transport | E33: Decarbonised Fleet Infrastructure | F33: Selected | G33: £m | H33: 3 | I33: 0.394 | J33: 0 | K33: 0.395 | L33: 0.634 | M33: 0.001 | N33: 0.635 | O33: 0.797 | P33: 0.003 | Q33: 0.8 | R33: 0.801 | S33: 0.005 | T33: 0.805 | U33: 0.413 | V33: 0.008 | W33: 0.421 | X33: 3.04 | Y33: 0.016 | Z33: 3.056 | AJ33: 1664.1 | AL33: CW19.3
A34: YKY | B34: 2024-01-25 | C34: CW21-1 | D34: Solar | E34: Combination of rooftop and groundmount solar on YW sites. | F34: Selected | G34: £m | H34: 3 | I34: 3.883 | J34: 0 | K34: 3.883 | L34: 4.777 | M34: -0.42 | N34: 4.357 | O34: 4.308 | P34: -1.277 | Q34: 3.031 | R34: 2.431 | S34: -2.134 | T34: 0.297 | U34: 1.658 | V34: -2.429 | W34: -0.771 | X34: 17.056 | Y34: -6.26 | Z34: 10.796 | AA34: 50 | AB34: 50 | AD34: 0 | AE34: -1000 | AF34: -2000 | AG34: -3000 | AH34: -3500 | AJ34: -3000 | AL34: CW19.1

Sheet Data
A1: Consolidated data
C4: Company | D4: Scheme ID | E4: Scheme name | F4: Selected or Feasible | G4: Totex 2025-26 | H4: Totex 2026-27 | I4: Totex 2027-28 | J4: Totex 2028-29 | K4: Totex 2029-30 | L4: AMP8 totex (£m, 2025-30) | M4: Carbon benefits (cumulated) 2025-26 | N4: Carbon benefits (cumulated) 2026-27 | O4: Carbon benefits (cumulated) 2027-28 | P4: Carbon benefits (cumulated) 2028-29 | Q4: Carbon benefits (cumulated) 2029-30 | R4: Scheme benefits (tCO2e cumulative, 2029-30)
B5: 1 | C5: ='BPT input'!A5 -> ANH | D5: ='BPT input'!C5 -> CW21.1 | E5: ='BPT input'!D5 -> AMP8 Small Scale Solar Delivery WS | F5: =_xlfn.IFS('BPT input'!F5="Selected", 'BPT input'!F5, 'BPT input'!F5="Feasible",'BPT input'!F5, 'BPT input'!F5="Select from Dropdown", "Selected") -> Feasible | G5: ='BPT input'!K5 -> 2.017 | H5: ='BPT input'!N5 -> 1.777 | I5: ='BPT input'!Q5 -> 1.536 | J5: ='BPT input'!T5 -> 1.296 | K5: ='BPT input'!W5 -> 1.055 | L5: ='BPT input'!Z5 -> 7.681 | M5: ='BPT input'!AD5 -> 0 | N5: ='BPT input'!AE5 -> -454.48 | O5: ='BPT input'!AF5 -> -1363.74 | P5: ='BPT input'!AG5 -> -2727.48 | Q5: ='BPT input'!AH5 -> -4545.8 | R5: ='BPT input'!AH5 -> -4545.8
B6: 2 | C6: ='BPT input'!A6 -> AFW | D6: ='BPT input'!C6 -> AFW_EV | E6: ='BPT input'!D6 -> Net Zero: Electric Vehicles | F6: =_xlfn.IFS('BPT input'!F6="Selected", 'BPT input'!F6, 'BPT input'!F6="Feasible",'BPT input'!F6, 'BPT input'!F6="Select from Dropdown", "Selected") -> Selected | G6: ='BPT input'!K6 -> 0.99 | H6: ='BPT input'!N6 -> 1.1 | I6: ='BPT input'!Q6 -> 1.014 | J6: ='BPT input'!T6 -> 0.62 | K6: ='BPT input'!W6 -> 0.578 | L6: ='BPT input'!Z6 -> 4.302 | M6: ='BPT input'!AD6 -> -322.6 | N6: ='BPT input'!AE6 -> -937 | O6: ='BPT input'!AF6 -> -1858.6 | P6: ='BPT input'!AG6 -> -3087.4 | Q6: ='BPT input'!AH6 -> -4700.2 | R6: ='BPT input'!AH6 -> -4700.2
B7: 3 | C7: ='BPT input'!A7 -> HDD | D7: ='BPT input'!C7 -> 0 | E7: ='BPT input'!D7 -> EV & low carbon alternative fuels & charge points | F7: =_xlfn.IFS('BPT input'!F7="Selected", 'BPT input'!F7, 'BPT input'!F7="Feasible",'BPT input'!F7, 'BPT input'!F7="Select from Dropdown", "Selected") -> Selected | G7: ='BPT input'!K7 -> 0.312 | H7: ='BPT input'!N7 -> 0.148 | I7: ='BPT input'!Q7 -> 0.169 | J7: ='BPT input'!T7 -> 0.243 | K7: ='BPT input'!W7 -> 0.275 | L7: ='BPT input'!Z7 -> 1.145 | M7: ='BPT input'!AD7 -> -236.566 | N7: ='BPT input'!AE7 -> -288.077 | O7: ='BPT input'!AF7 -> -328.294 | P7: ='BPT input'!AG7 -> -517.766 | Q7: ='BPT input'!AH7 -> -563.82 | R7: ='BPT input'!AH7 -> -563.82
B8: 4 | C8: ='BPT input'!A8 -> HDD | D8: ='BPT input'!C8 -> 0 | E8: ='BPT input'!D8 -> Heat decarbonisation | F8: =_xlfn.IFS('BPT input'!F8="Selected", 'BPT input'!F8, 'BPT input'!F8="Feasible",'BPT input'!F8, 'BPT input'!F8="Select from Dropdown", "Selected") -> Selected | G8: ='BPT input'!K8 -> 0.015 | H8: ='BPT input'!N8 -> 0 | I8: ='BPT input'!Q8 -> 0 | J8: ='BPT input'!T8 -> 0 | K8: ='BPT input'!W8 -> 0 | L8: ='BPT input'!Z8 -> 0.015 | M8: ='BPT input'!AD8 -> 0 | N8: ='BPT input'!AE8 -> -2.093 | O8: ='BPT input'!AF8 -> -4.186 | P8: ='BPT input'!AG8 -> -6.279 | Q8: ='BPT input'!AH8 -> -8.373 | R8: ='BPT input'!AH8 -> -8.373
B9: 5 | C9: ='BPT input'!A9 -> SEW | D9: ='BPT input'!C9 -> 0 | E9: ='BPT input'!D9 -> Ozone upgrade at Barcombe | F9: =_xlfn.IFS('BPT input'!F9="Selected", 'BPT input'!F9, 'BPT input'!F9="Feasible",'BPT input'!F9, 'BPT input'!F9="Select from Dropdown", "Selected") -> Selected | G9: ='BPT input'!K9 -> 0.153 | H9: ='BPT input'!N9 -> 0.399 | I9: ='BPT input'!Q9 -> 1.258 | J9: ='BPT input'!T9 -> 1.258 | K9: ='BPT input'!W9 -> 0.099 | L9: ='BPT input'!Z9 -> 3.168 | M9: ='BPT input'!AD9 -> 0 | N9: ='BPT input'!AE9 -> 0 | O9: ='BPT input'!AF9 -> 0 | P9: ='BPT input'!AG9 -> 0 | Q9: ='BPT input'!AH9 -> -573 | R9: ='BPT input'!AH9 -> -573
B10: 6 | C10: ='BPT input'!A10 -> SEW | D10: ='BPT input'!C10 -> 0 | E10: ='BPT input'!D10 -> Ozone upgrade at Arlington | F10: =_xlfn.IFS('BPT input'!F10="Selected", 'BPT input'!F10, 'BPT input'!F10="Feasible",'BPT input'!F10, 'BPT input'!F10="Select from Dropdown", "Selected") -> Selected | G10: ='BPT input'!K10 -> 0.059 | H10: ='BPT input'!N10 -> 0.154 | I10: ='BPT input'!Q10 -> 0.486 | J10: ='BPT input'!T10 -> 0.486 | K10: ='BPT input'!W10 -> 0.036 | L10: ='BPT input'!Z10 -> 1.22 | M10: ='BPT input'!AD10 -> 0 | N10: ='BPT input'!AE10 -> 0 | O10: ='BPT input'!AF10 -> 0 | P10: ='BPT input'!AG10 -> 0 | Q10: ='BPT input'!AH10 -> -114 | R10: ='BPT input'!AH10 -> -114
B11: 7 | C11: ='BPT input'!A11 -> SEW | D11: ='BPT input'!C11 -> 0 | E11: ='BPT input'!D11 -> Power resilience (generators) | F11: =_xlfn.IFS('BPT input'!F11="Selected", 'BPT input'!F11, 'BPT input'!F11="Feasible",'BPT input'!F11, 'BPT input'!F11="Select from Dropdown", "Selected") -> Selected | G11: ='BPT input'!K11 -> 0.16 | H11: ='BPT input'!N11 -> 0.16 | I11: ='BPT input'!Q11 -> 0.107 | J11: ='BPT input'!T11 -> 0.107 | K11: ='BPT input'!W11 -> 0 | L11: ='BPT input'!Z11 -> 0.534 | M11: ='BPT input'!AD11 -> -169 | N11: ='BPT input'!AE11 -> -338 | O11: ='BPT input'!AF11 -> -508 | P11: ='BPT input'!AG11 -> -677 | Q11: ='BPT input'!AH11 -> -846 | R11: ='BPT input'!AH11 -> -846
B12: 8 | C12: ='BPT input'!A12 -> SEW | D12: ='BPT input'!C12 -> 0 | E12: ='BPT input'!D12 -> Transport offset (Electrifying fleet) | F12: =_xlfn.IFS('BPT input'!F12="Selected", 'BPT input'!F12, 'BPT input'!F12="Feasible",'BPT input'!F12, 'BPT input'!F12="Select from Dropdown", "Selected") -> Selected | G12: ='BPT input'!K12 -> 1.605 | H12: ='BPT input'!N12 -> 1.47 | I12: ='BPT input'!Q12 -> 1.914 | J12: ='BPT input'!T12 -> 1.337 | K12: ='BPT input'!W12 -> 1.881 | L12: ='BPT input'!Z12 -> 8.207 | M12: ='BPT input'!AD12 -> -181 | N12: ='BPT input'!AE12 -> -423 | O12: ='BPT input'!AF12 -> -707 | P12: ='BPT input'!AG12 -> -888 | Q12: ='BPT input'!AH12 -> -1371 | R12: ='BPT input'!AH12 -> -1371
B13: 9 | C13: ='BPT input'!A13 -> SSC | D13: ='BPT input'!C13 -> SSC_CW21_1 | E13: ='BPT input'!D13 -> Renewable electricity behind the meter assets | F13: =_xlfn.IFS('BPT input'!F13="Selected", 'BPT input'!F13, 'BPT input'!F13="Feasible",'BPT input'!F13, 'BPT input'!F13="Select from Dropdown", "Selected") -> Selected | G13: ='BPT input'!K13 -> 0 | H13: ='BPT input'!N13 -> 0 | I13: ='BPT input'!Q13 -> 1.758 | J13: ='BPT input'!T13 -> 5.478 | K13: ='BPT input'!W13 -> 0 | L13: ='BPT input'!Z13 -> 7.237 | M13: ='BPT input'!AD13 -> 0 | N13: ='BPT input'!AE13 -> 0 | O13: ='BPT input'!AF13 -> 0 | P13: ='BPT input'!AG13 -> -297.262 | Q13: ='BPT input'!AH13 -> -1551.262 | R13: ='BPT input'!AH13 -> -1551.262
B14: 10 | C14: ='BPT input'!A14 -> SVE | D14: ='BPT input'!C14 -> NZ#1w | E14: ='BPT input'!D14 -> EV Charging Infrastructure | F14: =_xlfn.IFS('BPT input'!F14="Selected", 'BPT input'!F14, 'BPT input'!F14="Feasible",'BPT input'!F14, 'BPT input'!F14="Select from Dropdown", "Selected") -> Selected | G14: ='BPT input'!K14 -> 0 | H14: ='BPT input'!N14 -> 0.88 | I14: ='BPT input'!Q14 -> 0 | J14: ='BPT input'!T14 -> 0 | K14: ='BPT input'!W14 -> 0 | L14: ='BPT input'!Z14 -> 0.88 | M14: ='BPT input'!AD14 -> 0 | N14: ='BPT input'!AE14 -> 0 | O14: ='BPT input'!AF14 -> -380.6 | P14: ='BPT input'!AG14 -> -1141.8 | Q14: ='BPT input'!AH14 -> -2283.6 | R14: ='BPT input'!AH14 -> -2283.6
B15: 11 | C15: ='BPT input'!A15 -> SVE | D15: ='BPT input'!C15 -> NZ#2w | E15: ='BPT input'!D15 -> Heat pumps | F15: =_xlfn.IFS('BPT input'!F15="Selected", 'BPT input'!F15, 'BPT input'!F15="Feasible",'BPT input'!F15, 'BPT input'!F15="Select from Dropdown", "Selected") -> Selected | G15: ='BPT input'!K15 -> 8.064 | H15: ='BPT input'!N15 -> 0 | I15: ='BPT input'!Q15 -> -0.073 | J15: ='BPT input'!T15 -> -0.11 | K15: ='BPT input'!W15 -> -0.11 | L15: ='BPT input'!Z15 -> 7.771 | M15: ='BPT input'!AD15 -> 0 | N15: ='BPT input'!AE15 -> 0 | O15: ='BPT input'!AF15 -> -465 | P15: ='BPT input'!AG15 -> -1395 | Q15: ='BPT input'!AH15 -> -2790 | R15: ='BPT input'!AH15 -> -2790
B16: 12 | C16: ='BPT input'!A16 -> SVE | D16: ='BPT input'!C16 -> NZ#3w | E16: ='BPT input'!D16 -> HVO diesel replacement | F16: =_xlfn.IFS('BPT input'!F16="Selected", 'BPT input'!F16, 'BPT input'!F16="Feasible",'BPT input'!F16, 'BPT input'!F16="Select from Dropdown", "Selected") -> Selected | G16: ='BPT input'!K16 -> 0.331 | H16: ='BPT input'!N16 -> 0 | I16: ='BPT input'!Q16 -> 0 | J16: ='BPT input'!T16 -> 0 | K16: ='BPT input'!W16 -> 0 | L16: ='BPT input'!Z16 -> 0.331 | M16: ='BPT input'!AD16 -> 0 | N16: ='BPT input'!AE16 -> 0 | O16: ='BPT input'!AF16 -> -693 | P16: ='BPT input'!AG16 -> -2079 | Q16: ='BPT input'!AH16 -> -4158 | R16: ='BPT input'!AH16 -> -4158
B17: 13 | C17: ='BPT input'!A17 -> SVE | D17: ='BPT input'!C17 -> NZ#4w | E17: ='BPT input'!D17 -> Hydrogen Production | F17: =_xlfn.IFS('BPT input'!F17="Selected", 'BPT input'!F17, 'BPT input'!F17="Feasible",'BPT input'!F17, 'BPT input'!F17="Select from Dropdown", "Selected") -> Feasible | G17: ='BPT input'!K17 -> 0.55 | H17: ='BPT input'!N17 -> 0.55 | I17: ='BPT input'!Q17 -> 0.29 | J17: ='BPT input'!T17 -> 0.29 | K17: ='BPT input'!W17 -> 0.29 | L17: ='BPT input'!Z17 -> 1.97 | M17: ='BPT input'!AD17 -> 0 | N17: ='BPT input'!AE17 -> 0 | O17: ='BPT input'!AF17 -> -985.6 | P17: ='BPT input'!AG17 -> -1971.2 | Q17: ='BPT input'!AH17 -> -2956.8 | R17: ='BPT input'!AH17 -> -2956.8
B18: 14 | C18: ='BPT input'!A18 -> SVE | D18: ='BPT input'!C18 -> NZ#5w | E18: ='BPT input'!D18 -> Electrical storage | F18: =_xlfn.IFS('BPT input'!F18="Selected", 'BPT input'!F18, 'BPT input'!F18="Feasible",'BPT input'!F18, 'BPT input'!F18="Select from Dropdown", "Selected") -> Feasible | G18: ='BPT input'!K18 -> 1.21 | H18: ='BPT input'!N18 -> 1.21 | I18: ='BPT input'!Q18 -> 0.706 | J18: ='BPT input'!T18 -> 0.706 | K18: ='BPT input'!W18 -> 0.706 | L18: ='BPT input'!Z18 -> 4.538 | M18: ='BPT input'!AD18 -> - | N18: ='BPT input'!AE18 -> - | O18: ='BPT input'!AF18 -> -40.15 | P18: ='BPT input'!AG18 -> -80.3 | Q18: ='BPT input'!AH18 -> -120.45 | R18: ='BPT input'!AH18 -> -120.45
B19: 15 | C19: ='BPT input'!A19 -> SVE | D19: ='BPT input'!C19 -> NZ#6w | E19: ='BPT input'!D19 -> EV fleet only | F19: =_xlfn.IFS('BPT input'!F19="Selected", 'BPT input'!F19, 'BPT input'!F19="Feasible",'BPT input'!F19, 'BPT input'!F19="Select from Dropdown", "Selected") -> Feasible | G19: ='BPT input'!K19 -> 0.803 | H19: ='BPT input'!N19 -> 0.803 | I19: ='BPT input'!Q19 -> 0.803 | J19: ='BPT input'!T19 -> 0.803 | K19: ='BPT input'!W19 -> 0.803 | L19: ='BPT input'!Z19 -> 4.015 | M19: ='BPT input'!AD19 -> 0 | N19: ='BPT input'!AE19 -> -381 | O19: ='BPT input'!AF19 -> -1142 | P19: ='BPT input'!AG19 -> -2284 | Q19: ='BPT input'!AH19 -> -3806 | R19: ='BPT input'!AH19 -> -3806
B20: 16 | C20: ='BPT input'!A20 -> SVE | D20: ='BPT input'!C20 -> NZ#7w | E20: ='BPT input'!D20 -> HVO fuel only | F20: =_xlfn.IFS('BPT input'!F20="Selected", 'BPT input'!F20, 'BPT input'!F20="Feasible",'BPT input'!F20, 'BPT input'!F20="Select from Dropdown", "Selected") -> Feasible | G20: ='BPT input'!K20 -> 0.44 | H20: ='BPT input'!N20 -> 0.44 | I20: ='BPT input'!Q20 -> 0.44 | J20: ='BPT input'!T20 -> 0.44 | K20: ='BPT input'!W20 -> 0.44 | L20: ='BPT input'!Z20 -> 2.2 | M20: ='BPT input'!AD20 -> -2776.4 | N20: ='BPT input'!AE20 -> -5552.8 | O20: ='BPT input'!AF20 -> -8329.2 | P20: ='BPT input'!AG20 -> -11105.6 | Q20: ='BPT input'!AH20 -> -13882 | R20: ='BPT input'!AH20 -> -13882
B21: 17 | C21: ='BPT input'!A21 -> SVE | D21: ='BPT input'!C21 -> NZ#8w | E21: ='BPT input'!D21 -> Solar PV | F21: =_xlfn.IFS('BPT input'!F21="Selected", 'BPT input'!F21, 'BPT input'!F21="Feasible",'BPT input'!F21, 'BPT input'!F21="Select from Dropdown", "Selected") -> Feasible | G21: ='BPT input'!K21 -> 2.86 | H21: ='BPT input'!N21 -> 2.86 | I21: ='BPT input'!Q21 -> -0.349 | J21: ='BPT input'!T21 -> -0.349 | K21: ='BPT input'!W21 -> -0.349 | L21: ='BPT input'!Z21 -> 4.673 | M21: ='BPT input'!AD21 -> 0 | N21: ='BPT input'!AE21 -> 0 | O21: ='BPT input'!AF21 -> -3208.788 | P21: ='BPT input'!AG21 -> -6417.576 | Q21: ='BPT input'!AH21 -> -9626.364 | R21: ='BPT input'!AH21 -> -9626.364
B22: 18 | C22: ='BPT input'!A22 -> TMS | D22: ='BPT input'!C22 -> CW21_1 | E22: ='BPT input'!D22 -> S40840/2 (PR24 Fleet - Life expired Enhancement (cost to convert to electrical) (Water)) | F22: =_xlfn.IFS('BPT input'!F22="Selected", 'BPT input'!F22, 'BPT input'!F22="Feasible",'BPT input'!F22, 'BPT input'!F22="Select from Dropdown", "Selected") -> Feasible | G22: ='BPT input'!K22 -> 4.478 | H22: ='BPT input'!N22 -> 4.019 | I22: ='BPT input'!Q22 -> 3.151 | J22: ='BPT input'!T22 -> 2.133 | K22: ='BPT input'!W22 -> 0.093 | L22: ='BPT input'!Z22 -> 13.874 | M22: ='BPT input'!AD22 -> -808 | N22: ='BPT input'!AE22 -> -2100 | O22: ='BPT input'!AF22 -> -3847 | P22: ='BPT input'!AG22 -> -6094 | Q22: ='BPT input'!AH22 -> -8762 | R22: ='BPT input'!AH22 -> -8762
B23: 19 | C23: ='BPT input'!A23 -> TMS | D23: ='BPT input'!C23 -> CW21_2 | E23: ='BPT input'!D23 -> S40142/2 (PR24 Hybrid air source heat pump/existing boiler for 4 corporate offices (Water)) | F23: =_xlfn.IFS('BPT input'!F23="Selected", 'BPT input'!F23, 'BPT input'!F23="Feasible",'BPT input'!F23, 'BPT input'!F23="Select from Dropdown", "Selected") -> Feasible | G23: ='BPT input'!K23 -> 0.404 | H23: ='BPT input'!N23 -> 0.354 | I23: ='BPT input'!Q23 -> -0.036 | J23: ='BPT input'!T23 -> -0.024 | K23: ='BPT input'!W23 -> -0.017 | L23: ='BPT input'!Z23 -> 0.681 | M23: ='BPT input'!AD23 -> -132.5 | N23: ='BPT input'!AE23 -> -397.52 | O23: ='BPT input'!AF23 -> -662.54 | P23: ='BPT input'!AG23 -> -927.56 | Q23: ='BPT input'!AH23 -> -1192.58 | R23: ='BPT input'!AH23 -> -1192.58
B24: 20 | C24: ='BPT input'!A24 -> TMS | D24: ='BPT input'!C24 -> CW21_3 | E24: ='BPT input'!D24 -> S40144/2 (PR24 Air source heat pump for site office (enhancement cost) (Water)) | F24: =_xlfn.IFS('BPT input'!F24="Selected", 'BPT input'!F24, 'BPT input'!F24="Feasible",'BPT input'!F24, 'BPT input'!F24="Select from Dropdown", "Selected") -> Feasible | G24: ='BPT input'!K24 -> 0.337 | H24: ='BPT input'!N24 -> 0.35 | I24: ='BPT input'!Q24 -> 0.364 | J24: ='BPT input'!T24 -> 0.378 | K24: ='BPT input'!W24 -> 0.394 | L24: ='BPT input'!Z24 -> 1.823 | M24: ='BPT input'!AD24 -> -33.33 | N24: ='BPT input'!AE24 -> -100 | O24: ='BPT input'!AF24 -> -200.04 | P24: ='BPT input'!AG24 -> -333.39 | Q24: ='BPT input'!AH24 -> -500.06 | R24: ='BPT input'!AH24 -> -500.06
B25: 21 | C25: ='BPT input'!A25 -> NWT | D25: ='BPT input'!C25 -> E00001340 | E25: ='BPT input'!D25 -> Transport fossil fuel reductions - Green fleet LCVs phase 1 | F25: =_xlfn.IFS('BPT input'!F25="Selected", 'BPT input'!F25, 'BPT input'!F25="Feasible",'BPT input'!F25, 'BPT input'!F25="Select from Dropdown", "Selected") -> Selected | G25: ='BPT input'!K25 -> 0.834 | H25: ='BPT input'!N25 -> 0.867 | I25: ='BPT input'!Q25 -> 1.659 | J25: ='BPT input'!T25 -> 0.979 | K25: ='BPT input'!W25 -> -1.199 | L25: ='BPT input'!Z25 -> 3.141 | M25: ='BPT input'!AD25 -> -182.742 | N25: ='BPT input'!AE25 -> -776.651 | O25: ='BPT input'!AF25 -> -2055.842 | P25: ='BPT input'!AG25 -> -4179.298 | Q25: ='BPT input'!AH25 -> -6690.167 | R25: ='BPT input'!AH25 -> -6690.167
B26: 22 | C26: ='BPT input'!A26 -> NWT | D26: ='BPT input'!C26 -> E00001341 | E26: ='BPT input'!D26 -> Transport fossil fuel reductions - Green fleet LCVs phase 2 | F26: =_xlfn.IFS('BPT input'!F26="Selected", 'BPT input'!F26, 'BPT input'!F26="Feasible",'BPT input'!F26, 'BPT input'!F26="Select from Dropdown", "Selected") -> Selected | G26: ='BPT input'!K26 -> 1.043 | H26: ='BPT input'!N26 -> 1.259 | I26: ='BPT input'!Q26 -> 2.477 | J26: ='BPT input'!T26 -> 1.977 | K26: ='BPT input'!W26 -> -0.415 | L26: ='BPT input'!Z26 -> 6.341 | M26: ='BPT input'!AD26 -> -63.181 | N26: ='BPT input'!AE26 -> -268.519 | O26: ='BPT input'!AF26 -> -710.786 | P26: ='BPT input'!AG26 -> -1444.948 | Q26: ='BPT input'!AH26 -> -2313.055 | R26: ='BPT input'!AH26 -> -2313.055
B27: 23 | C27: ='BPT input'!A27 -> NWT | D27: ='BPT input'!C27 -> E00001344 | E27: ='BPT input'!D27 -> Peatland restoration | F27: =_xlfn.IFS('BPT input'!F27="Selected", 'BPT input'!F27, 'BPT input'!F27="Feasible",'BPT input'!F27, 'BPT input'!F27="Select from Dropdown", "Selected") -> Selected | G27: ='BPT input'!K27 -> 2.018 | H27: ='BPT input'!N27 -> 5.542 | I27: ='BPT input'!Q27 -> 5.501 | J27: ='BPT input'!T27 -> 5.587 | K27: ='BPT input'!W27 -> 1.857 | L27: ='BPT input'!Z27 -> 20.505 | M27: ='BPT input'!AD27 -> 0 | N27: ='BPT input'!AE27 -> 0 | O27: ='BPT input'!AF27 -> 0 | P27: ='BPT input'!AG27 -> 0 | Q27: ='BPT input'!AH27 -> -13227 | R27: ='BPT input'!AH27 -> -13227
B28: 24 | C28: ='BPT input'!A28 -> NWT | D28: ='BPT input'!C28 -> E00001345 | E28: ='BPT input'!D28 -> Woodland creation | F28: =_xlfn.IFS('BPT input'!F28="Selected", 'BPT input'!F28, 'BPT input'!F28="Feasible",'BPT input'!F28, 'BPT input'!F28="Select from Dropdown", "Selected") -> Selected | G28: ='BPT input'!K28 -> 0.843 | H28: ='BPT input'!N28 -> 0.858 | I28: ='BPT input'!Q28 -> 0.845 | J28: ='BPT input'!T28 -> 0 | K28: ='BPT input'!W28 -> 0 | L28: ='BPT input'!Z28 -> 2.546 | M28: ='BPT input'!AD28 -> 0 | N28: ='BPT input'!AE28 -> 0 | O28: ='BPT input'!AF28 -> -427.015 | P28: ='BPT input'!AG28 -> -854.03 | Q28: ='BPT input'!AH28 -> -1662.633 | R28: ='BPT input'!AH28 -> -1662.633
B29: 25 | C29: ='BPT input'!A29 -> NWT | D29: ='BPT input'!C29 -> E00001346 | E29: ='BPT input'!D29 -> Property emissions reductions | F29: =_xlfn.IFS('BPT input'!F29="Selected", 'BPT input'!F29, 'BPT input'!F29="Feasible",'BPT input'!F29, 'BPT input'!F29="Select from Dropdown", "Selected") -> Selected | G29: ='BPT input'!K29 -> 1.206 | H29: ='BPT input'!N29 -> 0 | I29: ='BPT input'!Q29 -> 0 | J29: ='BPT input'!T29 -> 0 | K29: ='BPT input'!W29 -> 0 | L29: ='BPT input'!Z29 -> 1.206 | M29: ='BPT input'!AD29 -> -408.284 | N29: ='BPT input'!AE29 -> -816.569 | O29: ='BPT input'!AF29 -> -1224.853 | P29: ='BPT input'!AG29 -> -1633.138 | Q29: ='BPT input'!AH29 -> -2041.422 | R29: ='BPT input'!AH29 -> -2041.422
B30: 26 | C30: ='BPT input'!A30 -> NWT | D30: ='BPT input'!C30 -> E00001426 | E30: ='BPT input'!D30 -> Phase 2 – Further low regrets emissions reductions in AMP8 | F30: =_xlfn.IFS('BPT input'!F30="Selected", 'BPT input'!F30, 'BPT input'!F30="Feasible",'BPT input'!F30, 'BPT input'!F30="Select from Dropdown", "Selected") -> Selected | G30: ='BPT input'!K30 -> 0 | H30: ='BPT input'!N30 -> 0 | I30: ='BPT input'!Q30 -> 7.61 | J30: ='BPT input'!T30 -> 7.727 | K30: ='BPT input'!W30 -> 7.702 | L30: ='BPT input'!Z30 -> 23.039 | M30: ='BPT input'!AD30 -> 0 | N30: ='BPT input'!AE30 -> 0 | O30: ='BPT input'!AF30 -> -5021.104 | P30: ='BPT input'!AG30 -> -10042.207 | Q30: ='BPT input'!AH30 -> -15063.311 | R30: ='BPT input'!AH30 -> -15063.311
B31: 27 | C31: ='BPT input'!A31 -> WSH | D31: ='BPT input'!C31 -> CW21_1 | E31: ='BPT input'!D31 -> Net Zero Carbon Strategy: Network Control Systems (Water) | F31: =_xlfn.IFS('BPT input'!F31="Selected", 'BPT input'!F31, 'BPT input'!F31="Feasible",'BPT input'!F31, 'BPT input'!F31="Select from Dropdown", "Selected") -> Selected | G31: ='BPT input'!K31 -> 0.132 | H31: ='BPT input'!N31 -> 0.297 | I31: ='BPT input'!Q31 -> 0.297 | J31: ='BPT input'!T31 -> 0.313 | K31: ='BPT input'!W31 -> 0.265 | L31: ='BPT input'!Z31 -> 1.304 | M31: ='BPT input'!AD31 -> -50 | N31: ='BPT input'!AE31 -> -165 | O31: ='BPT input'!AF31 -> -285 | P31: ='BPT input'!AG31 -> -400 | Q31: ='BPT input'!AH31 -> -500 | R31: ='BPT input'!AH31 -> -500
B32: 28 | C32: ='BPT input'!A32 -> WSH | D32: ='BPT input'!C32 -> CW21_2 | E32: ='BPT input'!D32 -> Net Zero Carbon Strategy: Carbon Work Package 6 (Peatland & Woodland Restoration) | F32: =_xlfn.IFS('BPT input'!F32="Selected", 'BPT input'!F32, 'BPT input'!F32="Feasible",'BPT input'!F32, 'BPT input'!F32="Select from Dropdown", "Selected") -> Selected | G32: ='BPT input'!K32 -> 5.06 | H32: ='BPT input'!N32 -> 5.06 | I32: ='BPT input'!Q32 -> 5.06 | J32: ='BPT input'!T32 -> 5.06 | K32: ='BPT input'!W32 -> 5.06 | L32: ='BPT input'!Z32 -> 25.3 | M32: ='BPT input'!AD32 -> 0 | N32: ='BPT input'!AE32 -> 0 | O32: ='BPT input'!AF32 -> 0 | P32: ='BPT input'!AG32 -> 0 | Q32: ='BPT input'!AH32 -> 0 | R32: ='BPT input'!AH32 -> 0
B33: 29 | C33: ='BPT input'!A33 -> WSX | D33: ='BPT input'!C33 -> CW21_1 | E33: ='BPT input'!D33 -> Transport | F33: =_xlfn.IFS('BPT input'!F33="Selected", 'BPT input'!F33, 'BPT input'!F33="Feasible",'BPT input'!F33, 'BPT input'!F33="Select from Dropdown", "Selected") -> Selected | G33: ='BPT input'!K33 -> 0.395 | H33: ='BPT input'!N33 -> 0.635 | I33: ='BPT input'!Q33 -> 0.8 | J33: ='BPT input'!T33 -> 0.805 | K33: ='BPT input'!W33 -> 0.421 | L33: ='BPT input'!Z33 -> 3.056 | M33: ='BPT input'!AD33 -> 0 | N33: ='BPT input'!AE33 -> 0 | O33: ='BPT input'!AF33 -> 0 | P33: ='BPT input'!AG33 -> 0 | Q33: ='BPT input'!AH33 -> 0 | R33: ='BPT input'!AH33 -> 0
B34: 30 | C34: ='BPT input'!A34 -> YKY | D34: ='BPT input'!C34 -> CW21-1 | E34: ='BPT input'!D34 -> Solar | F34: =_xlfn.IFS('BPT input'!F34="Selected", 'BPT input'!F34, 'BPT input'!F34="Feasible",'BPT input'!F34, 'BPT input'!F34="Select from Dropdown", "Selected") -> Selected | G34: ='BPT input'!K34 -> 3.883 | H34: ='BPT input'!N34 -> 4.357 | I34: ='BPT input'!Q34 -> 3.031 | J34: ='BPT input'!T34 -> 0.297 | K34: ='BPT input'!W34 -> -0.771 | L34: ='BPT input'!Z34 -> 10.796 | M34: ='BPT input'!AD34 -> 0 | N34: ='BPT input'!AE34 -> -1000 | O34: ='BPT input'!AF34 -> -2000 | P34: ='BPT input'!AG34 -> -3000 | Q34: ='BPT input'!AH34 -> -3500 | R34: ='BPT input'!AH34 -> -3500

Sheet Override
B1: Override data
A4: DD BPT link | B4: Scheme resubmitted in DD | D4: Company | E4: Scheme ID | F4: Scheme name | G4: Selected or Feasible | H4: Totex 2025-26 | I4: Totex 2026-27 | J4: Totex 2027-28 | K4: Totex 2028-29 | L4: Totex 2029-30 | M4: AMP8 totex (£m, 2025-30) | N4: Carbon benefits (cumulated) 2025-26 | O4: Carbon benefits (cumulated) 2026-27 | P4: Carbon benefits (cumulated) 2027-28 | Q4: Carbon benefits (cumulated) 2028-29 | R4: Carbon benefits (cumulated) 2029-30 | S4: Scheme benefits (tCO2e cumulative, 2029-30) | T4: Reason for override | U4: Reason for override 2
A5: ANH_DD_004-v7-Main-data-tables.xlsb | B5: No | C5: 1 | D5: =IF(Data!C5="","",Data!C5) -> ANH | E5: CW21.1 | F5: AMP8 Small Scale Solar Delivery WS | G5: Not defined | H5: 0 | I5: 0 | J5: 0 | K5: 0 | L5: 0 | M5: 0 | N5: 0 | O5: 0 | P5: 0 | Q5: 0 | R5: 0 | S5: 0 | T5: Rejected at DD: no company representation.
B6: No | C6: 2 | D6: =IF(Data!C6="","",Data!C6) -> AFW | E6: AFW_EV | F6: Net Zero: Electric Vehicles | G6: Not defined | H6: 0 | I6: 0 | J6: 0 | K6: 0 | L6: 0 | M6: 0 | N6: 0 | O6: 0 | P6: 0 | Q6: 0 | R6: 0 | S6: 0 | T6: Rejected at DD: no company representation.
A7: 24.09.19 - HDD Original set BPDTs.xlsx | B7: Yes | C7: 3 | D7: =IF(Data!C7="","",Data!C7) -> HDD | E7: HDD_1 | F7: Electric Vehicles & Low Carbon fuels transition | G7: Not defined | H7: 0.31151068 | I7: 0.14764008 | J7: 0.16868604 | K7: 0.242762355 | L7: 0.274815075 | M7: 1.14541423 | N7: -236.566 | O7: -288.077 | P7: -328.294 | Q7: -517.766 | R7: -563.82 | S7: -563.82 | T7: Rejected at DD: company representation.
A8: 24.09.19 - HDD Original set BPDTs.xlsx | B8: No | C8: 4 | D8: =IF(Data!C8="","",Data!C8) -> HDD | E8: HDD_2 | F8: Heat Pump | H8: 0 | I8: 0 | J8: 0 | K8: 0 | L8: 0 | M8: 0 | N8: 0 | O8: 0 | P8: 0 | Q8: 0 | R8: 0 | S8: 0 | T8: Rejected at DD: no company representation.
A9: SEWDD8a01 - DD - PR24-BP-tables-V7-Publish - SUBMISSION.xlsx | B9: Yes | C9: 5 | D9: =IF(Data!C9="","",Data!C9) -> SEW | E9: SEW_1 | F9: Ozone upgrade at Barcombe | G9: Selected | H9: 0.1534533547 | I9: 0.3989787222 | J9: 1.258317509 | K9: 1.258317509 | L9: 0.09930133 | M9: 3.168368424 | N9: 0 | O9: 0 | P9: 0 | Q9: 0 | R9: -573 | S9: -573 | T9: Rejected at DD: company representation.
A10: SEWDD8a01 - DD - PR24-BP-tables-V7-Publish - SUBMISSION.xlsx | B10: Yes | C10: 6 | D10: =IF(Data!C10="","",Data!C10) -> SEW | E10: SEW_2 | F10: Ozone upgrade at Arlington | G10: Selected | H10: 0.05923061787 | I10: 0.1539996065 | J10: 0.4856910666 | K10: 0.4856910666 | L10: 0.03580684 | M10: 1.220419197 | N10: 0 | O10: 0 | P10: 0 | Q10: 0 | R10: -114 | S10: -114 | T10: Rejected at DD: company representation.
A11: SEWDD8a01 - DD - PR24-BP-tables-V7-Publish - SUBMISSION.xlsx | B11: No | C11: 7 | D11: =IF(Data!C11="","",Data!C11) -> SEW | E11: SEW_3 | F11: Power resilience (generators) | H11: 0 | I11: 0 | J11: 0 | K11: 0 | L11: 0 | M11: 0 | N11: 0 | O11: 0 | P11: 0 | Q11: 0 | R11: 0 | S11: 0 | T11: Rejected at DD: no company representation.
A12: SEWDD8a01 - DD - PR24-BP-tables-V7-Publish - SUBMISSION.xlsx | B12: Yes | C12: 8 | D12: =IF(Data!C12="","",Data!C12) -> SEW | E12: SEW_4 | F12: Transport offset (Electrifying fleet) | G12: Selected | H12: 1.6053696 | I12: 1.4698098 | J12: 1.9138482 | K12: 1.3374522 | L12: 1.8807588 | M12: 8.2072386 | N12: -181 | O12: -423 | P12: -707 | Q12: -888 | R12: -1371 | S12: -1371 | T12: Rejected at DD: company representation.
A13: 24 09 09 - SSC BPDTS.xlsx | B13: Yes | C13: 9 | D13: =IF(Data!C13="","",Data!C13) -> SSC | E13: SSC_CW21_1 | F13: Renewable electricity behind the meter assets | G13: Selected | H13: 0 | I13: 0 | J13: 1.75838524 | K13: 5.47838524 | L13: 0 | M13: 7.23677048 | N13: 0 | O13: 0 | P13: 0 | Q13: -297.262 | R13: -1551.262 | S13: -1551.262 | T13: Rejected at DD: company representation.
A14: 24 09 12 - SVE BPDTS.xlsx | B14: Yes | C14: 10 | D14: =IF(Data!C14="","",Data!C14) -> SVE | E14: NZ#1w | F14: EV Charging Infrastructure | G14: Selected | H14: 0 | I14: 0.88 | J14: 0 | K14: 0 | L14: 0 | M14: 0.88 | N14: 0 | O14: 0 | P14: -380.6 | Q14: -1141.8 | R14: -2283.6 | S14: -2283.6 | T14: Rejected at DD: company representation.
A15: 24 09 12 - SVE BPDTS.xlsx | B15: Yes | C15: 11 | D15: =IF(Data!C15="","",Data!C15) -> SVE | E15: NZ#2w | F15: Heat pumps | G15: Selected | H15: 8.064 | I15: 0 | J15: -0.073 | K15: -0.11 | L15: -0.11 | M15: 7.771 | N15: 0 | O15: 0 | P15: -465 | Q15: -1395 | R15: -2790 | S15: -2790 | T15: Rejected at DD: company representation.
A16: 24 09 12 - SVE BPDTS.xlsx | B16: Yes | C16: 12 | D16: =IF(Data!C16="","",Data!C16) -> SVE | E16: NZ#3w | F16: HVO diesel replacement | G16: Selected | H16: 0.331 | I16: 0 | J16: 0 | K16: 0 | L16: 0 | M16: 0.331 | N16: 0 | O16: 0 | P16: -693 | Q16: -2079 | R16: -4158 | S16: -4158 | T16: Rejected at DD: company representation.
A17: 24 09 12 - SVE BPDTS.xlsx | B17: Yes | C17: 13 | D17: =IF(Data!C17="","",Data!C17) -> SVE | E17: NZ#4w | F17: Hydrogen Production | G17: Feasible | H17: 0.55 | I17: 0.55 | J17: 0.29 | K17: 0.29 | L17: 0.29 | M17: 1.97 | N17: 0 | O17: 0 | P17: -985.6 | Q17: -1971.2 | R17: -2956.8 | S17: -2956.8 | T17: Rejected at DD: company representation.
A18: 24 09 12 - SVE BPDTS.xlsx | B18: Yes | C18: 14 | D18: =IF(Data!C18="","",Data!C18) -> SVE | E18: NZ#5w | F18: Electrical storage | G18: Feasible | H18: 1.21 | I18: 1.21 | J18: 0.706 | K18: 0.706 | L18: 0.706 | M18: 4.538 | N18: - | O18: - | P18: -40.15 | Q18: -80.3 | R18: -120.45 | S18: -120.45 | T18: Rejected at DD: company representation.
A19: 24 09 12 - SVE BPDTS.xlsx | B19: Yes | C19: 15 | D19: =IF(Data!C19="","",Data!C19) -> SVE | E19: NZ#6w | F19: EV fleet only | G19: Feasible | H19: 0.803 | I19: 0.803 | J19: 0.803 | K19: 0.803 | L19: 0.803 | M19: 4.015 | N19: 0 | O19: -381 | P19: -1142 | Q19: -2284 | R19: -3806 | S19: -3806 | T19: Rejected at DD: company representation.
A20: 24 09 12 - SVE BPDTS.xlsx | B20: Yes | C20: 16 | D20: =IF(Data!C20="","",Data!C20) -> SVE | E20: NZ#7w | F20: HVO fuel only | G20: Feasible | H20: 0.44 | I20: 0.44 | J20: 0.44 | K20: 0.44 | L20: 0.44 | M20: 2.2 | N20: -2776.4 | O20: -5552.8 | P20: -8329.2 | Q20: -11105.6 | R20: -13882 | S20: -13882 | T20: Rejected at DD: company representation.
A21: 24 09 12 - SVE BPDTS.xlsx | B21: Yes | C21: 17 | D21: =IF(Data!C21="","",Data!C21) -> SVE | E21: NZ#8w | F21: Solar PV | G21: Feasible | H21: 2.86 | I21: 2.86 | J21: -0.349 | K21: -0.349 | L21: -0.349 | M21: 4.673 | N21: 0 | O21: 0 | P21: -3208.788 | Q21: -6417.576 | R21: -9626.364 | S21: -9626.364 | T21: Rejected at DD: company representation.
A22: TMS-DD-002-PR24-Draft-Determination-Data-Tables.xlsb | B22: Yes | C22: 18 | D22: =IF(Data!C22="","",Data!C22) -> TMS | E22: CW21_1 | F22: S40840/2 (PR24 Fleet - Life expired Enhancement (cost to convert to electrical) (Water)) | G22: Feasible | H22: 4.478 | I22: 4.019 | J22: 3.151 | K22: 2.133 | L22: 0.093 | M22: 13.874 | N22: -808 | O22: -2100 | P22: -3847 | Q22: -6094 | R22: -8762 | S22: -8762 | T22: Rejected at DD: company representation.
A23: TMS-DD-002-PR24-Draft-Determination-Data-Tables.xlsb | B23: Yes | C23: 19 | D23: =IF(Data!C23="","",Data!C23) -> TMS | E23: CW21_2 | F23: S40142/2 (PR24 Hybrid air source heat pump/existing boiler for 4 corporate offices (Water)) | G23: Feasible | H23: 0.404 | I23: 0.354 | J23: -0.036 | K23: -0.024 | L23: -0.017 | M23: 0.681 | N23: -132.5 | O23: -397.52 | P23: -662.54 | Q23: -927.56 | R23: -1192.58 | S23: -1192.58 | T23: Rejected at DD: company representation.
A24: TMS-DD-002-PR24-Draft-Determination-Data-Tables.xlsb | B24: Yes | C24: 20 | D24: =IF(Data!C24="","",Data!C24) -> TMS | E24: CW21_3 | F24: S40144/2 (PR24 Air source heat pump for site office (enhancement cost) (Water)) | G24: Feasible | H24: 0.337 | I24: 0.35 | J24: 0.364 | K24: 0.378 | L24: 0.394 | M24: 1.823 | N24: -33.33 | O24: -100 | P24: -200.04 | Q24: -333.39 | R24: -500.06 | S24: -500.06 | T24: Rejected at DD: company representation.
A25: 24 09 16 - UUW BPDTS.xlsb | B25: Yes | C25: 21 | D25: =IF(Data!C25="","",Data!C25) -> NWT | E25: E00001340 | F25: Transport fossil fuel reductions - Green fleet LCVs phase 1 | G25: Selected | H25: 0.8343141865 | I25: 0.8672001729 | J25: 1.659081756 | K25: 0.979310011 | L25: -1.198969636 | M25: 3.140936491 | N25: -182 | O25: -774 | P25: -2050 | Q25: -4167 | R25: -6671 | S25: -6671 | T25: Rejected at DD: company representation.
A26: 24 09 16 - UUW BPDTS.xlsb | B26: No | C26: 22 | D26: =IF(Data!C26="","",Data!C26) -> NWT | E26: E00001341 | F26: Transport fossil fuel reductions - Green fleet LCVs phase 2 | H26: 0 | I26: 0 | J26: 0 | K26: 0 | L26: 0 | M26: 0 | N26: 0 | O26: 0 | P26: 0 | Q26: 0 | R26: 0 | S26: 0 | T26: Rejected at DD: no company representation.
A27: 24 09 16 - UUW BPDTS.xlsb | B27: Yes | C27: 23 | D27: =IF(Data!C27="","",Data!C27) -> NWT | E27: E00001344 | F27: Peatland restoration | G27: Selected | H27: 2.017522404 | I27: 5.542274159 | J27: 5.500926803 | K27: 5.587205871 | L27: 1.856696309 | M27: 20.50462555 | N27: 0 | O27: 0 | P27: 0 | Q27: 0 | R27: -13227 | S27: -13227 | T27: Rejected at DD: company representation.
A28: 24 09 16 - UUW BPDTS.xlsb | B28: Yes | C28: 24 | D28: =IF(Data!C28="","",Data!C28) -> NWT | E28: E00001345 | F28: Woodland creation | G28: Selected | H28: 0.8428173048 | I28: 0.8575102479 | J28: 0.8453230297 | K28: 0 | L28: 0 | M28: 2.545650582 | N28: 0 | O28: 0 | P28: -472.015 | Q28: -854.03 | R28: -1662.63 | S28: -1662.63 | T28: Rejected at DD: company representation.
A29: 24 09 16 - UUW BPDTS.xlsb | B29: No | C29: 25 | D29: =IF(Data!C29="","",Data!C29) -> NWT | E29: E00001346 | F29: Property emissions reductions | G29: Not defined | H29: 0 | I29: 0 | J29: 0 | K29: 0 | L29: 0 | M29: 0 | N29: 0 | O29: 0 | P29: 0 | Q29: 0 | R29: 0 | S29: 0 | T29: Rejected at DD: no company representation.
A30: 24 09 16 - UUW BPDTS.xlsb | B30: No | C30: 26 | D30: =IF(Data!C30="","",Data!C30) -> NWT | E30: E00001426 | F30: Phase 2 – Further low regrets emissions reductions in AMP8 | G30: Not defined | H30: 0 | I30: 0 | J30: 0 | K30: 0 | L30: 0 | M30: 0 | N30: 0 | O30: 0 | P30: 0 | Q30: 0 | R30: 0 | S30: 0 | T30: Rejected at DD: no company representation.
A31: WSH-DD-101 PR24 Business Plan tables V7_Amended 240917.xlsb | B31: Yes | C31: 27 | D31: =IF(Data!C31="","",Data!C31) -> WSH | E31: CW21_1 | F31: Net Zero Carbon Strategy: Network Control Systems (Water) | G31: Selected | H31: 0.131 | I31: 0.2934245112 | J31: 0.293619128 | K31: 0.309450201 | L31: 0.2620131213 | M31: 1.289506962 | N31: -50 | O31: -165 | P31: -285 | Q31: -400 | R31: -500 | S31: -500 | T31: Rejected at DD: company representation.
A32: WSH-DD-101 PR24 Business Plan tables V7_Amended 240917.xlsb | B32: Yes | C32: 28 | D32: =IF(Data!C32="","",Data!C32) -> WSH | E32: CW21_2 | F32: Net Zero Carbon Strategy: Carbon Work Package 6 (Peatland & Woodland Restoration) | G32: Selected | H32: 2.7374 | I32: 2.7374 | J32: 2.7374 | K32: 2.7374 | L32: 2.7374 | M32: 13.687 | N32: 0 | O32: 0 | P32: 0 | Q32: 0 | R32: 0 | S32: 0 | T32: Rejected at DD: company representation. | U32: AMP8 totex for Peatland Restoration is £13.69 million, provided by query response.
A33: WSX-D00a – August 2024 data tables v8. WORKING VERSION POST-DD 12.09.24.xlsx | B33: Yes | C33: 29 | D33: =IF(Data!C33="","",Data!C33) -> WSX | E33: CW21_1 | F33: Transport | G33: Selected | H33: 0.3947373392 | I33: 0.6348600598 | J33: 0.799849765 | K33: 0.8053945799 | L33: 0.4210920646 | M33: 3.055933809 | N33: -106 | O33: -317 | P33: -633 | Q33: -1056 | R33: -1584 | S33: -1584 | T33: Rejected at DD: company representation.
A34: YKY-PR24-DDR-85-Data-Tables-18Sept24_coastal.xlsb | B34: No | C34: 30 | D34: =IF(Data!C34="","",Data!C34) -> YKY | E34: CW21-1 | F34: Solar | G34: 0 | H34: 0 | I34: 0 | J34: 0 | K34: 0 | L34: 0 | M34: 0 | T34: Rejected at DD: no company representation.
A35: 24 09 12 - SVE BPDTS.xlsx | B35: Yes | C35: 31 | D35: SVE | F35: Transport PR24 | G35: Feasible | H35: 8.931 | I35: 10.231 | J35: 10.847 | K35: 12.331 | L35: 13.389 | M35: 55.729

Sheet Final data
A1: Final data
A4: Scheme resubmitted in DD | B4: Number | C4: Company | D4: Scheme ID | E4: Scheme name | F4: Selected or Feasible | G4: Totex 2025-26 | H4: Totex 2026-27 | I4: Totex 2027-28 | J4: Totex 2028-29 | K4: Totex 2029-30 | L4: AMP8 totex (£m, 2025-30) | M4: Carbon benefits (cumulated) 2025-26 | N4: Carbon benefits (cumulated) 2026-27 | O4: Carbon benefits (cumulated) 2027-28 | P4: Carbon benefits (cumulated) 2028-29 | Q4: Carbon benefits (cumulated) 2029-30 | R4: Scheme benefits (tCO2e cumulative, 2029-30) | S4: Unit cost over AMP8 (000£/tCO2e) | T4: Unit cost over AMP8 (£/tCO2e) | U4: Final Decision
A5: No | B5: 1 | C5: =IF(Override!D5<>"",Override!D5,Data!C5) -> ANH | D5: =IF(Override!E5<>"",Override!E5,Data!D5) -> CW21.1 | E5: =IF(Override!F5<>"",Override!F5,Data!E5) -> AMP8 Small Scale Solar Delivery WS | F5: =IF(Override!G5<>"",Override!G5,Data!F5) -> Not defined | G5: =IF(Override!H5<>"",Override!H5,Data!G5) -> 0 | H5: =IF(Override!I5<>"",Override!I5,Data!H5) -> 0 | I5: =IF(Override!J5<>"",Override!J5,Data!I5) -> 0 | J5: =IF(Override!K5<>"",Override!K5,Data!J5) -> 0 | K5: =IF(Override!L5<>"",Override!L5,Data!K5) -> 0 | L5: =IF(Override!M5<>"",Override!M5,Data!L5) -> 0 | M5: =IF(Override!N5<>"",Override!N5,Data!M5) -> 0 | N5: =IF(Override!O5<>"",Override!O5,Data!N5) -> 0 | O5: =IF(Override!P5<>"",Override!P5,Data!O5) -> 0 | P5: =IF(Override!Q5<>"",Override!Q5,Data!P5) -> 0 | Q5: =IF(Override!R5<>"",Override!R5,Data!Q5) -> 0 | R5: =IF(Override!S5<>"",Override!S5,Data!R5) -> 0 | S5: =IFERROR(((ABS(L5)*1000)/ABS(R5)),"-") -> - | T5: =IFERROR(S5*1000,"-") -> - | U5: =VLOOKUP(B5,'Phase 2'!B5:W34,22,FALSE) -> Fail
A6: No | B6: 2 | C6: =IF(Override!D6<>"",Override!D6,Data!C6) -> AFW | D6: =IF(Override!E6<>"",Override!E6,Data!D6) -> AFW_EV | E6: =IF(Override!F6<>"",Override!F6,Data!E6) -> Net Zero: Electric Vehicles | F6: =IF(Override!G6<>"",Override!G6,Data!F6) -> Not defined | G6: =IF(Override!H6<>"",Override!H6,Data!G6) -> 0 | H6: =IF(Override!I6<>"",Override!I6,Data!H6) -> 0 | I6: =IF(Override!J6<>"",Override!J6,Data!I6) -> 0 | J6: =IF(Override!K6<>"",Override!K6,Data!J6) -> 0 | K6: =IF(Override!L6<>"",Override!L6,Data!K6) -> 0 | L6: =IF(Override!M6<>"",Override!M6,Data!L6) -> 0 | M6: =IF(Override!N6<>"",Override!N6,Data!M6) -> 0 | N6: =IF(Override!O6<>"",Override!O6,Data!N6) -> 0 | O6: =IF(Override!P6<>"",Override!P6,Data!O6) -> 0 | P6: =IF(Override!Q6<>"",Override!Q6,Data!P6) -> 0 | Q6: =IF(Override!R6<>"",Override!R6,Data!Q6) -> 0 | R6: =IF(Override!S6<>"",Override!S6,Data!R6) -> 0 | S6: =IFERROR(((ABS(L6)*1000)/ABS(R6)),"-") -> - | T6: =IFERROR(S6*1000,"-") -> - | U6: =VLOOKUP(B6,'Phase 2'!B6:W35,22,FALSE) -> Fail
A7: Yes | B7: 3 | C7: =IF(Override!D7<>"",Override!D7,Data!C7) -> HDD | D7: =IF(Override!E7<>"",Override!E7,Data!D7) -> HDD_1 | E7: =IF(Override!F7<>"",Override!F7,Data!E7) -> Electric Vehicles & Low Carbon fuels transition | F7: Selected | G7: =IF(Override!H7<>"",Override!H7,Data!G7) -> 0.31151068 | H7: =IF(Override!I7<>"",Override!I7,Data!H7) -> 0.14764008 | I7: =IF(Override!J7<>"",Override!J7,Data!I7) -> 0.16868604 | J7: =IF(Override!K7<>"",Override!K7,Data!J7) -> 0.242762355 | K7: =IF(Override!L7<>"",Override!L7,Data!K7) -> 0.274815075 | L7: =IF(Override!M7<>"",Override!M7,Data!L7) -> 1.14541423 | M7: =IF(Override!N7<>"",Override!N7,Data!M7) -> -236.566 | N7: =IF(Override!O7<>"",Override!O7,Data!N7) -> -288.077 | O7: =IF(Override!P7<>"",Override!P7,Data!O7) -> -328.294 | P7: =IF(Override!Q7<>"",Override!Q7,Data!P7) -> -517.766 | Q7: =IF(Override!R7<>"",Override!R7,Data!Q7) -> -563.82 | R7: =IF(Override!S7<>"",Override!S7,Data!R7) -> -563.82 | S7: 2.031524653 | T7: =IFERROR(S7*1000,"-") -> 2031.524653 | U7: =VLOOKUP(B7,'Phase 2'!B7:W36,22,FALSE) -> Fail
A8: No | B8: 4 | C8: =IF(Override!D8<>"",Override!D8,Data!C8) -> HDD | D8: =IF(Override!E8<>"",Override!E8,Data!D8) -> HDD_2 | E8: =IF(Override!F8<>"",Override!F8,Data!E8) -> Heat Pump | F8: Selected | G8: =IF(Override!H8<>"",Override!H8,Data!G8) -> 0 | H8: =IF(Override!I8<>"",Override!I8,Data!H8) -> 0 | I8: =IF(Override!J8<>"",Override!J8,Data!I8) -> 0 | J8: =IF(Override!K8<>"",Override!K8,Data!J8) -> 0 | K8: =IF(Override!L8<>"",Override!L8,Data!K8) -> 0 | L8: =IF(Override!M8<>"",Override!M8,Data!L8) -> 0 | M8: =IF(Override!N8<>"",Override!N8,Data!M8) -> 0 | N8: =IF(Override!O8<>"",Override!O8,Data!N8) -> 0 | O8: =IF(Override!P8<>"",Override!P8,Data!O8) -> 0 | P8: =IF(Override!Q8<>"",Override!Q8,Data!P8) -> 0 | Q8: =IF(Override!R8<>"",Override!R8,Data!Q8) -> 0 | R8: =IF(Override!S8<>"",Override!S8,Data!R8) -> 0 | S8: - | T8: - | U8: =VLOOKUP(B8,'Phase 2'!B8:W37,22,FALSE) -> Fail
A9: Yes | B9: 5 | C9: =IF(Override!D9<>"",Override!D9,Data!C9) -> SEW | D9: =IF(Override!E9<>"",Override!E9,Data!D9) -> SEW_1 | E9: =IF(Override!F9<>"",Override!F9,Data!E9) -> Ozone upgrade at Barcombe | F9: =IF(Override!G9<>"",Override!G9,Data!F9) -> Selected | G9: =IF(Override!H9<>"",Override!H9,Data!G9) -> 0.1534533547 | H9: =IF(Override!I9<>"",Override!I9,Data!H9) -> 0.3989787222 | I9: =IF(Override!J9<>"",Override!J9,Data!I9) -> 1.258317509 | J9: =IF(Override!K9<>"",Override!K9,Data!J9) -> 1.258317509 | K9: =IF(Override!L9<>"",Override!L9,Data!K9) -> 0.09930133 | L9: =IF(Override!M9<>"",Override!M9,Data!L9) -> 3.168368424 | M9: =IF(Override!N9<>"",Override!N9,Data!M9) -> 0 | N9: =IF(Override!O9<>"",Override!O9,Data!N9) -> 0 | O9: =IF(Override!P9<>"",Override!P9,Data!O9) -> 0 | P9: =IF(Override!Q9<>"",Override!Q9,Data!P9) -> 0 | Q9: =IF(Override!R9<>"",Override!R9,Data!Q9) -> -573 | R9: =IF(Override!S9<>"",Override!S9,Data!R9) -> -573 | S9: 5.529438785 | T9: 5529.438785 | U9: =VLOOKUP(B9,'Phase 2'!B9:W38,22,FALSE) -> Fail
A10: Yes | B10: 6 | C10: =IF(Override!D10<>"",Override!D10,Data!C10) -> SEW | D10: =IF(Override!E10<>"",Override!E10,Data!D10) -> SEW_2 | E10: =IF(Override!F10<>"",Override!F10,Data!E10) -> Ozone upgrade at Arlington | F10: =IF(Override!G10<>"",Override!G10,Data!F10) -> Selected | G10: =IF(Override!H10<>"",Override!H10,Data!G10) -> 0.05923061787 | H10: =IF(Override!I10<>"",Override!I10,Data!H10) -> 0.1539996065 | I10: =IF(Override!J10<>"",Override!J10,Data!I10) -> 0.4856910666 | J10: =IF(Override!K10<>"",Override!K10,Data!J10) -> 0.4856910666 | K10: =IF(Override!L10<>"",Override!L10,Data!K10) -> 0.03580684 | L10: =IF(Override!M10<>"",Override!M10,Data!L10) -> 1.220419197 | M10: =IF(Override!N10<>"",Override!N10,Data!M10) -> 0 | N10: =IF(Override!O10<>"",Override!O10,Data!N10) -> 0 | O10: =IF(Override!P10<>"",Override!P10,Data!O10) -> 0 | P10: =IF(Override!Q10<>"",Override!Q10,Data!P10) -> 0 | Q10: =IF(Override!R10<>"",Override!R10,Data!Q10) -> -114 | R10: =IF(Override!S10<>"",Override!S10,Data!R10) -> -114 | S10: 10.70543156 | T10: 10705.43156 | U10: =VLOOKUP(B10,'Phase 2'!B10:W39,22,FALSE) -> Fail
A11: No | B11: 7 | C11: =IF(Override!D11<>"",Override!D11,Data!C11) -> SEW | D11: =IF(Override!E11<>"",Override!E11,Data!D11) -> SEW_3 | E11: =IF(Override!F11<>"",Override!F11,Data!E11) -> Power resilience (generators) | F11: =IF(Override!G11<>"",Override!G11,Data!F11) -> Selected | G11: =IF(Override!H11<>"",Override!H11,Data!G11) -> 0 | H11: =IF(Override!I11<>"",Override!I11,Data!H11) -> 0 | I11: =IF(Override!J11<>"",Override!J11,Data!I11) -> 0 | J11: =IF(Override!K11<>"",Override!K11,Data!J11) -> 0 | K11: =IF(Override!L11<>"",Override!L11,Data!K11) -> 0 | L11: =IF(Override!M11<>"",Override!M11,Data!L11) -> 0 | M11: =IF(Override!N11<>"",Override!N11,Data!M11) -> 0 | N11: =IF(Override!O11<>"",Override!O11,Data!N11) -> 0 | O11: =IF(Override!P11<>"",Override!P11,Data!O11) -> 0 | P11: =IF(Override!Q11<>"",Override!Q11,Data!P11) -> 0 | Q11: =IF(Override!R11<>"",Override!R11,Data!Q11) -> 0 | R11: =IF(Override!S11<>"",Override!S11,Data!R11) -> 0 | S11: - | T11: - | U11: =VLOOKUP(B11,'Phase 2'!B11:W40,22,FALSE) -> Fail
A12: Yes | B12: 8 | C12: =IF(Override!D12<>"",Override!D12,Data!C12) -> SEW | D12: =IF(Override!E12<>"",Override!E12,Data!D12) -> SEW_4 | E12: =IF(Override!F12<>"",Override!F12,Data!E12) -> Transport offset (Electrifying fleet) | F12: =IF(Override!G12<>"",Override!G12,Data!F12) -> Selected | G12: =IF(Override!H12<>"",Override!H12,Data!G12) -> 1.6053696 | H12: =IF(Override!I12<>"",Override!I12,Data!H12) -> 1.4698098 | I12: =IF(Override!J12<>"",Override!J12,Data!I12) -> 1.9138482 | J12: =IF(Override!K12<>"",Override!K12,Data!J12) -> 1.3374522 | K12: =IF(Override!L12<>"",Override!L12,Data!K12) -> 1.8807588 | L12: =IF(Override!M12<>"",Override!M12,Data!L12) -> 8.2072386 | M12: =IF(Override!N12<>"",Override!N12,Data!M12) -> -181 | N12: =IF(Override!O12<>"",Override!O12,Data!N12) -> -423 | O12: =IF(Override!P12<>"",Override!P12,Data!O12) -> -707 | P12: =IF(Override!Q12<>"",Override!Q12,Data!P12) -> -888 | Q12: =IF(Override!R12<>"",Override!R12,Data!Q12) -> -1371 | R12: =IF(Override!S12<>"",Override!S12,Data!R12) -> -1371 | S12: 5.986315536 | T12: 5986.315536 | U12: =VLOOKUP(B12,'Phase 2'!B12:W41,22,FALSE) -> Fail
A13: Yes | B13: 9 | C13: =IF(Override!D13<>"",Override!D13,Data!C13) -> SSC | D13: =IF(Override!E13<>"",Override!E13,Data!D13) -> SSC_CW21_1 | E13: =IF(Override!F13<>"",Override!F13,Data!E13) -> Renewable electricity behind the meter assets | F13: =IF(Override!G13<>"",Override!G13,Data!F13) -> Selected | G13: =IF(Override!H13<>"",Override!H13,Data!G13) -> 0 | H13: =IF(Override!I13<>"",Override!I13,Data!H13) -> 0 | I13: =IF(Override!J13<>"",Override!J13,Data!I13) -> 1.75838524 | J13: =IF(Override!K13<>"",Override!K13,Data!J13) -> 5.47838524 | K13: =IF(Override!L13<>"",Override!L13,Data!K13) -> 0 | L13: =IF(Override!M13<>"",Override!M13,Data!L13) -> 7.23677048 | M13: =IF(Override!N13<>"",Override!N13,Data!M13) -> 0 | N13: =IF(Override!O13<>"",Override!O13,Data!N13) -> 0 | O13: =IF(Override!P13<>"",Override!P13,Data!O13) -> 0 | P13: =IF(Override!Q13<>"",Override!Q13,Data!P13) -> -297.262 | Q13: =IF(Override!R13<>"",Override!R13,Data!Q13) -> -1551.262 | R13: =IF(Override!S13<>"",Override!S13,Data!R13) -> -1551.262 | S13: 4.665085898 | T13: 4665.085898 | U13: =VLOOKUP(B13,'Phase 2'!B13:W42,22,FALSE) -> Fail
A14: Yes | B14: 10 | C14: =IF(Override!D14<>"",Override!D14,Data!C14) -> SVE | D14: =IF(Override!E14<>"",Override!E14,Data!D14) -> NZ#1w | E14: =IF(Override!F14<>"",Override!F14,Data!E14) -> EV Charging Infrastructure | F14: =IF(Override!G14<>"",Override!G14,Data!F14) -> Selected | G14: =IF(Override!H14<>"",Override!H14,Data!G14) -> 0 | H14: =IF(Override!I14<>"",Override!I14,Data!H14) -> 0.88 | I14: =IF(Override!J14<>"",Override!J14,Data!I14) -> 0 | J14: =IF(Override!K14<>"",Override!K14,Data!J14) -> 0 | K14: =IF(Override!L14<>"",Override!L14,Data!K14) -> 0 | L14: =IF(Override!M14<>"",Override!M14,Data!L14) -> 0.88 | M14: =IF(Override!N14<>"",Override!N14,Data!M14) -> 0 | N14: =IF(Override!O14<>"",Override!O14,Data!N14) -> 0 | O14: =IF(Override!P14<>"",Override!P14,Data!O14) -> -380.6 | P14: =IF(Override!Q14<>"",Override!Q14,Data!P14) -> -1141.8 | Q14: =IF(Override!R14<>"",Override!R14,Data!Q14) -> -2283.6 | R14: =IF(Override!S14<>"",Override!S14,Data!R14) -> -2283.6 | S14: 0.3853564547 | T14: 385.3564547 | U14: =VLOOKUP(B14,'Phase 2'!B14:W43,22,FALSE) -> Fail
A15: Yes | B15: 11 | C15: =IF(Override!D15<>"",Override!D15,Data!C15) -> SVE | D15: =IF(Override!E15<>"",Override!E15,Data!D15) -> NZ#2w | E15: =IF(Override!F15<>"",Override!F15,Data!E15) -> Heat pumps | F15: =IF(Override!G15<>"",Override!G15,Data!F15) -> Selected | G15: =IF(Override!H15<>"",Override!H15,Data!G15) -> 8.064 | H15: =IF(Override!I15<>"",Override!I15,Data!H15) -> 0 | I15: =IF(Override!J15<>"",Override!J15,Data!I15) -> -0.073 | J15: =IF(Override!K15<>"",Override!K15,Data!J15) -> -0.11 | K15: =IF(Override!L15<>"",Override!L15,Data!K15) -> -0.11 | L15: =IF(Override!M15<>"",Override!M15,Data!L15) -> 7.771 | M15: =IF(Override!N15<>"",Override!N15,Data!M15) -> 0 | N15: =IF(Override!O15<>"",Override!O15,Data!N15) -> 0 | O15: =IF(Override!P15<>"",Override!P15,Data!O15) -> -465 | P15: =IF(Override!Q15<>"",Override!Q15,Data!P15) -> -1395 | Q15: =IF(Override!R15<>"",Override!R15,Data!Q15) -> -2790 | R15: =IF(Override!S15<>"",Override!S15,Data!R15) -> -2790 | S15: 2.785304659 | T15: 2785.304659 | U15: =VLOOKUP(B15,'Phase 2'!B15:W44,22,FALSE) -> Fail
A16: Yes | B16: 12 | C16: =IF(Override!D16<>"",Override!D16,Data!C16) -> SVE | D16: =IF(Override!E16<>"",Override!E16,Data!D16) -> NZ#3w | E16: =IF(Override!F16<>"",Override!F16,Data!E16) -> HVO diesel replacement | F16: =IF(Override!G16<>"",Override!G16,Data!F16) -> Selected | G16: =IF(Override!H16<>"",Override!H16,Data!G16) -> 0.331 | H16: =IF(Override!I16<>"",Override!I16,Data!H16) -> 0 | I16: =IF(Override!J16<>"",Override!J16,Data!I16) -> 0 | J16: =IF(Override!K16<>"",Override!K16,Data!J16) -> 0 | K16: =IF(Override!L16<>"",Override!L16,Data!K16) -> 0 | L16: =IF(Override!M16<>"",Override!M16,Data!L16) -> 0.331 | M16: =IF(Override!N16<>"",Override!N16,Data!M16) -> 0 | N16: =IF(Override!O16<>"",Override!O16,Data!N16) -> 0 | O16: =IF(Override!P16<>"",Override!P16,Data!O16) -> -693 | P16: =IF(Override!Q16<>"",Override!Q16,Data!P16) -> -2079 | Q16: =IF(Override!R16<>"",Override!R16,Data!Q16) -> -4158 | R16: =IF(Override!S16<>"",Override!S16,Data!R16) -> -4158 | S16: 0.07960557961 | T16: 79.60557961 | U16: =VLOOKUP(B16,'Phase 2'!B16:W45,22,FALSE) -> Fail
A17: Yes | B17: 13 | C17: =IF(Override!D17<>"",Override!D17,Data!C17) -> SVE | D17: =IF(Override!E17<>"",Override!E17,Data!D17) -> NZ#4w | E17: =IF(Override!F17<>"",Override!F17,Data!E17) -> Hydrogen Production | F17: =IF(Override!G17<>"",Override!G17,Data!F17) -> Feasible | G17: =IF(Override!H17<>"",Override!H17,Data!G17) -> 0.55 | H17: =IF(Override!I17<>"",Override!I17,Data!H17) -> 0.55 | I17: =IF(Override!J17<>"",Override!J17,Data!I17) -> 0.29 | J17: =IF(Override!K17<>"",Override!K17,Data!J17) -> 0.29 | K17: =IF(Override!L17<>"",Override!L17,Data!K17) -> 0.29 | L17: =IF(Override!M17<>"",Override!M17,Data!L17) -> 1.97 | M17: =IF(Override!N17<>"",Override!N17,Data!M17) -> 0 | N17: =IF(Override!O17<>"",Override!O17,Data!N17) -> 0 | O17: =IF(Override!P17<>"",Override!P17,Data!O17) -> -985.6 | P17: =IF(Override!Q17<>"",Override!Q17,Data!P17) -> -1971.2 | Q17: =IF(Override!R17<>"",Override!R17,Data!Q17) -> -2956.8 | R17: =IF(Override!S17<>"",Override!S17,Data!R17) -> -2956.8 | S17: 0.6662608225 | T17: 666.2608225 | U17: =VLOOKUP(B17,'Phase 2'!B17:W46,22,FALSE) -> Fail
A18: Yes | B18: 14 | C18: =IF(Override!D18<>"",Override!D18,Data!C18) -> SVE | D18: =IF(Override!E18<>"",Override!E18,Data!D18) -> NZ#5w | E18: =IF(Override!F18<>"",Override!F18,Data!E18) -> Electrical storage | F18: =IF(Override!G18<>"",Override!G18,Data!F18) -> Feasible | G18: =IF(Override!H18<>"",Override!H18,Data!G18) -> 1.21 | H18: =IF(Override!I18<>"",Override!I18,Data!H18) -> 1.21 | I18: =IF(Override!J18<>"",Override!J18,Data!I18) -> 0.706 | J18: =IF(Override!K18<>"",Override!K18,Data!J18) -> 0.706 | K18: =IF(Override!L18<>"",Override!L18,Data!K18) -> 0.706 | L18: =IF(Override!M18<>"",Override!M18,Data!L18) -> 4.538 | M18: =IF(Override!N18<>"",Override!N18,Data!M18) -> - | N18: =IF(Override!O18<>"",Override!O18,Data!N18) -> - | O18: =IF(Override!P18<>"",Override!P18,Data!O18) -> -40.15 | P18: =IF(Override!Q18<>"",Override!Q18,Data!P18) -> -80.3 | Q18: =IF(Override!R18<>"",Override!R18,Data!Q18) -> -120.45 | R18: =IF(Override!S18<>"",Override!S18,Data!R18) -> -120.45 | S18: 37.67538398 | T18: 37675.38398 | U18: =VLOOKUP(B18,'Phase 2'!B18:W47,22,FALSE) -> Fail
A19: Yes | B19: 15 | C19: =IF(Override!D19<>"",Override!D19,Data!C19) -> SVE | D19: =IF(Override!E19<>"",Override!E19,Data!D19) -> NZ#6w | E19: =IF(Override!F19<>"",Override!F19,Data!E19) -> EV fleet only | F19: =IF(Override!G19<>"",Override!G19,Data!F19) -> Feasible | G19: =IF(Override!H19<>"",Override!H19,Data!G19) -> 0.803 | H19: =IF(Override!I19<>"",Override!I19,Data!H19) -> 0.803 | I19: =IF(Override!J19<>"",Override!J19,Data!I19) -> 0.803 | J19: =IF(Override!K19<>"",Override!K19,Data!J19) -> 0.803 | K19: =IF(Override!L19<>"",Override!L19,Data!K19) -> 0.803 | L19: =IF(Override!M19<>"",Override!M19,Data!L19) -> 4.015 | M19: =IF(Override!N19<>"",Override!N19,Data!M19) -> 0 | N19: =IF(Override!O19<>"",Override!O19,Data!N19) -> -381 | O19: =IF(Override!P19<>"",Override!P19,Data!O19) -> -1142 | P19: =IF(Override!Q19<>"",Override!Q19,Data!P19) -> -2284 | Q19: =IF(Override!R19<>"",Override!R19,Data!Q19) -> -3806 | R19: =IF(Override!S19<>"",Override!S19,Data!R19) -> -3806 | S19: 1.054913295 | T19: 1054.913295 | U19: =VLOOKUP(B19,'Phase 2'!B19:W48,22,FALSE) -> Fail
A20: Yes | B20: 16 | C20: =IF(Override!D20<>"",Override!D20,Data!C20) -> SVE | D20: =IF(Override!E20<>"",Override!E20,Data!D20) -> NZ#7w | E20: =IF(Override!F20<>"",Override!F20,Data!E20) -> HVO fuel only | F20: =IF(Override!G20<>"",Override!G20,Data!F20) -> Feasible | G20: =IF(Override!H20<>"",Override!H20,Data!G20) -> 0.44 | H20: =IF(Override!I20<>"",Override!I20,Data!H20) -> 0.44 | I20: =IF(Override!J20<>"",Override!J20,Data!I20) -> 0.44 | J20: =IF(Override!K20<>"",Override!K20,Data!J20) -> 0.44 | K20: =IF(Override!L20<>"",Override!L20,Data!K20) -> 0.44 | L20: =IF(Override!M20<>"",Override!M20,Data!L20) -> 2.2 | M20: =IF(Override!N20<>"",Override!N20,Data!M20) -> -2776.4 | N20: =IF(Override!O20<>"",Override!O20,Data!N20) -> -5552.8 | O20: =IF(Override!P20<>"",Override!P20,Data!O20) -> -8329.2 | P20: =IF(Override!Q20<>"",Override!Q20,Data!P20) -> -11105.6 | Q20: =IF(Override!R20<>"",Override!R20,Data!Q20) -> -13882 | R20: =IF(Override!S20<>"",Override!S20,Data!R20) -> -13882 | S20: 0.1584786054 | T20: 158.4786054 | U20: =VLOOKUP(B20,'Phase 2'!B20:W49,22,FALSE) -> Fail
A21: Yes | B21: 17 | C21: =IF(Override!D21<>"",Override!D21,Data!C21) -> SVE | D21: =IF(Override!E21<>"",Override!E21,Data!D21) -> NZ#8w | E21: =IF(Override!F21<>"",Override!F21,Data!E21) -> Solar PV | F21: =IF(Override!G21<>"",Override!G21,Data!F21) -> Feasible | G21: =IF(Override!H21<>"",Override!H21,Data!G21) -> 2.86 | H21: =IF(Override!I21<>"",Override!I21,Data!H21) -> 2.86 | I21: =IF(Override!J21<>"",Override!J21,Data!I21) -> -0.349 | J21: =IF(Override!K21<>"",Override!K21,Data!J21) -> -0.349 | K21: =IF(Override!L21<>"",Override!L21,Data!K21) -> -0.349 | L21: =IF(Override!M21<>"",Override!M21,Data!L21) -> 4.673 | M21: =IF(Override!N21<>"",Override!N21,Data!M21) -> 0 | N21: =IF(Override!O21<>"",Override!O21,Data!N21) -> 0 | O21: =IF(Override!P21<>"",Override!P21,Data!O21) -> -3208.788 | P21: =IF(Override!Q21<>"",Override!Q21,Data!P21) -> -6417.576 | Q21: =IF(Override!R21<>"",Override!R21,Data!Q21) -> -9626.364 | R21: =IF(Override!S21<>"",Override!S21,Data!R21) -> -9626.364 | S21: 0.4854377 | T21: 485.4377 | U21: =VLOOKUP(B21,'Phase 2'!B21:W50,22,FALSE) -> Fail
A22: Yes | B22: 18 | C22: =IF(Override!D22<>"",Override!D22,Data!C22) -> TMS | D22: =IF(Override!E22<>"",Override!E22,Data!D22) -> CW21_1 | E22: =IF(Override!F22<>"",Override!F22,Data!E22) -> S40840/2 (PR24 Fleet - Life expired Enhancement (cost to convert to electrical) (Water)) | F22: =IF(Override!G22<>"",Override!G22,Data!F22) -> Feasible | G22: =IF(Override!H22<>"",Override!H22,Data!G22) -> 4.478 | H22: =IF(Override!I22<>"",Override!I22,Data!H22) -> 4.019 | I22: =IF(Override!J22<>"",Override!J22,Data!I22) -> 3.151 | J22: =IF(Override!K22<>"",Override!K22,Data!J22) -> 2.133 | K22: =IF(Override!L22<>"",Override!L22,Data!K22) -> 0.093 | L22: =IF(Override!M22<>"",Override!M22,Data!L22) -> 13.874 | M22: =IF(Override!N22<>"",Override!N22,Data!M22) -> -808 | N22: =IF(Override!O22<>"",Override!O22,Data!N22) -> -2100 | O22: =IF(Override!P22<>"",Override!P22,Data!O22) -> -3847 | P22: =IF(Override!Q22<>"",Override!Q22,Data!P22) -> -6094 | Q22: =IF(Override!R22<>"",Override!R22,Data!Q22) -> -8762 | R22: =IF(Override!S22<>"",Override!S22,Data!R22) -> -8762 | S22: 1.583428441 | T22: 1583.428441 | U22: =VLOOKUP(B22,'Phase 2'!B22:W51,22,FALSE) -> Fail
A23: Yes | B23: 19 | C23: =IF(Override!D23<>"",Override!D23,Data!C23) -> TMS | D23: =IF(Override!E23<>"",Override!E23,Data!D23) -> CW21_2 | E23: =IF(Override!F23<>"",Override!F23,Data!E23) -> S40142/2 (PR24 Hybrid air source heat pump/existing boiler for 4 corporate offices (Water)) | F23: =IF(Override!G23<>"",Override!G23,Data!F23) -> Feasible | G23: =IF(Override!H23<>"",Override!H23,Data!G23) -> 0.404 | H23: =IF(Override!I23<>"",Override!I23,Data!H23) -> 0.354 | I23: =IF(Override!J23<>"",Override!J23,Data!I23) -> -0.036 | J23: =IF(Override!K23<>"",Override!K23,Data!J23) -> -0.024 | K23: =IF(Override!L23<>"",Override!L23,Data!K23) -> -0.017 | L23: =IF(Override!M23<>"",Override!M23,Data!L23) -> 0.681 | M23: =IF(Override!N23<>"",Override!N23,Data!M23) -> -132.5 | N23: =IF(Override!O23<>"",Override!O23,Data!N23) -> -397.52 | O23: =IF(Override!P23<>"",Override!P23,Data!O23) -> -662.54 | P23: =IF(Override!Q23<>"",Override!Q23,Data!P23) -> -927.56 | Q23: =IF(Override!R23<>"",Override!R23,Data!Q23) -> -1192.58 | R23: =IF(Override!S23<>"",Override!S23,Data!R23) -> -1192.58 | S23: 0.5710308742 | T23: 571.0308742 | U23: =VLOOKUP(B23,'Phase 2'!B23:W52,22,FALSE) -> Fail
A24: Yes | B24: 20 | C24: =IF(Override!D24<>"",Override!D24,Data!C24) -> TMS | D24: =IF(Override!E24<>"",Override!E24,Data!D24) -> CW21_3 | E24: =IF(Override!F24<>"",Override!F24,Data!E24) -> S40144/2 (PR24 Air source heat pump for site office (enhancement cost) (Water)) | F24: =IF(Override!G24<>"",Override!G24,Data!F24) -> Feasible | G24: =IF(Override!H24<>"",Override!H24,Data!G24) -> 0.337 | H24: =IF(Override!I24<>"",Override!I24,Data!H24) -> 0.35 | I24: =IF(Override!J24<>"",Override!J24,Data!I24) -> 0.364 | J24: =IF(Override!K24<>"",Override!K24,Data!J24) -> 0.378 | K24: =IF(Override!L24<>"",Override!L24,Data!K24) -> 0.394 | L24: =IF(Override!M24<>"",Override!M24,Data!L24) -> 1.823 | M24: =IF(Override!N24<>"",Override!N24,Data!M24) -> -33.33 | N24: =IF(Override!O24<>"",Override!O24,Data!N24) -> -100 | O24: =IF(Override!P24<>"",Override!P24,Data!O24) -> -200.04 | P24: =IF(Override!Q24<>"",Override!Q24,Data!P24) -> -333.39 | Q24: =IF(Override!R24<>"",Override!R24,Data!Q24) -> -500.06 | R24: =IF(Override!S24<>"",Override!S24,Data!R24) -> -500.06 | S24: 3.645562532 | T24: 3645.562532 | U24: =VLOOKUP(B24,'Phase 2'!B24:W53,22,FALSE) -> Fail
A25: Yes | B25: 21 | C25: =IF(Override!D25<>"",Override!D25,Data!C25) -> NWT | D25: =IF(Override!E25<>"",Override!E25,Data!D25) -> E00001340 | E25: =IF(Override!F25<>"",Override!F25,Data!E25) -> Transport fossil fuel reductions - Green fleet LCVs phase 1 | F25: =IF(Override!G25<>"",Override!G25,Data!F25) -> Selected | G25: =IF(Override!H25<>"",Override!H25,Data!G25) -> 0.8343141865 | H25: =IF(Override!I25<>"",Override!I25,Data!H25) -> 0.8672001729 | I25: =IF(Override!J25<>"",Override!J25,Data!I25) -> 1.659081756 | J25: =IF(Override!K25<>"",Override!K25,Data!J25) -> 0.979310011 | K25: =IF(Override!L25<>"",Override!L25,Data!K25) -> -1.198969636 | L25: =IF(Override!M25<>"",Override!M25,Data!L25) -> 3.140936491 | M25: =IF(Override!N25<>"",Override!N25,Data!M25) -> -182 | N25: =IF(Override!O25<>"",Override!O25,Data!N25) -> -774 | O25: =IF(Override!P25<>"",Override!P25,Data!O25) -> -2050 | P25: =IF(Override!Q25<>"",Override!Q25,Data!P25) -> -4167 | Q25: =IF(Override!R25<>"",Override!R25,Data!Q25) -> -6671 | R25: =IF(Override!S25<>"",Override!S25,Data!R25) -> -6671 | S25: 0.4708344312 | T25: 470.8344312 | U25: =VLOOKUP(B25,'Phase 2'!B25:W54,22,FALSE) -> Fail
A26: No | B26: 22 | C26: =IF(Override!D26<>"",Override!D26,Data!C26) -> NWT | D26: =IF(Override!E26<>"",Override!E26,Data!D26) -> E00001341 | E26: =IF(Override!F26<>"",Override!F26,Data!E26) -> Transport fossil fuel reductions - Green fleet LCVs phase 2 | F26: =IF(Override!G26<>"",Override!G26,Data!F26) -> Selected | G26: =IF(Override!H26<>"",Override!H26,Data!G26) -> 0 | H26: =IF(Override!I26<>"",Override!I26,Data!H26) -> 0 | I26: =IF(Override!J26<>"",Override!J26,Data!I26) -> 0 | J26: =IF(Override!K26<>"",Override!K26,Data!J26) -> 0 | K26: =IF(Override!L26<>"",Override!L26,Data!K26) -> 0 | L26: =IF(Override!M26<>"",Override!M26,Data!L26) -> 0 | M26: =IF(Override!N26<>"",Override!N26,Data!M26) -> 0 | N26: =IF(Override!O26<>"",Override!O26,Data!N26) -> 0 | O26: =IF(Override!P26<>"",Override!P26,Data!O26) -> 0 | P26: =IF(Override!Q26<>"",Override!Q26,Data!P26) -> 0 | Q26: =IF(Override!R26<>"",Override!R26,Data!Q26) -> 0 | R26: =IF(Override!S26<>"",Override!S26,Data!R26) -> 0 | S26: - | T26: - | U26: =VLOOKUP(B26,'Phase 2'!B26:W55,22,FALSE) -> Fail
A27: Yes | B27: 23 | C27: =IF(Override!D27<>"",Override!D27,Data!C27) -> NWT | D27: =IF(Override!E27<>"",Override!E27,Data!D27) -> E00001344 | E27: =IF(Override!F27<>"",Override!F27,Data!E27) -> Peatland restoration | F27: =IF(Override!G27<>"",Override!G27,Data!F27) -> Selected | G27: =IF(Override!H27<>"",Override!H27,Data!G27) -> 2.017522404 | H27: =IF(Override!I27<>"",Override!I27,Data!H27) -> 5.542274159 | I27: =IF(Override!J27<>"",Override!J27,Data!I27) -> 5.500926803 | J27: =IF(Override!K27<>"",Override!K27,Data!J27) -> 5.587205871 | K27: =IF(Override!L27<>"",Override!L27,Data!K27) -> 1.856696309 | L27: =IF(Override!M27<>"",Override!M27,Data!L27) -> 20.50462555 | M27: =IF(Override!N27<>"",Override!N27,Data!M27) -> 0 | N27: =IF(Override!O27<>"",Override!O27,Data!N27) -> 0 | O27: =IF(Override!P27<>"",Override!P27,Data!O27) -> 0 | P27: =IF(Override!Q27<>"",Override!Q27,Data!P27) -> 0 | Q27: =IF(Override!R27<>"",Override!R27,Data!Q27) -> -13227 | R27: =IF(Override!S27<>"",Override!S27,Data!R27) -> -13227 | S27: 1.550209839 | T27: 1550.209839 | U27: =VLOOKUP(B27,'Phase 2'!B27:W56,22,FALSE) -> Pass
A28: Yes | B28: 24 | C28: =IF(Override!D28<>"",Override!D28,Data!C28) -> NWT | D28: =IF(Override!E28<>"",Override!E28,Data!D28) -> E00001345 | E28: =IF(Override!F28<>"",Override!F28,Data!E28) -> Woodland creation | F28: =IF(Override!G28<>"",Override!G28,Data!F28) -> Selected | G28: =IF(Override!H28<>"",Override!H28,Data!G28) -> 0.8428173048 | H28: =IF(Override!I28<>"",Override!I28,Data!H28) -> 0.8575102479 | I28: =IF(Override!J28<>"",Override!J28,Data!I28) -> 0.8453230297 | J28: =IF(Override!K28<>"",Override!K28,Data!J28) -> 0 | K28: =IF(Override!L28<>"",Override!L28,Data!K28) -> 0 | L28: =IF(Override!M28<>"",Override!M28,Data!L28) -> 2.545650582 | M28: =IF(Override!N28<>"",Override!N28,Data!M28) -> 0 | N28: =IF(Override!O28<>"",Override!O28,Data!N28) -> 0 | O28: =IF(Override!P28<>"",Override!P28,Data!O28) -> -472.015 | P28: =IF(Override!Q28<>"",Override!Q28,Data!P28) -> -854.03 | Q28: =IF(Override!R28<>"",Override!R28,Data!Q28) -> -1662.63 | R28: =IF(Override!S28<>"",Override!S28,Data!R28) -> -1662.63 | S28: 1.53109867 | T28: 1531.09867 | U28: =VLOOKUP(B28,'Phase 2'!B28:W57,22,FALSE) -> Fail
A29: No | B29: 25 | C29: =IF(Override!D29<>"",Override!D29,Data!C29) -> NWT | D29: =IF(Override!E29<>"",Override!E29,Data!D29) -> E00001346 | E29: =IF(Override!F29<>"",Override!F29,Data!E29) -> Property emissions reductions | F29: =IF(Override!G29<>"",Override!G29,Data!F29) -> Not defined | G29: =IF(Override!H29<>"",Override!H29,Data!G29) -> 0 | H29: =IF(Override!I29<>"",Override!I29,Data!H29) -> 0 | I29: =IF(Override!J29<>"",Override!J29,Data!I29) -> 0 | J29: =IF(Override!K29<>"",Override!K29,Data!J29) -> 0 | K29: =IF(Override!L29<>"",Override!L29,Data!K29) -> 0 | L29: =IF(Override!M29<>"",Override!M29,Data!L29) -> 0 | M29: =IF(Override!N29<>"",Override!N29,Data!M29) -> 0 | N29: =IF(Override!O29<>"",Override!O29,Data!N29) -> 0 | O29: =IF(Override!P29<>"",Override!P29,Data!O29) -> 0 | P29: =IF(Override!Q29<>"",Override!Q29,Data!P29) -> 0 | Q29: =IF(Override!R29<>"",Override!R29,Data!Q29) -> 0 | R29: =IF(Override!S29<>"",Override!S29,Data!R29) -> 0 | S29: - | T29: - | U29: =VLOOKUP(B29,'Phase 2'!B29:W58,22,FALSE) -> Fail
A30: No | B30: 26 | C30: =IF(Override!D30<>"",Override!D30,Data!C30) -> NWT | D30: =IF(Override!E30<>"",Override!E30,Data!D30) -> E00001426 | E30: =IF(Override!F30<>"",Override!F30,Data!E30) -> Phase 2 – Further low regrets emissions reductions in AMP8 | F30: =IF(Override!G30<>"",Override!G30,Data!F30) -> Not defined | G30: =IF(Override!H30<>"",Override!H30,Data!G30) -> 0 | H30: =IF(Override!I30<>"",Override!I30,Data!H30) -> 0 | I30: =IF(Override!J30<>"",Override!J30,Data!I30) -> 0 | J30: =IF(Override!K30<>"",Override!K30,Data!J30) -> 0 | K30: =IF(Override!L30<>"",Override!L30,Data!K30) -> 0 | L30: =IF(Override!M30<>"",Override!M30,Data!L30) -> 0 | M30: =IF(Override!N30<>"",Override!N30,Data!M30) -> 0 | N30: =IF(Override!O30<>"",Override!O30,Data!N30) -> 0 | O30: =IF(Override!P30<>"",Override!P30,Data!O30) -> 0 | P30: =IF(Override!Q30<>"",Override!Q30,Data!P30) -> 0 | Q30: =IF(Override!R30<>"",Override!R30,Data!Q30) -> 0 | R30: =IF(Override!S30<>"",Override!S30,Data!R30) -> 0 | S30: - | T30: - | U30: =VLOOKUP(B30,'Phase 2'!B30:W59,22,FALSE) -> Fail
A31: Yes | B31: 27 | C31: =IF(Override!D31<>"",Override!D31,Data!C31) -> WSH | D31: =IF(Override!E31<>"",Override!E31,Data!D31) -> CW21_1 | E31: =IF(Override!F31<>"",Override!F31,Data!E31) -> Net Zero Carbon Strategy: Network Control Systems (Water) | F31: =IF(Override!G31<>"",Override!G31,Data!F31) -> Selected | G31: =IF(Override!H31<>"",Override!H31,Data!G31) -> 0.131 | H31: =IF(Override!I31<>"",Override!I31,Data!H31) -> 0.2934245112 | I31: =IF(Override!J31<>"",Override!J31,Data!I31) -> 0.293619128 | J31: =IF(Override!K31<>"",Override!K31,Data!J31) -> 0.309450201 | K31: =IF(Override!L31<>"",Override!L31,Data!K31) -> 0.2620131213 | L31: =IF(Override!M31<>"",Override!M31,Data!L31) -> 1.289506962 | M31: =IF(Override!N31<>"",Override!N31,Data!M31) -> -50 | N31: =IF(Override!O31<>"",Override!O31,Data!N31) -> -165 | O31: =IF(Override!P31<>"",Override!P31,Data!O31) -> -285 | P31: =IF(Override!Q31<>"",Override!Q31,Data!P31) -> -400 | Q31: =IF(Override!R31<>"",Override!R31,Data!Q31) -> -500 | R31: =IF(Override!S31<>"",Override!S31,Data!R31) -> -500 | S31: 2.579013923 | T31: 2579.013923 | U31: =VLOOKUP(B31,'Phase 2'!B31:W60,22,FALSE) -> Fail
A32: Yes | B32: 28 | C32: =IF(Override!D32<>"",Override!D32,Data!C32) -> WSH | D32: =IF(Override!E32<>"",Override!E32,Data!D32) -> CW21_2 | E32: =IF(Override!F32<>"",Override!F32,Data!E32) -> Net Zero Carbon Strategy: Carbon Work Package 6 (Peatland & Woodland Restoration) | F32: =IF(Override!G32<>"",Override!G32,Data!F32) -> Selected | G32: =IF(Override!H32<>"",Override!H32,Data!G32) -> 2.7374 | H32: =IF(Override!I32<>"",Override!I32,Data!H32) -> 2.7374 | I32: =IF(Override!J32<>"",Override!J32,Data!I32) -> 2.7374 | J32: =IF(Override!K32<>"",Override!K32,Data!J32) -> 2.7374 | K32: =IF(Override!L32<>"",Override!L32,Data!K32) -> 2.7374 | L32: =IF(Override!M32<>"",Override!M32,Data!L32) -> 13.687 | M32: =IF(Override!N32<>"",Override!N32,Data!M32) -> 0 | N32: =IF(Override!O32<>"",Override!O32,Data!N32) -> 0 | O32: =IF(Override!P32<>"",Override!P32,Data!O32) -> 0 | P32: =IF(Override!Q32<>"",Override!Q32,Data!P32) -> 0 | Q32: =IF(Override!R32<>"",Override!R32,Data!Q32) -> 0 | R32: =IF(Override!S32<>"",Override!S32,Data!R32) -> 0 | S32: - | T32: - | U32: =VLOOKUP(B32,'Phase 2'!B32:W61,22,FALSE) -> Pass
A33: Yes | B33: 29 | C33: =IF(Override!D33<>"",Override!D33,Data!C33) -> WSX | D33: =IF(Override!E33<>"",Override!E33,Data!D33) -> CW21_1 | E33: =IF(Override!F33<>"",Override!F33,Data!E33) -> Transport | F33: =IF(Override!G33<>"",Override!G33,Data!F33) -> Selected | G33: =IF(Override!H33<>"",Override!H33,Data!G33) -> 0.3947373392 | H33: =IF(Override!I33<>"",Override!I33,Data!H33) -> 0.6348600598 | I33: =IF(Override!J33<>"",Override!J33,Data!I33) -> 0.799849765 | J33: =IF(Override!K33<>"",Override!K33,Data!J33) -> 0.8053945799 | K33: =IF(Override!L33<>"",Override!L33,Data!K33) -> 0.4210920646 | L33: =IF(Override!M33<>"",Override!M33,Data!L33) -> 3.055933809 | M33: =IF(Override!N33<>"",Override!N33,Data!M33) -> -106 | N33: =IF(Override!O33<>"",Override!O33,Data!N33) -> -317 | O33: =IF(Override!P33<>"",Override!P33,Data!O33) -> -633 | P33: =IF(Override!Q33<>"",Override!Q33,Data!P33) -> -1056 | Q33: =IF(Override!R33<>"",Override!R33,Data!Q33) -> -1584 | R33: =IF(Override!S33<>"",Override!S33,Data!R33) -> -1584 | S33: 1.929251142 | T33: 1929.251142 | U33: =VLOOKUP(B33,'Phase 2'!B33:W62,22,FALSE) -> Fail
A34: No | B34: 30 | C34: =IF(Override!D34<>"",Override!D34,Data!C34) -> YKY | D34: =IF(Override!E34<>"",Override!E34,Data!D34) -> CW21-1 | E34: =IF(Override!F34<>"",Override!F34,Data!E34) -> Solar | F34: =IF(Override!G34<>"",Override!G34,Data!F34) -> 0 | G34: =IF(Override!H34<>"",Override!H34,Data!G34) -> 0 | H34: =IF(Override!I34<>"",Override!I34,Data!H34) -> 0 | I34: =IF(Override!J34<>"",Override!J34,Data!I34) -> 0 | J34: =IF(Override!K34<>"",Override!K34,Data!J34) -> 0 | K34: =IF(Override!L34<>"",Override!L34,Data!K34) -> 0 | L34: =IF(Override!M34<>"",Override!M34,Data!L34) -> 0 | M34: =IF(Override!N34<>"",Override!N34,Data!M34) -> 0 | N34: =IF(Override!O34<>"",Override!O34,Data!N34) -> -1000 | O34: =IF(Override!P34<>"",Override!P34,Data!O34) -> -2000 | P34: =IF(Override!Q34<>"",Override!Q34,Data!P34) -> -3000 | Q34: =IF(Override!R34<>"",Override!R34,Data!Q34) -> -3500 | R34: =IF(Override!S34<>"",Override!S34,Data!R34) -> -3500 | S34: 0 | T34: 0 | U34: =VLOOKUP(B34,'Phase 2'!B34:W63,22,FALSE) -> Fail
A35: Yes | B35: 31 | C35: =IF(Override!D35<>"",Override!D35,Data!C35) -> SVE | D35: =IF(Override!E35<>"",Override!E35,Data!D35) -> 0 | E35: =IF(Override!F35<>"",Override!F35,Data!E35) -> Transport PR24 | F35: Selected | G35: =IF(Override!H35<>"",Override!H35,Data!G35) -> 8.931 | H35: =IF(Override!I35<>"",Override!I35,Data!H35) -> 10.231 | I35: =IF(Override!J35<>"",Override!J35,Data!I35) -> 10.847 | J35: =IF(Override!K35<>"",Override!K35,Data!J35) -> 12.331 | K35: =IF(Override!L35<>"",Override!L35,Data!K35) -> 13.389 | L35: =IF(Override!M35<>"",Override!M35,Data!L35) -> 55.729 | M35: =IF(Override!N35<>"",Override!N35,Data!M35) -> 0 | N35: =IF(Override!O35<>"",Override!O35,Data!N35) -> 0 | O35: =IF(Override!P35<>"",Override!P35,Data!O35) -> 0 | P35: =IF(Override!Q35<>"",Override!Q35,Data!P35) -> 0 | Q35: =IF(Override!R35<>"",Override!R35,Data!Q35) -> 0 | R35: =IF(Override!S35<>"",Override!S35,Data!R35) -> 0 | S35: - | T35: - | U35: =VLOOKUP(B35,'Phase 2'!B35:W64,22,FALSE) -> Fail
E36: Total | F36: =COUNTA(F5:F35) -> 31 | L36: =SUM(L5:L35) -> 163.6868643 | R36: =SUM(R5:R35) -> -81395.566

Sheet ANALYSIS>

Sheet Phase 1
A1: Phase 1: Initial assessment
A2: Is the scheme true enhancement, a core business activity and has the reduction of GHG emissions as its primary driver
B3: Schemes submitted | J3: Enhancement expenditure | M3: Net zero as the primary driver | P3: Core business activity | S3: Decisions of phase 1 | V3: Results of phase 1
C4: Company | D4: Scheme ID | E4: Scheme name | G4: Scheme description | H4: Category | J4: Was this activity previously delivered by base expenditure? (Yes/No) | K4: Justification | M4: Is net zero the primary driver of the scheme? (Yes/No) | N4: Justification | P4: Is the scheme a core business activity? (Yes/No) | Q4: Justification | S4: Phase 1 assessment decision (pass/fail) | T4: Rationale | W4: Company | X4: Scheme ID | Y4: Scheme name | AA4: AMP8 totex (£m, 2025-30)
B5: 1 | C5: =IF(Override!D5<>"",Override!D5,Data!C5) -> ANH | D5: CW21.1 | E5: =IF(Override!F5<>"",Override!F5,Data!E5) -> AMP8 Small Scale Solar Delivery WS | G5: WS Mounted Panels - Solar PV on 400 sites and 20GWhs of electricity | H5: Renewable energy | J5: No | K5: Renewables excluded from price review | M5: Yes | N5: Clear net zero driver - A secondary driver is insulation of energy costs. | P5: No | Q5: Renewable energy investment not considered part of the appointment business | S5: =IF(OR(J5="Yes",M5="No",P5="No"),"Fail","Pass") -> Fail | T5: Not a core business activity | V5: 1 | W5: =IF($S5="Pass",C5,"") ->  | X5: =IF($S5="Pass",D5,"") ->  | Y5: =IF($S5="Pass",E5,"") ->  | AA5: 7.681
B6: 2 | C6: =IF(Override!D6<>"",Override!D6,Data!C6) -> AFW | D6: AFW_EV | E6: =IF(Override!F6<>"",Override!F6,Data!E6) -> Net Zero: Electric Vehicles | G6: To replace all operational liveried diesel vehicles with electric vehicles with an aim to remove 1920 TC02e operational carbon per year (the amount emitted by the current diesel vehicles fleet) | H6: Transport | J6: Yes | K6: Transport historically funded under base allowance. Affinity Water have already been investing in EVs through base in PR19 (20% of fleet should be electric by 2025). This proposal is to support fully transitioning fleet to electric by end of the 2025-2030 period. | M6: Yes | N6: We consider that charging infrastructures are new assets that will enable an upgrade of the company's transport, with a decarbonised fleet. This scheme is therefore clear enhancement, driven primarily by net zero. | P6: No | S6: =IF(OR(J6="Yes",M6="No",P6="No"),"Fail","Pass") -> Fail | T6: Should continue to be funded by Base allowance | V6: 2 | AA6: 4.302
B7: 3 | C7: =IF(Override!D7<>"",Override!D7,Data!C7) -> HDD | D7: HDD_1 | E7: =IF(Override!F7<>"",Override!F7,Data!E7) -> Electric Vehicles & Low Carbon fuels transition | G7: Partial transition during 2025-2030 period, with electric vehcile chargers and HVO fuel | H7: Transport | J7: Yes | K7: Transport historically funded under base allowance. | M7: Yes | N7: National Environment Programme (NEP) Driver for net zero | P7: Yes | S7: Fail | T7: Should continue to be funded by Base allowance | V7: 3 | AA7: 1.145
B8: 4 | C8: =IF(Override!D8<>"",Override!D8,Data!C8) -> HDD | D8: HDD_2 | E8: =IF(Override!F8<>"",Override!F8,Data!E8) -> Heat Pump | G8: Heat pumps at manned operational sites to reduce gas and electricity use | H8: Heat pumps | J8: Yes | K8: Heating historically funded under base allowance. | M8: Yes | N8: National Environment Programme (NEP) driver for net zero | P8: No | S8: Fail | T8: Should continue to be funded by Base allowance | V8: 4 | AA8: 0.015
B9: 5 | C9: =IF(Override!D9<>"",Override!D9,Data!C9) -> SEW | D9: SEW_1 | E9: =IF(Override!F9<>"",Override!F9,Data!E9) -> Ozone upgrade at Barcombe | G9: Upgrade of the current air-fed ozone treatment plant at Barcombe to a liquid oxygen fed ozone treatment plant. This will drastically reduce plant emissions, energy usage and reduce operating costs. | H9: Process emissions | J9: No | K9: This is deployment of an existing technology. It is an upgrade to the site. | M9: No | N9: The programme delivers reduction in energy demand which is equated with emissions. This is a cost reduction primarily. The emissions reduction can be made by transition to renewables | P9: Yes | S9: Fail | T9: The scheme is not primarily driven by Net Zero. The justification provided for Net Zero Enhancement is countered by the fact the energy demand can be transitioned to renewable energy, the case is for efficiency of energy using an alternative but common technique in the sector | V9: 5 | AA9: 3.168
B10: 6 | C10: =IF(Override!D10<>"",Override!D10,Data!C10) -> SEW | D10: SEW_2 | E10: =IF(Override!F10<>"",Override!F10,Data!E10) -> Ozone upgrade at Arlington | G10: Upgrade of the current air-fed ozone treatment plant at Arlington to a liquid oxygen fed ozone treatment plant. This will drastically reduce plant emissions, energy usage and reduce operating costs. | H10: Process emissions | J10: No | K10: This is deployment of an existing technology. It is an upgrade to the site. | M10: No | N10: The programme delivers reduction in energy demand which is equated with emissions. This is a cost reduction primarily. The emissions reduction can be made by transition to renewables | P10: Yes | S10: Fail | T10: The scheme is not primarily driven by Net Zero. The justification provided for Net Zero Enhancement is countered by the fact the energy demand can be transitioned to renewable energy, the case is for efficiency of energy using an alternative but common technique in the sector | V10: 6 | AA10: 1.22
B11: 7 | C11: =IF(Override!D11<>"",Override!D11,Data!C11) -> SEW | D11: SEW_3 | E11: =IF(Override!F11<>"",Override!F11,Data!E11) -> Power resilience (generators) | G11: Upgrading existing backup diesel generators with hybrid generators to reduce carbon equivalent emissions. Hybrid generators involve a combination of diesel and battery technologies. | H11: Energy | J11: Yes | K11: Energy scheme historically funded under base allowance. | M11: Yes | N11: Company query response (OFW-OBQ-SEW-065) states resilience is the primary driver | P11: No | S11: Fail | T11: Should continue to be funded by Base allowance | V11: 7 | AA11: 0.534
B12: 8 | C12: =IF(Override!D12<>"",Override!D12,Data!C12) -> SEW | D12: SEW_4 | E12: =IF(Override!F12<>"",Override!F12,Data!E12) -> Transport offset (Electrifying fleet) | G12: Procurement of a new fleet of electric vehicles to reduce company carbon equivalent emissions. A total of 227 vehicles will be procured across 2025-2030 period. | H12: Transport | J12: Yes | K12: Transport historically funded under base allowance. | M12: Yes | N12: Reduction of emissions by transitioning the fleet to EVs | P12: Yes | S12: Fail | T12: Should continue to be funded by Base allowance | V12: 8 | AA12: 8.207
B13: 9 | C13: =IF(Override!D13<>"",Override!D13,Data!C13) -> SSC | D13: SSC_CW21_1 | E13: =IF(Override!F13<>"",Override!F13,Data!E13) -> Renewable electricity behind the meter assets | G13: Ground mounted Solar PV at four key sites including two water treatment works | H13: Renewable energy | J13: Yes | K13: Renewables excluded from price review | M13: Yes | N13: Procurement of renewables infrastructure to reduce energy demand and provide clean electricity | P13: No | Q13: Renewable energy investment not considered part of the appointment business | S13: Fail | T13: Not a core business activity | V13: 9 | AA13: 7.237
B14: 10 | C14: =IF(Override!D14<>"",Override!D14,Data!C14) -> SVE | D14: NZ#1w | E14: =IF(Override!F14<>"",Override!F14,Data!E14) -> EV Charging Infrastructure | G14: EV charge points - Included in our Net Zero Challenge Fund Investment Case | H14: Transport | J14: Yes | K14: Transport historically funded under base allowance. | M14: Yes | N14: Infrastructure to support transition to EVs | P14: Yes | S14: Fail | T14: Should continue to be funded by Base allowance | V14: 10 | AA14: 0.88
B15: 11 | C15: =IF(Override!D15<>"",Override!D15,Data!C15) -> SVE | D15: NZ#2w | E15: =IF(Override!F15<>"",Override!F15,Data!E15) -> Heat pumps | G15: Replacement of fossil fuel boilers with heat pumps for space heating - Included in our Net Zero Challenge Fund Investment Case | H15: Heat pumps | J15: Yes | K15: Heating historically funded under base allowance. | M15: Yes | N15: Infrastructure change to support low carbon heating | P15: Yes | S15: Fail | T15: Should continue to be funded by Base allowance | V15: 11 | AA15: 7.771
B16: 12 | C16: =IF(Override!D16<>"",Override!D16,Data!C16) -> SVE | D16: NZ#3w | E16: =IF(Override!F16<>"",Override!F16,Data!E16) -> HVO diesel replacement | G16: Infrastructure to enable replacement of mineral diesel with HVO - Included in our Net Zero Challenge Fund Investment Case | H16: Transport | J16: Yes | K16: Transport historically funded under base allowance. | M16: Yes | N16: Transition to HVO to reduce dependence on fossil diesel | P16: Yes | S16: Fail | T16: Should continue to be funded by Base allowance | V16: 12 | AA16: 0.331
B17: 13 | C17: =IF(Override!D17<>"",Override!D17,Data!C17) -> SVE | D17: NZ#4w | E17: =IF(Override!F17<>"",Override!F17,Data!E17) -> Hydrogen Production | G17: Production of hydrogen by electrolysis of high strength liquors - Not included in our Investment Cases, we consider this to be base expenditure if economic. | H17: Energy | J17: Yes | K17: Energy scheme historically funded under base allowance. Sevent Trent has acknowledged this is Base allowance. | M17: Yes | N17: Support switch from fossil fuel energy | P17: Yes | S17: Fail | T17: Should continue to be funded by Base allowance | V17: 13 | AA17: 1.97
B18: 14 | C18: =IF(Override!D18<>"",Override!D18,Data!C18) -> SVE | D18: NZ#5w | E18: =IF(Override!F18<>"",Override!F18,Data!E18) -> Electrical storage | G18: Behind the meter battery storage - Not included in our Investment Cases, we consider this to be base allowance if economic. | H18: Energy | J18: Yes | K18: Energy scheme historically funded under base allowance. Sevent Trent has acknowledged this is Base allowance. | M18: Yes | N18: Behind the metter battery storage to increase resilience of electricity supply | P18: Yes | S18: Fail | T18: Should continue to be funded by Base allowance | V18: 14 | AA18: 4.538
B19: 15 | C19: =IF(Override!D19<>"",Override!D19,Data!C19) -> SVE | D19: NZ#6w | E19: =IF(Override!F19<>"",Override!F19,Data!E19) -> EV fleet only | G19: EV vehicles - Not included in our Investment Cases, we consider vehicle replacement to be part of base allowance but note that there is a cost premium for electric vehicles. | H19: Transport | J19: Yes | K19: Previously done under base allowance. Sevent Trent has acknowledged this is Base allowance. | M19: Yes | N19: Decarbonisation of the vehicle fleet | P19: Yes | S19: Fail | T19: Should continue to be funded by Base allowance | V19: 15 | AA19: 4.015
B20: 16 | C20: =IF(Override!D20<>"",Override!D20,Data!C20) -> SVE | D20: NZ#7w | E20: =IF(Override!F20<>"",Override!F20,Data!E20) -> HVO fuel only | G20: HVO (marginal cost of fuel only) - Not included in our Investment Cases, we consider this to be base expenditure but note that there is a cost premium for HVO fuel. | H20: Transport | J20: Yes | K20: Previously done under base allowance. Sevent Trent has acknowledged this is Base allowance. | M20: Yes | N20: Bunkers to support transition to HVO to reduce dependence on fossil diesel | P20: Yes | S20: Fail | T20: Should continue to be funded by Base allowance | V20: 16 | AA20: 2.2
B21: 17 | C21: =IF(Override!D21<>"",Override!D21,Data!C21) -> SVE | D21: NZ#8w | E21: =IF(Override!F21<>"",Override!F21,Data!E21) -> Solar PV | G21: Solar PV (other than very small scale) - Not included in our Investment Cases, we consider this to be base expenditure if economic. | H21: Renewable energy | J21: No | K21: Renewables excluded from price review | M21: Yes | N21: Procurement of renewables infrastructure to reduce energy demand and provide clean electricity | P21: No | S21: Fail | T21: Not a core business activity | V21: 17 | AA21: 4.673
B22: 18 | C22: =IF(Override!D22<>"",Override!D22,Data!C22) -> TMS | D22: CW21_1 | E22: =IF(Override!F22<>"",Override!F22,Data!E22) -> S40840/2 (PR24 Fleet - Life expired Enhancement (cost to convert to electrical) (Water)) | G22: Costs above base of converting life-expired transport to electric or alternative fuelled vehicle. | H22: Transport | J22: Yes | K22: Transport historically funded under base allowance. | M22: Yes | N22: Conversion of fleet to EV at end of useful life. | P22: Yes | S22: Fail | T22: Should continue to be funded by Base allowance | V22: 18 | AA22: 13.874
B23: 19 | C23: =IF(Override!D23<>"",Override!D23,Data!C23) -> TMS | D23: CW21_2 | E23: =IF(Override!F23<>"",Override!F23,Data!E23) -> S40142/2 (PR24 Hybrid air source heat pump/existing boiler for 4 corporate offices (Water)) | G23: Lower GHG emission hybrid heating at four corporate offices | H23: Heat pumps | J23: Yes | K23: Heating historically funded under base allowance. | M23: Yes | N23: Reduction of emissions through transition to low carbon heat | P23: Yes | S23: Fail | T23: Should continue to be funded by Base allowance | V23: 19 | AA23: 0.681
B24: 20 | C24: =IF(Override!D24<>"",Override!D24,Data!C24) -> TMS | D24: CW21_3 | E24: =IF(Override!F24<>"",Override!F24,Data!E24) -> S40144/2 (PR24 Air source heat pump for site office (enhancement cost) (Water)) | G24: Lower GHG emission heating for life-expired site office boilers | H24: Heat pumps | J24: Yes | K24: Heating historically funded under base allowance. | M24: Yes | N24: Reduction of emissions through transition to low carbon heat | P24: Yes | S24: Fail | T24: Should continue to be funded by Base allowance | V24: 20 | AA24: 1.823
B25: 21 | C25: =IF(Override!D25<>"",Override!D25,Data!C25) -> NWT | D25: E00001340 | E25: =IF(Override!F25<>"",Override!F25,Data!E25) -> Transport fossil fuel reductions - Green fleet LCVs phase 1 | G25: Procuring zero emission (Electric Vehicle, EV) cars & vans | H25: Transport | J25: Yes | K25: Transport historically funded under base allowance. The scheme replaces light commercial vehicles (diesel) at their end of their life cycle, and the enhancement case is only the extra costs from the base allowance of in the 2025-2030 period. This replacement should be wholly funded from their base allowance. | M25: Yes | N25: Vehicles at their end of life | P25: Yes | S25: Fail | T25: Should continue to be funded by Base allowance | V25: 21 | AA25: 3.141
B26: 22 | C26: =IF(Override!D26<>"",Override!D26,Data!C26) -> NWT | D26: E00001341 | E26: =IF(Override!F26<>"",Override!F26,Data!E26) -> Transport fossil fuel reductions - Green fleet LCVs phase 2 | G26: Procuring zero emission (Electric Vehicle, EV) cars & vans | H26: Transport | J26: Yes | K26: Transport historically funded under base allowance. The scheme includes the cost for switching away from fossil fuel vehicles, complementing 2025-2030 base allowances to replace some vehicles with a like for like option. But it concerns light commercial vehicles and will replace them before their end of life to make sure the all fleet is converted before the end of the 2025-2030 period. | M26: Yes | N26: Switch of vehicles to EVs before their end of life | P26: No | S26: Fail | T26: Should continue to be funded by Base allowance | V26: 22 | AA26: 6.341
B27: 23 | C27: =IF(Override!D27<>"",Override!D27,Data!C27) -> NWT | D27: E00001344 | E27: =IF(Override!F27<>"",Override!F27,Data!E27) -> Peatland restoration | G27: Restoration of 1,500 ha of peatland in the North West to store carbon and deliver wider benefits, by 2030, verified by Natural England (or equivalent). The alternative to peatland restoration in terms of reducing the impact of eroded peat soil (dissolved organic carbon) on drinking water quality is to upgrade the water treatment works. Without an upgrade the water treatment works may have to operate on a reduced throughput to remove the increase in dissolved organic carbon load. This has an impact on the volume of the output of the water treatment works which may have a knock on impact on local and regional supply and demand and would have increased GHG emissions | H27: NBS | J27: No | K27: Similar interventions previously under base allowance, but the company considers its challenging with the challenges of the 2025-2030 programme to continue doing it under base. UU considers it has explored all emissions reductions opportunities it could deliver through base allowance. It is also above and beyond what is proposed in their 2025-2030 WINEP programme. | M27: Yes | N27: Net zero to reduce GHG through oxidisation. Climate adaptation is also a driver, with rewetting the upland to better face wildfires | P27: Yes | Q27: Peatland restoration funded as part of the green recovery decisions, for the improvements it will drive in raw water quality. | S27: Pass | T27: Net zero is the primary driver and peatland restoration relates to core business activity. Peatland restoration passes to phase 2. | V27: 23 | W27: NWT | X27: E00001344 | Y27: Peatland restoration | AA27: 20.505
B28: 24 | C28: =IF(Override!D28<>"",Override!D28,Data!C28) -> NWT | D28: E00001345 | E28: =IF(Override!F28<>"",Override!F28,Data!E28) -> Woodland creation | G28: Creation of 465 hectares of woodland from planting trees by 2030, verified by the Woodland Carbon Code (or equivalent standard). | H28: NBS | J28: Yes | K28: Previously funded under base allowance, supported by funding from Defra Nature 4 Climate Fund Pot and Woodland Creation route. The company says there is no guarantee the funding will remain, hence the enhancement case. | M28: Yes | N28: Sequestration of emissions from woodland creation | P28: No | Q28: Tree planting was not considered as a core business activity at this stage. In green recovery decisions, we stated that, at the present time, developing low carbon solutions is likely more important [than carbon offsets]. | S28: Fail | T28: Should continue to be funded by Base allowance | V28: 24 | AA28: 2.546
B29: 25 | C29: =IF(Override!D29<>"",Override!D29,Data!C29) -> NWT | D29: E00001346 | E29: =IF(Override!F29<>"",Override!F29,Data!E29) -> Property emissions reductions | G29: Decarbonising heat within our UUW owned property portfolio, focused at moving away from fossil fuel usage. | H29: Heat pumps | J29: Yes | K29: Heating historically funded under base allowance. The implicit base allowance for the 2025-2030 period is valued at a continuation of existing assets using fossil fuels. The scheme is about purchase of new assets and step change reduction in emissions (heat pump, boiler replacement) | M29: Yes | N29: The scheme is not net zero challenge enhancement. Replacement of boilers and setting up a low emission heating system is part of maintenance and operations. | P29: No | S29: Fail | T29: Should continue to be funded by Base allowance | V29: 25 | AA29: 1.206
B30: 26 | C30: =IF(Override!D30<>"",Override!D30,Data!C30) -> NWT | D30: E00001426 | E30: =IF(Override!F30<>"",Override!F30,Data!E30) -> Phase 2 – Further low regrets emissions reductions in AMP8 | G30: Potential HGVs switch to EVs, chemical use reduction with enhanced biological phosphorous removal, process emissions phase 2 and net zero catchment strategy phase 2 | H30: Other | J30: No | K30: Interventions mentioned include base allowance (transport) and enhancement (P-removal). | M30: Yes | N30: The company is not clear on which interventions it intends to deploy mid-2025-2030 and what the likely benefits are. We consider there are other price review mechanisms for mid-period funding. | P30: No | S30: Fail | T30: Net zero is not the primary driver | V30: 26 | AA30: 23.039
B31: 27 | C31: =IF(Override!D31<>"",Override!D31,Data!C31) -> WSH | D31: CW21_1 | E31: =IF(Override!F31<>"",Override!F31,Data!E31) -> Net Zero Carbon Strategy: Network Control Systems (Water) | G31: Delivery of a new Network Control System for Water to reduce energy consumption by using factors such as weather and demand patterns to predict optimum set points, and as a result, control and optimise pumping regimes | H31: Process emissions | J31: No | K31: This scheme has a National Environment Programme (NEP) driver | M31: Yes | N31: National Environment Programme (NEP) non-statutory driver for net zero | P31: Yes | S31: Pass | V31: 27 | W31: WSH | X31: CW21_1 | Y31: Net Zero Carbon Strategy: Network Control Systems (Water) | AA31: 1.304
B32: 28 | C32: =IF(Override!D32<>"",Override!D32,Data!C32) -> WSH | D32: CW21_2 | E32: =IF(Override!F32<>"",Override!F32,Data!E32) -> Net Zero Carbon Strategy: Carbon Work Package 6 (Peatland & Woodland Restoration) | G32: Restoration of 2000ha of degraded peatland and creation of new woodland (200,000 trees). | H32: NBS | J32: No | K32: WSH has not previously delivered these activities from base. | M32: Yes | N32: National Environment Programme (NEP) non-statutory driver for net zero | P32: Yes | Q32: Peatland restoration funded as part of the green recovery decisions, for the improvements it will drive in raw water quality. Tree planting was not considered as a core business activity at this stage. | S32: Pass | T32: Net zero is the primary driver and peatland restoration relates to core business activity. Peatland restoration passes to phase 2. | V32: 28 | W32: WSH | X32: CW21_2 | Y32: Net Zero Carbon Strategy: Carbon Work Package 6 (Peatland & Woodland Restoration) | AA32: 25.3
B33: 29 | C33: =IF(Override!D33<>"",Override!D33,Data!C33) -> WSX | D33: CW21_1 | E33: =IF(Override!F33<>"",Override!F33,Data!E33) -> Transport | G33: Decarbonised fleet infrastructure | H33: Transport | J33: Yes | K33: Transport historically funded under base allowance. | M33: Yes | N33: Decarbonisation of the fleet, with government legislation changes on purchase of new vehicles by 2035 being the main driver. | P33: Yes | S33: Fail | T33: Should continue to be funded by Base allowance | V33: 29 | AA33: 3.056
B34: 30 | C34: =IF(Override!D34<>"",Override!D34,Data!C34) -> YKY | D34: CW21-1 | E34: =IF(Override!F34<>"",Override!F34,Data!E34) -> Solar | G34: Combination of rooftop and groundmount solar on YW sites. | H34: Renewable energy | J34: No | K34: Renewables excluded from price review | M34: Yes | N34: The focus is on reducing scope 1 and 2 emissions for next AMP, so decreasing carbon intensity of energy consumed is key. | P34: No | Q34: Renewable energy investment not considered part of the appointment business | S34: Fail | T34: Not a core business activity | V34: 30 | AA34: 10.796
B35: 31 | C35: SVE | E35: =IF(Override!F35<>"",Override!F35,Data!E35) -> Transport PR24 | G35: Increased costs associated with transitioning vehicle fleet from diesel to electric vehicles. Scheme only covers vehicles. | H35: Transport | J35: Yes | K35: Transport historically funded under base allowance. | M35: Yes | N35: Current fleet is a significant contributor to emissions. Transitioning diesel vehicles to electric aligns with company's Net Zero ambition and triple carbon pledge. | P35: Yes | S35: Fail | T35: Should continue to be funded by Base allowance | V35: 31 | AA35: 55.73
D37: Totex (£m) | E37: =SUMPRODUCT(('Final data'!$D$5:$D$34='Phase 1'!D5:D34)*('Final data'!$L$5:$L$34)) -> 107.9578643 | X37: Totex (£m) | Y37: =SUMPRODUCT(('Final data'!$D$5:$D$34='Phase 1'!X5:X34)*('Final data'!$L$5:$L$34)) -> 35.48113251
D38: AMP8 benefits (tCO2e) | E38: =SUMPRODUCT(('Final data'!$D$5:$D$34='Phase 1'!D5:D34)*('Final data'!$R$5:$R$34)) -> -81395.566 | X38: AMP8 benefits (tCO2e) | Y38: =SUMPRODUCT(('Final data'!$D$5:$D$34='Phase 1'!X5:X34)*('Final data'!$R$5:$R$34)) -> -13727
B42: Process description This phase sought to establish whether the scheme is eligible for Net Zero Enhancement funding. In our process we reviewed each scheme narrative, associated costs, and projected emissions reductions forecast in the Business Plan Table (Table CWW22). Scheme details were assessed to ascertain whether: - those technologies should or could be funded by Base; - had been funded in a previous Price Review; - determine if Net Zero is the primary driver. Further to these questions, scheme details were assessed for: - alignment with company net zero goals and Long Term Delivery Strategy - alignment with Ofwat's Net Zero Principles Overview of decisions Schemes passed to the next phase showed clearly that: - Net Zero is the primary driver, even if there were other commercial drivers or otherwise associated with the scheme - the scheme was not previously funded under Base expenditure at a previous Price Review - the scheme is a core business activity - the scheme was not driven by obligations set by WINEP or the Industrial Emissions Directive

Sheet Phase 2
A1: Phase 2: Net zero value assessment
A2: Is the scheme supporting UK government net zero targets, innovation and sector learning and align with our net zero principles
B3: Scheme submitted | G3: Scheme description | J3: Additional information requested | N3: Assessment of tech maturity and contribution to innovation, learning and efficiency | Q3: Confidence of impact on emissions | T3: IED overlap | W3: Decisions of phase 2 | Z3: Results of phase 2
C4: Company | D4: Scheme ID | E4: Scheme name | G4: Category | H4: Scheme description | J4: Query link | K4: Purpose of query | L4: Description of technology | N4: Innovation rating | O4: Justification | Q4: Innovation rating | R4: Justification | T4: Overlap (Yes/No) | U4: Justification | W4: Phase 2 assessment decision (pass/fail) | X4: Justification | AA4: Company | AB4: Scheme ID | AC4: Scheme name | AE4: AMP8 totex (£m, 2025-30)
B5: 1 | C5: ='Phase 1'!W5 ->  | D5: ='Phase 1'!X5 ->  | E5: ='Phase 1'!Y5 ->  | G5: =IF(C5<>"", 'Phase 1'!#REF!, "") ->  | H5: =IF(E5<>"", 'Phase 1'!G5, "") ->  | W5: Fail | Z5: 1 | AA5: =IF($W5="Pass",C5,"") ->  | AB5: =IF($W5="Pass",D5,"") ->  | AC5: =IF($W5="Pass",E5,"") ->  | AE5: 7.681
B6: 2 | C6: ='Phase 1'!W6 ->  | D6: ='Phase 1'!X6 ->  | E6: ='Phase 1'!Y6 ->  | G6: =IF(C6<>"", 'Phase 1'!#REF!, "") ->  | H6: =IF(E6<>"", 'Phase 1'!G6, "") ->  | W6: Fail | Z6: 2 | AE6: 4.302
B7: 3 | C7: ='Phase 1'!W7 ->  | D7: ='Phase 1'!X7 ->  | E7: ='Phase 1'!Y7 ->  | G7: =IF(C7<>"", 'Phase 1'!#REF!, "") ->  | H7: =IF(E7<>"", 'Phase 1'!G7, "") ->  | W7: Fail | Z7: 3 | AE7: 1.145
B8: 4 | C8: ='Phase 1'!W8 ->  | D8: ='Phase 1'!X8 ->  | E8: ='Phase 1'!Y8 ->  | G8: =IF(C8<>"", 'Phase 1'!#REF!, "") ->  | H8: =IF(E8<>"", 'Phase 1'!G8, "") ->  | W8: Fail | Z8: 4 | AE8: 0.015
B9: 5 | C9: ='Phase 1'!W9 ->  | D9: ='Phase 1'!X9 ->  | E9: ='Phase 1'!Y9 ->  | G9: =IF(C9<>"", 'Phase 1'!#REF!, "") ->  | H9: =IF(E9<>"", 'Phase 1'!G9, "") ->  | W9: Fail | Z9: 5 | AE9: 3.168
B10: 6 | C10: ='Phase 1'!W10 ->  | D10: ='Phase 1'!X10 ->  | E10: ='Phase 1'!Y10 ->  | G10: =IF(C10<>"", 'Phase 1'!#REF!, "") ->  | H10: =IF(E10<>"", 'Phase 1'!G10, "") ->  | W10: Fail | Z10: 6 | AE10: 1.22
B11: 7 | C11: ='Phase 1'!W11 ->  | D11: ='Phase 1'!X11 ->  | E11: ='Phase 1'!Y11 ->  | G11: =IF(C11<>"", 'Phase 1'!#REF!, "") ->  | H11: =IF(E11<>"", 'Phase 1'!G11, "") ->  | W11: Fail | Z11: 7 | AE11: 0.534
B12: 8 | C12: ='Phase 1'!W12 ->  | D12: ='Phase 1'!X12 ->  | E12: ='Phase 1'!Y12 ->  | G12: =IF(C12<>"", 'Phase 1'!#REF!, "") ->  | H12: =IF(E12<>"", 'Phase 1'!G12, "") ->  | W12: Fail | Z12: 8 | AE12: 8.207
B13: 9 | C13: ='Phase 1'!W13 ->  | D13: ='Phase 1'!X13 ->  | E13: ='Phase 1'!Y13 ->  | G13: =IF(C13<>"", 'Phase 1'!#REF!, "") ->  | H13: =IF(E13<>"", 'Phase 1'!G13, "") ->  | W13: Fail | Z13: 9 | AE13: 7.237
B14: 10 | C14: ='Phase 1'!W14 ->  | D14: ='Phase 1'!X14 ->  | E14: ='Phase 1'!Y14 ->  | G14: =IF(C14<>"", 'Phase 1'!#REF!, "") ->  | H14: =IF(E14<>"", 'Phase 1'!G14, "") ->  | W14: Fail | Z14: 10 | AE14: 0.88
B15: 11 | C15: ='Phase 1'!W15 ->  | D15: ='Phase 1'!X15 ->  | E15: ='Phase 1'!Y15 ->  | G15: =IF(C15<>"", 'Phase 1'!#REF!, "") ->  | H15: =IF(E15<>"", 'Phase 1'!G15, "") ->  | W15: Fail | Z15: 11 | AE15: 7.771
B16: 12 | C16: ='Phase 1'!W16 ->  | D16: ='Phase 1'!X16 ->  | E16: ='Phase 1'!Y16 ->  | G16: =IF(C16<>"", 'Phase 1'!#REF!, "") ->  | H16: =IF(E16<>"", 'Phase 1'!G16, "") ->  | W16: Fail | Z16: 12 | AE16: 0.331
B17: 13 | C17: ='Phase 1'!W17 ->  | D17: ='Phase 1'!X17 ->  | E17: ='Phase 1'!Y17 ->  | G17: =IF(C17<>"", 'Phase 1'!#REF!, "") ->  | H17: =IF(E17<>"", 'Phase 1'!G17, "") ->  | W17: Fail | Z17: 13 | AE17: 1.97
B18: 14 | C18: ='Phase 1'!W18 ->  | D18: ='Phase 1'!X18 ->  | E18: ='Phase 1'!Y18 ->  | G18: =IF(C18<>"", 'Phase 1'!#REF!, "") ->  | H18: =IF(E18<>"", 'Phase 1'!G18, "") ->  | W18: Fail | Z18: 14 | AE18: 4.538
B19: 15 | C19: ='Phase 1'!W19 ->  | D19: ='Phase 1'!X19 ->  | E19: ='Phase 1'!Y19 ->  | G19: =IF(C19<>"", 'Phase 1'!#REF!, "") ->  | H19: =IF(E19<>"", 'Phase 1'!G19, "") ->  | W19: Fail | Z19: 15 | AE19: 4.015
B20: 16 | C20: ='Phase 1'!W20 ->  | D20: ='Phase 1'!X20 ->  | E20: ='Phase 1'!Y20 ->  | G20: =IF(C20<>"", 'Phase 1'!#REF!, "") ->  | H20: =IF(E20<>"", 'Phase 1'!G20, "") ->  | W20: Fail | Z20: 16 | AE20: 2.2
B21: 17 | C21: ='Phase 1'!W21 ->  | D21: ='Phase 1'!X21 ->  | E21: ='Phase 1'!Y21 ->  | G21: =IF(C21<>"", 'Phase 1'!#REF!, "") ->  | H21: =IF(E21<>"", 'Phase 1'!G21, "") ->  | W21: Fail | Z21: 17 | AE21: 4.673
B22: 18 | C22: ='Phase 1'!W22 ->  | D22: ='Phase 1'!X22 ->  | E22: ='Phase 1'!Y22 ->  | G22: =IF(C22<>"", 'Phase 1'!#REF!, "") ->  | H22: =IF(E22<>"", 'Phase 1'!G22, "") ->  | W22: Fail | Z22: 18 | AE22: 13.874
B23: 19 | C23: ='Phase 1'!W23 ->  | D23: ='Phase 1'!X23 ->  | E23: ='Phase 1'!Y23 ->  | G23: =IF(C23<>"", 'Phase 1'!#REF!, "") ->  | H23: =IF(E23<>"", 'Phase 1'!G23, "") ->  | W23: Fail | Z23: 19 | AE23: 0.681
B24: 20 | C24: ='Phase 1'!W24 ->  | D24: ='Phase 1'!X24 ->  | E24: ='Phase 1'!Y24 ->  | G24: =IF(C24<>"", 'Phase 1'!#REF!, "") ->  | H24: =IF(E24<>"", 'Phase 1'!G24, "") ->  | W24: Fail | Z24: 20 | AE24: 1.823
B25: 21 | C25: ='Phase 1'!W25 ->  | D25: ='Phase 1'!X25 ->  | E25: ='Phase 1'!Y25 ->  | G25: =IF(C25<>"", 'Phase 1'!#REF!, "") ->  | H25: =IF(E25<>"", 'Phase 1'!G25, "") ->  | W25: Fail | Z25: 21 | AE25: 3.141
B26: 22 | C26: ='Phase 1'!W26 ->  | D26: ='Phase 1'!X26 ->  | E26: ='Phase 1'!Y26 ->  | G26: =IF(C26<>"", 'Phase 1'!#REF!, "") ->  | H26: =IF(E26<>"", 'Phase 1'!G26, "") ->  | W26: Fail | Z26: 22 | AE26: 6.341
B27: 23 | C27: ='Phase 1'!W27 -> NWT | D27: ='Phase 1'!X27 -> E00001344 | E27: ='Phase 1'!Y27 -> Peatland restoration | G27: =IF(C27<>"",'Phase 1'!H27,"") -> NBS | H27: =IF(E27<>"", 'Phase 1'!G27, "") -> Restoration of 1,500 ha of peatland in the North West to store carbon and deliver wider benefits, by 2030, verified by Natural England (or equivalent). The alternative to peatland restoration in terms of reducing the impact of eroded peat soil (dissolved organic carbon) on drinking water quality is to upgrade the water treatment works. Without an upgrade the water treatment works may have to operate on a reduced throughput to remove the increase in dissolved organic carbon load. This has an impact on the volume of the output of the water treatment works which may have a knock on impact on local and regional supply and demand and would have increased GHG emissions | N27: Peatland- medium | O27: Meets the criteria for insets included in the PC definition. | Q27: Peatland-medium | R27: Meets the criteria for insets included in the PC definition. | T27: No | W27: Pass | Z27: 23 | AA27: NWT | AB27: E00001344 | AC27: Peatland restoration | AE27: 20.505
B28: 24 | C28: ='Phase 1'!W28 ->  | D28: ='Phase 1'!X28 ->  | E28: ='Phase 1'!Y28 ->  | G28: =IF(C28<>"",'Phase 1'!H28,"") ->  | H28: =IF(E28<>"", 'Phase 1'!G28, "") ->  | W28: Fail | Z28: 24 | AE28: 2.546
B29: 25 | C29: ='Phase 1'!W29 ->  | D29: ='Phase 1'!X29 ->  | E29: ='Phase 1'!Y29 ->  | G29: =IF(C29<>"",'Phase 1'!H29,"") ->  | H29: =IF(E29<>"", 'Phase 1'!G29, "") ->  | W29: Fail | Z29: 25 | AE29: 1.206
B30: 26 | C30: ='Phase 1'!W30 ->  | D30: ='Phase 1'!X30 ->  | E30: ='Phase 1'!Y30 ->  | G30: =IF(C30<>"",'Phase 1'!H30,"") ->  | H30: =IF(E30<>"", 'Phase 1'!G30, "") ->  | W30: Fail | Z30: 26 | AE30: 23.039
B31: 27 | C31: ='Phase 1'!W31 -> WSH | D31: ='Phase 1'!X31 -> CW21_1 | E31: ='Phase 1'!Y31 -> Net Zero Carbon Strategy: Network Control Systems (Water) | G31: =IF(C31<>"",'Phase 1'!H31,"") -> Process emissions | H31: =IF(E31<>"", 'Phase 1'!G31, "") -> Delivery of a new Network Control System for Water to reduce energy consumption by using factors such as weather and demand patterns to predict optimum set points, and as a result, control and optimise pumping regimes | J31: NA | L31: Network Control Systems (NOCs) aim to reduce energy consumption by using factors such as weather and demand patterns to predict optimum set points and as a result, control and optimise pumping regimes. | N31: Network Control Systems - Low | O31: Network Control Systems to manage and optimise pumping regimes for wastewater. This is percieved as similar to real time control, it presents limited innovation in optimising assets. There is some learning to be taken from controlling the asset. [Real Time Control - TRL 7 – Deployment] | Q31: Real time control - Medium | R31: Real time control: control of the process variables is expected to support reductions in emissions but can be offset by changes in energy demand for aeration to reduce N2O. | T31: No | U31: Solution is designed to optimise the water treatment stage | W31: Fail | X31: The scheme uses existing technology to optimise the energy efficiency of the systems. This is part of general maintenance and operation and should be under base expenditure | Z31: 27 | AE31: 1.304
B32: 28 | C32: ='Phase 1'!W32 -> WSH | D32: ='Phase 1'!X32 -> CW21_2 | E32: ='Phase 1'!Y32 -> Net Zero Carbon Strategy: Carbon Work Package 6 (Peatland & Woodland Restoration) | G32: =IF(C32<>"",'Phase 1'!H32,"") -> NBS | H32: =IF(E32<>"", 'Phase 1'!G32, "") -> Restoration of 2000ha of degraded peatland and creation of new woodland (200,000 trees). | N32: Peatland-medium | O32: Meets the criteria for insets included in the PC definition. | Q32: Peatland-medium | R32: Meets the criteria for insets included in the PC defintion. | T32: No | W32: Pass | Z32: 28 | AA32: WSH | AB32: CW21_2 | AC32: Net Zero Carbon Strategy: Carbon Work Package 6 (Peatland & Woodland Restoration) | AE32: 13.687
B33: 29 | C33: ='Phase 1'!W33 ->  | D33: ='Phase 1'!X33 ->  | E33: ='Phase 1'!Y33 ->  | G33: =IF(C33<>"", 'Phase 1'!#REF!, "") ->  | H33: =IF(E33<>"", 'Phase 1'!G33, "") ->  | W33: Fail | Z33: 29 | AE33: 3.056
B34: 30 | C34: ='Phase 1'!W34 ->  | D34: ='Phase 1'!X34 ->  | E34: ='Phase 1'!Y34 ->  | G34: =IF(C34<>"", 'Phase 1'!#REF!, "") ->  | H34: =IF(E34<>"", 'Phase 1'!G34, "") ->  | W34: Fail | Z34: 30 | AE34: 10.796
B35: 31 | G35: =IF(C35<>"", 'Phase 1'!#REF!, "") ->  | H35: =IF(E35<>"", 'Phase 1'!G35, "") ->  | W35: Fail | Z35: 31 | AA35: =IF($W35="Pass",'Phase 1'!AV35,"") ->  | AB35: =IF($W35="Pass",'Phase 1'!AW35,"") ->  | AC35: =IF($W35="Pass",'Phase 1'!AX35,"") ->  | AE35: 55.73
D37: Totex (£m) | E37: =SUMPRODUCT(('Final data'!$D$5:$D$34='Phase 2'!D5:D34)*('Final data'!$L$5:$L$34)) -> 35.48113251 | AB37: Totex (£m) | AC37: =SUMPRODUCT(('Final data'!$D$5:$D$34='Phase 2'!AB5:AB34)*('Final data'!$L$5:$L$34)) -> 34.19162555
D38: AMP8 benefits (tCO2e) | E38: =SUMPRODUCT(('Final data'!$D$5:$D$34='Phase 2'!D5:D34)*('Final data'!$R$5:$R$34)) -> -13727 | AB38: AMP8 benefits (tCO2e) | AC38: =SUMPRODUCT(('Final data'!$D$5:$D$34='Phase 2'!AB5:AB34)*('Final data'!$R$5:$R$34)) -> -13227
B40: Process description Schemes which passed Phase 1 were assessed at Phase 2. References to the scheme including queries issued to the proposing company were catalogued. The key aspects of this phase were to: - review the technology maturity and contribution to innovation, sector learning and efficiency. - assess confidence of the delivery of emissions abatement - further review where a scheme is affected or driven by the Industrial Emissions Directive Additional expert opinion was sought in the instances where it was difficult to judge the technical merits, cost, commercial opportunities, or level of innovation of a scheme. Three rounds of expert review were provided: 1. Review of schemes with Richard Chamley, PR24 Engineering Advisor (18/12/23) 2. Review of schemes with Edoard Piano, PR24 Engineering Advisor (20/12/23) 3. Review of schemes with Eugenia Vela, Senior Associate, Water Engineer (29/1/24) Overview of decisions Decisions related to technology maturity and contribution to innovation, sector learning and efficiency were driven by the following considerations: - technology maturity should be sufficient to give confidence that it can be delivered and offer value for money for customers, however it should not be so mature that it is using existing technology which is commonplace in the sector to the extent it would form part of general maintenance and operation of an asset. - innovation and sector learning is demonstrated by alternative or newer technologies which are not yet commonplace in the wastewater sector but offer confidence that they might deliver emissions reductions - efficiency was deemed to have been met where the technology proposed offered a step change to a new model of operation. The Industrial Emissions Directive (IED) has been important for the assessment of schemes. Where the IED is a driver a scheme is ineligible for Net Zero Enhancement. Where Net Zero and emissions abatement are a driver but there are commercial benefits attached to the scheme, the scheme has not passed. This is particularly relevant for schemes which optimise the general operation of an asset or create a revenue stream (e.g. increase collection of biogas and biomethane for reuse). Net Zero as a primary driver for a scheme is expected to show emissions abatement through applying a technology soley for that purpose.

Sheet Unit cost
A1: Deep-dive: Process emission schemes
B3: Scheme submitted | G3: Deep dive into schemes | N3: IED overlap | R3: Carbon benefits | AC3: Stated asset life
C4: Company | D4: Scheme ID | E4: Scheme name | G4: Subcategory | H4: Intervention type | I4: Intervention 1 | J4: Intervention 2 | K4: Intervention 3 | L4: Description | N4: Wastewater intervention | O4: Bioresource intervention | P4: Additional information | R4: AMP8 totex (£m) | S4: Carbon benefits (tCO2e) | T4: AMP8 (£000/tCO2e) | U4: AMP8 £/tCO2e | V4: 5 years £/tCO2e | W4: 10 years £/tCO2e | X4: 15 years £/tCO2e | Y4: 20 years £/tCO2e | Z4: 25 years £/tCO2e | AA4: 30 years £/tCO2e | AC4: Years | AD4: tCo2e
B5: 1 | C5: =IF('Phase 1'!$S5="Pass",'Phase 1'!C5,"") ->  | D5: =IF('Phase 1'!$S5="Pass",'Phase 1'!D5,"") ->  | E5: =IF('Phase 1'!$S5="Pass",'Phase 1'!E5,"") ->  | R5: =IF($D5<>"",'Final data'!L5,"") ->  | S5: =IF($D5<>"",'Final data'!R5,"") ->  | T5: =IF($D5<>"",'Final data'!S5,"") ->  | U5: =IFERROR(T5*1000,"") ->  | V5: =IFERROR(U5/5,"") ->  | W5: =IFERROR(V5/10,"") ->  | X5: =IFERROR(W5/15,"") ->  | Y5: =IFERROR(X5/20,"") ->  | Z5: =IFERROR(Y5/25,"") ->  | AA5: =IFERROR(Z5/30,"") ->  | AD5: =IFERROR(AVERAGE(V5:AA5),"") -> 
B6: 2 | C6: =IF('Phase 1'!$S6="Pass",'Phase 1'!C6,"") ->  | D6: =IF('Phase 1'!$S6="Pass",'Phase 1'!D6,"") ->  | E6: =IF('Phase 1'!$S6="Pass",'Phase 1'!E6,"") ->  | R6: =IF($D6<>"",'Final data'!L6,"") ->  | S6: =IF($D6<>"",'Final data'!R6,"") ->  | T6: =IF($D6<>"",'Final data'!S6,"") ->  | V6: =IFERROR(U6/5,"") ->  | W6: =IFERROR(V6/10,"") ->  | X6: =IFERROR(W6/15,"") ->  | Y6: =IFERROR(X6/20,"") ->  | Z6: =IFERROR(Y6/25,"") ->  | AA6: =IFERROR(Z6/30,"") ->  | AD6: =IFERROR(AVERAGE(V6:AA6),"") -> 
B7: 3 | C7: =IF('Phase 1'!$S7="Pass",'Phase 1'!C7,"") ->  | D7: =IF('Phase 1'!$S7="Pass",'Phase 1'!D7,"") ->  | E7: =IF('Phase 1'!$S7="Pass",'Phase 1'!E7,"") ->  | R7: =IF($D7<>"",'Final data'!L7,"") ->  | S7: =IF($D7<>"",'Final data'!R7,"") ->  | T7: =IF($D7<>"",'Final data'!S7,"") ->  | V7: =IFERROR(U7/5,"") ->  | W7: =IFERROR(U7/10,"") ->  | X7: =IFERROR(U7/15,"") ->  | Y7: =IFERROR(U7/20,"") ->  | Z7: =IFERROR(U7/25,"") ->  | AA7: =IFERROR(U7/30,"") -> 
B8: 4 | C8: =IF('Phase 1'!$S8="Pass",'Phase 1'!C8,"") ->  | D8: =IF('Phase 1'!$S8="Pass",'Phase 1'!D8,"") ->  | E8: =IF('Phase 1'!$S8="Pass",'Phase 1'!E8,"") ->  | R8: =IF($D8<>"",'Final data'!L8,"") ->  | S8: =IF($D8<>"",'Final data'!R8,"") ->  | T8: =IF($D8<>"",'Final data'!S8,"") ->  | V8: =IFERROR(U8/5,"") ->  | W8: =IFERROR(V8/10,"") ->  | X8: =IFERROR(W8/15,"") ->  | Y8: =IFERROR(X8/20,"") ->  | Z8: =IFERROR(Y8/25,"") ->  | AA8: =IFERROR(Z8/30,"") -> 
B9: 5
B10: 6
B11: 7 | C11: =IF('Phase 1'!$S11="Pass",'Phase 1'!C11,"") ->  | D11: =IF('Phase 1'!$S11="Pass",'Phase 1'!D11,"") ->  | E11: =IF('Phase 1'!$S11="Pass",'Phase 1'!E11,"") ->  | R11: =IF($D11<>"",'Final data'!L11,"") ->  | S11: =IF($D11<>"",'Final data'!R11,"") ->  | T11: =IF($D11<>"",'Final data'!S11,"") ->  | V11: =IFERROR(U11/5,"") ->  | W11: =IFERROR(V11/10,"") ->  | X11: =IFERROR(W11/15,"") ->  | Y11: =IFERROR(X11/20,"") ->  | Z11: =IFERROR(Y11/25,"") ->  | AA11: =IFERROR(Z11/30,"") -> 
B12: 8 | C12: =IF('Phase 1'!$S12="Pass",'Phase 1'!C12,"") ->  | D12: =IF('Phase 1'!$S12="Pass",'Phase 1'!D12,"") ->  | E12: =IF('Phase 1'!$S12="Pass",'Phase 1'!E12,"") ->  | R12: =IF($D12<>"",'Final data'!L12,"") ->  | S12: =IF($D12<>"",'Final data'!R12,"") ->  | T12: =IF($D12<>"",'Final data'!S12,"") ->  | V12: =IFERROR(U12/5,"") ->  | W12: =IFERROR(U12/10,"") ->  | X12: =IFERROR(U12/15,"") ->  | Y12: =IFERROR(U12/20,"") ->  | Z12: =IFERROR(U12/25,"") ->  | AA12: =IFERROR(U12/30,"") -> 
B13: 9 | C13: =IF('Phase 1'!$S13="Pass",'Phase 1'!C13,"") ->  | D13: =IF('Phase 1'!$S13="Pass",'Phase 1'!D13,"") ->  | E13: =IF('Phase 1'!$S13="Pass",'Phase 1'!E13,"") ->  | R13: =IF($D13<>"",'Final data'!L13,"") ->  | S13: =IF($D13<>"",'Final data'!R13,"") ->  | T13: =IF($D13<>"",'Final data'!S13,"") -> 
B14: 10 | C14: =IF('Phase 1'!$S14="Pass",'Phase 1'!C14,"") ->  | D14: =IF('Phase 1'!$S14="Pass",'Phase 1'!D14,"") ->  | E14: =IF('Phase 1'!$S14="Pass",'Phase 1'!E14,"") ->  | R14: =IF($D14<>"",'Final data'!L14,"") ->  | S14: =IF($D14<>"",'Final data'!R14,"") ->  | T14: =IF($D14<>"",'Final data'!S14,"") -> 
B15: 11 | C15: =IF('Phase 1'!$S15="Pass",'Phase 1'!C15,"") ->  | D15: =IF('Phase 1'!$S15="Pass",'Phase 1'!D15,"") ->  | E15: =IF('Phase 1'!$S15="Pass",'Phase 1'!E15,"") ->  | R15: =IF($D15<>"",'Final data'!L15,"") ->  | S15: =IF($D15<>"",'Final data'!R15,"") ->  | T15: =IF($D15<>"",'Final data'!S15,"") -> 
B16: 12 | C16: =IF('Phase 1'!$S16="Pass",'Phase 1'!C16,"") ->  | D16: =IF('Phase 1'!$S16="Pass",'Phase 1'!D16,"") ->  | E16: =IF('Phase 1'!$S16="Pass",'Phase 1'!E16,"") ->  | R16: =IF($D16<>"",'Final data'!L16,"") ->  | S16: =IF($D16<>"",'Final data'!R16,"") ->  | T16: =IF($D16<>"",'Final data'!S16,"") -> 
B17: 13 | C17: =IF('Phase 1'!$S17="Pass",'Phase 1'!C17,"") ->  | D17: =IF('Phase 1'!$S17="Pass",'Phase 1'!D17,"") ->  | E17: =IF('Phase 1'!$S17="Pass",'Phase 1'!E17,"") ->  | R17: =IF($D17<>"",'Final data'!L17,"") ->  | S17: =IF($D17<>"",'Final data'!R17,"") ->  | T17: =IF($D17<>"",'Final data'!S17,"") -> 
B18: 14 | C18: =IF('Phase 1'!$S18="Pass",'Phase 1'!C18,"") ->  | D18: =IF('Phase 1'!$S18="Pass",'Phase 1'!D18,"") ->  | E18: =IF('Phase 1'!$S18="Pass",'Phase 1'!E18,"") ->  | R18: =IF($D18<>"",'Final data'!L18,"") ->  | S18: =IF($D18<>"",'Final data'!R18,"") ->  | T18: =IF($D18<>"",'Final data'!S18,"") -> 
B19: 15 | C19: =IF('Phase 1'!$S19="Pass",'Phase 1'!C19,"") ->  | D19: =IF('Phase 1'!$S19="Pass",'Phase 1'!D19,"") ->  | E19: =IF('Phase 1'!$S19="Pass",'Phase 1'!E19,"") ->  | R19: =IF($D19<>"",'Final data'!L19,"") ->  | S19: =IF($D19<>"",'Final data'!R19,"") ->  | T19: =IF($D19<>"",'Final data'!S19,"") -> 
B20: 16 | C20: =IF('Phase 1'!$S20="Pass",'Phase 1'!C20,"") ->  | D20: =IF('Phase 1'!$S20="Pass",'Phase 1'!D20,"") ->  | E20: =IF('Phase 1'!$S20="Pass",'Phase 1'!E20,"") ->  | R20: =IF($D20<>"",'Final data'!L20,"") ->  | S20: =IF($D20<>"",'Final data'!R20,"") ->  | T20: =IF($D20<>"",'Final data'!S20,"") -> 
B21: 17 | C21: =IF('Phase 1'!$S21="Pass",'Phase 1'!C21,"") ->  | D21: =IF('Phase 1'!$S21="Pass",'Phase 1'!D21,"") ->  | E21: =IF('Phase 1'!$S21="Pass",'Phase 1'!E21,"") ->  | R21: =IF($D21<>"",'Final data'!L21,"") ->  | S21: =IF($D21<>"",'Final data'!R21,"") ->  | T21: =IF($D21<>"",'Final data'!S21,"") -> 
B22: 18 | C22: =IF('Phase 1'!$S22="Pass",'Phase 1'!C22,"") ->  | D22: =IF('Phase 1'!$S22="Pass",'Phase 1'!D22,"") ->  | E22: =IF('Phase 1'!$S22="Pass",'Phase 1'!E22,"") ->  | R22: =IF($D22<>"",'Final data'!L22,"") ->  | S22: =IF($D22<>"",'Final data'!R22,"") ->  | T22: =IF($D22<>"",'Final data'!S22,"") -> 
B23: 19 | C23: =IF('Phase 1'!$S23="Pass",'Phase 1'!C23,"") ->  | D23: =IF('Phase 1'!$S23="Pass",'Phase 1'!D23,"") ->  | E23: =IF('Phase 1'!$S23="Pass",'Phase 1'!E23,"") ->  | R23: =IF($D23<>"",'Final data'!L23,"") ->  | S23: =IF($D23<>"",'Final data'!R23,"") ->  | T23: =IF($D23<>"",'Final data'!S23,"") -> 
B24: 20 | C24: =IF('Phase 1'!$S24="Pass",'Phase 1'!C24,"") ->  | D24: =IF('Phase 1'!$S24="Pass",'Phase 1'!D24,"") ->  | E24: =IF('Phase 1'!$S24="Pass",'Phase 1'!E24,"") ->  | R24: =IF($D24<>"",'Final data'!L24,"") ->  | S24: =IF($D24<>"",'Final data'!R24,"") ->  | T24: =IF($D24<>"",'Final data'!S24,"") -> 
B25: 21 | C25: =IF('Phase 1'!$S25="Pass",'Phase 1'!C25,"") ->  | D25: =IF('Phase 1'!$S25="Pass",'Phase 1'!D25,"") ->  | E25: =IF('Phase 1'!$S25="Pass",'Phase 1'!E25,"") ->  | R25: =IF($D25<>"",'Final data'!L25,"") ->  | S25: =IF($D25<>"",'Final data'!R25,"") ->  | T25: =IF($D25<>"",'Final data'!S25,"") -> 
B26: 22 | C26: =IF('Phase 1'!$S26="Pass",'Phase 1'!C26,"") ->  | D26: =IF('Phase 1'!$S26="Pass",'Phase 1'!D26,"") ->  | E26: =IF('Phase 1'!$S26="Pass",'Phase 1'!E26,"") ->  | R26: =IF($D26<>"",'Final data'!L26,"") ->  | S26: =IF($D26<>"",'Final data'!R26,"") ->  | T26: =IF($D26<>"",'Final data'!S26,"") ->  | V26: =IFERROR(U26/5,"") ->  | W26: =IFERROR(V26/10,"") ->  | X26: =IFERROR(W26/15,"") ->  | Y26: =IFERROR(X26/20,"") ->  | Z26: =IFERROR(Y26/25,"") ->  | AA26: =IFERROR(Z26/30,"") -> 
B27: 23 | C27: =IF('Phase 1'!$S27="Pass",'Phase 1'!C27,"") -> NWT | D27: =IF('Phase 1'!$S27="Pass",'Phase 1'!D27,"") -> E00001344 | E27: =IF('Phase 1'!$S27="Pass",'Phase 1'!E27,"") -> Peatland restoration | R27: =IF($D27<>"",'Final data'!L27,"") -> 20.50462555 | S27: =IF($D27<>"",'Final data'!R27,"") -> -13227 | T27: =IF($D27<>"",'Final data'!S27,"") -> 1.550209839 | U27: 1550.209839 | V27: =IFERROR(U27/5,"") -> 310.0419679 | W27: =IFERROR(U27/10,"") -> 155.0209839 | X27: =IFERROR(U27/15,"") -> 103.3473226 | Y27: =IFERROR(U27/20,"") -> 77.51049197 | Z27: =IFERROR(U27/25,"") -> 62.00839358 | AA27: =IFERROR(U27/30,"") -> 51.67366131 | AD27: 126.6004702
B28: 24 | C28: =IF('Phase 1'!$S28="Pass",'Phase 1'!C28,"") ->  | D28: =IF('Phase 1'!$S28="Pass",'Phase 1'!D28,"") ->  | E28: =IF('Phase 1'!$S28="Pass",'Phase 1'!E28,"") ->  | R28: =IF($D28<>"",'Final data'!L28,"") ->  | S28: =IF($D28<>"",'Final data'!R28,"") ->  | T28: =IF($D28<>"",'Final data'!S28,"") -> 
B29: 25 | C29: =IF('Phase 1'!$S29="Pass",'Phase 1'!C29,"") ->  | D29: =IF('Phase 1'!$S29="Pass",'Phase 1'!D29,"") ->  | E29: =IF('Phase 1'!$S29="Pass",'Phase 1'!E29,"") ->  | R29: =IF($D29<>"",'Final data'!L29,"") ->  | S29: =IF($D29<>"",'Final data'!R29,"") ->  | T29: =IF($D29<>"",'Final data'!S29,"") ->  | V29: =IFERROR(U29/5,"") ->  | W29: =IFERROR(V29/10,"") ->  | X29: =IFERROR(W29/15,"") ->  | Y29: =IFERROR(X29/20,"") ->  | Z29: =IFERROR(Y29/25,"") ->  | AA29: =IFERROR(Z29/30,"") -> 
B30: 26 | C30: =IF('Phase 1'!$S30="Pass",'Phase 1'!C30,"") ->  | D30: =IF('Phase 1'!$S30="Pass",'Phase 1'!D30,"") ->  | E30: =IF('Phase 1'!$S30="Pass",'Phase 1'!E30,"") ->  | R30: =IF($D30<>"",'Final data'!L30,"") ->  | S30: =IF($D30<>"",'Final data'!R30,"") ->  | T30: =IF($D30<>"",'Final data'!S30,"") ->  | V30: =IFERROR(U30/5,"") ->  | W30: =IFERROR(V30/10,"") ->  | X30: =IFERROR(W30/15,"") ->  | Y30: =IFERROR(X30/20,"") ->  | Z30: =IFERROR(Y30/25,"") ->  | AA30: =IFERROR(Z30/30,"") -> 
B31: 27
B32: 28 | C32: =IF('Phase 1'!$S32="Pass",'Phase 1'!C32,"") -> WSH | D32: =IF('Phase 1'!$S32="Pass",'Phase 1'!D32,"") -> CW21_2 | E32: =IF('Phase 1'!$S32="Pass",'Phase 1'!E32,"") -> Net Zero Carbon Strategy: Carbon Work Package 6 (Peatland & Woodland Restoration) | R32: =IF($D32<>"",'Final data'!L32,"") -> 13.687 | S32: =IF($D32<>"",'Final data'!R32,"") -> 0 | T32: =IF($D32<>"",'Final data'!S32,"") -> - | V32: =IFERROR(U32/5,"") ->  | W32: =IFERROR(U32/10,"") ->  | X32: =IFERROR(U32/15,"") ->  | Y32: =IFERROR(U32/20,"") ->  | Z32: =IFERROR(U32/25,"") ->  | AA32: =IFERROR(U32/30,"") -> 
B33: 29 | C33: =IF('Phase 1'!$S33="Pass",'Phase 1'!C33,"") ->  | D33: =IF('Phase 1'!$S33="Pass",'Phase 1'!D33,"") ->  | E33: =IF('Phase 1'!$S33="Pass",'Phase 1'!E33,"") ->  | R33: =IF($D33<>"",'Final data'!L33,"") ->  | S33: =IF($D33<>"",'Final data'!R33,"") ->  | T33: =IF($D33<>"",'Final data'!S33,"") -> 
B34: 30 | C34: =IF('Phase 1'!$S34="Pass",'Phase 1'!C34,"") ->  | D34: =IF('Phase 1'!$S34="Pass",'Phase 1'!D34,"") ->  | E34: =IF('Phase 1'!$S34="Pass",'Phase 1'!E34,"") ->  | R34: =IF($D34<>"",'Final data'!L34,"") ->  | S34: =IF($D34<>"",'Final data'!R34,"") ->  | T34: =IF($D34<>"",'Final data'!S34,"") ->  | V34: =IFERROR(U34/5,"") ->  | W34: =IFERROR(V34/10,"") ->  | X34: =IFERROR(W34/15,"") ->  | Y34: =IFERROR(X34/20,"") ->  | Z34: =IFERROR(Y34/25,"") ->  | AA34: =IFERROR(Z34/30,"") -> 
B35: 31 | C35: =IF('Phase 1'!$S35="Pass",'Phase 1'!C35,"") ->  | D35: =IF('Phase 1'!$S35="Pass",'Phase 1'!D35,"") ->  | E35: =IF('Phase 1'!$S35="Pass",'Phase 1'!E35,"") ->  | R35: =IF($D35<>"",'Final data'!L35,"") ->  | S35: =IF($D35<>"",'Final data'!R35,"") ->  | T35: =IF($D35<>"",'Final data'!S35,"") ->  | V35: =IFERROR(U35/5,"") ->  | W35: =IFERROR(U35/10,"") ->  | X35: =IFERROR(U35/15,"") ->  | Y35: =IFERROR(U35/20,"") ->  | Z35: =IFERROR(U35/25,"") ->  | AA35: =IFERROR(U35/30,"") -> 
B37: Process description This deep dive was undertaken on wastewater process emissions schemes to fully outline the interventions involved for each proposal. Furthermore, the schemes were assessed against the unit cost of abatement (£/tCO2e abated). For the unit cost of abatement, the schemes were assessed using the information available for AMP 8 - the value of the investment in AMP 8 and emissions abated in AMP 8. However, this did not produce unit costs of abatement comparable to government values for unit costs of abatement under the UK Govenments valuation of greenhouse gas emissions, 2021 (https://www.gov.uk/government/publications/valuing-greenhouse-gas-emissions-in-policy-appraisal/valuation-of-greenhouse-gas-emissions-for-policy-appraisal-and-evaluation). Scheme costs were extrapolated across a 20 year period to reflect a more realistic asset life of investments where no further information was provided by companies. Where companies have calculated the unit cost of abatement this has been recorded.

Sheet Phase 3
A1: Phase 3: Unit cost ranking
B3: Schemes passed in phase 2
C4: Company | D4: Scheme ID | E4: Scheme name | G4: Unit cost (£000/tCO2e)
B5: 1 | C5: ='Phase 2'!AA5 ->  | D5: ='Phase 2'!AB5 ->  | E5: ='Phase 2'!AC5 ->  | G5: =IF(C5<>"",'Final data'!S5,"") -> 
B6: 2 | C6: ='Phase 2'!AA6 ->  | D6: ='Phase 2'!AB6 ->  | E6: ='Phase 2'!AC6 ->  | G6: =IF(C6<>"",'Final data'!S6,"") -> 
B7: 3 | C7: ='Phase 2'!AA7 ->  | D7: ='Phase 2'!AB7 ->  | E7: ='Phase 2'!AC7 ->  | G7: =IF(C7<>"",'Final data'!S7,"") -> 
B8: 4 | C8: ='Phase 2'!AA8 ->  | D8: ='Phase 2'!AB8 ->  | E8: ='Phase 2'!AC8 ->  | G8: =IF(C8<>"",'Final data'!S8,"") -> 
B9: 5 | C9: ='Phase 2'!AA9 ->  | D9: ='Phase 2'!AB9 ->  | E9: ='Phase 2'!AC9 ->  | G9: =IF(C9<>"",'Final data'!S9,"") -> 
B10: 6 | C10: ='Phase 2'!AA10 ->  | D10: ='Phase 2'!AB10 ->  | E10: ='Phase 2'!AC10 ->  | G10: =IF(C10<>"",'Final data'!S10,"") -> 
B11: 7 | C11: ='Phase 2'!AA11 ->  | D11: ='Phase 2'!AB11 ->  | E11: ='Phase 2'!AC11 ->  | G11: =IF(C11<>"",'Final data'!S11,"") -> 
B12: 8 | C12: ='Phase 2'!AA12 ->  | D12: ='Phase 2'!AB12 ->  | E12: ='Phase 2'!AC12 ->  | G12: =IF(C12<>"",'Final data'!S12,"") -> 
B13: 9 | C13: ='Phase 2'!AA13 ->  | D13: ='Phase 2'!AB13 ->  | E13: ='Phase 2'!AC13 ->  | G13: =IF(C13<>"",'Final data'!S13,"") -> 
B14: 10 | C14: ='Phase 2'!AA14 ->  | D14: ='Phase 2'!AB14 ->  | E14: ='Phase 2'!AC14 ->  | G14: =IF(C14<>"",'Final data'!S14,"") -> 
B15: 11 | C15: ='Phase 2'!AA15 ->  | D15: ='Phase 2'!AB15 ->  | E15: ='Phase 2'!AC15 ->  | G15: =IF(C15<>"",'Final data'!S15,"") -> 
B16: 12 | C16: ='Phase 2'!AA16 ->  | D16: ='Phase 2'!AB16 ->  | E16: ='Phase 2'!AC16 ->  | G16: =IF(C16<>"",'Final data'!S16,"") -> 
B17: 13 | C17: ='Phase 2'!AA17 ->  | D17: ='Phase 2'!AB17 ->  | E17: ='Phase 2'!AC17 ->  | G17: =IF(C17<>"",'Final data'!S17,"") -> 
B18: 14 | C18: ='Phase 2'!AA18 ->  | D18: ='Phase 2'!AB18 ->  | E18: ='Phase 2'!AC18 ->  | G18: =IF(C18<>"",'Final data'!S18,"") -> 
B19: 15 | C19: ='Phase 2'!AA19 ->  | D19: ='Phase 2'!AB19 ->  | E19: ='Phase 2'!AC19 ->  | G19: =IF(C19<>"",'Final data'!S19,"") -> 
B20: 16 | C20: ='Phase 2'!AA20 ->  | D20: ='Phase 2'!AB20 ->  | E20: ='Phase 2'!AC20 ->  | G20: =IF(C20<>"",'Final data'!S20,"") -> 
B21: 17 | C21: ='Phase 2'!AA21 ->  | D21: ='Phase 2'!AB21 ->  | E21: ='Phase 2'!AC21 ->  | G21: =IF(C21<>"",'Final data'!S21,"") -> 
B22: 18 | C22: ='Phase 2'!AA22 ->  | D22: ='Phase 2'!AB22 ->  | E22: ='Phase 2'!AC22 ->  | G22: =IF(C22<>"",'Final data'!S22,"") -> 
B23: 19 | C23: ='Phase 2'!AA23 ->  | D23: ='Phase 2'!AB23 ->  | E23: ='Phase 2'!AC23 ->  | G23: =IF(C23<>"",'Final data'!S23,"") -> 
B24: 20 | C24: ='Phase 2'!AA24 ->  | D24: ='Phase 2'!AB24 ->  | E24: ='Phase 2'!AC24 ->  | G24: =IF(C24<>"",'Final data'!S24,"") -> 
B25: 21 | C25: ='Phase 2'!AA25 ->  | D25: ='Phase 2'!AB25 ->  | E25: ='Phase 2'!AC25 ->  | G25: =IF(C25<>"",'Final data'!S25,"") -> 
B26: 22 | C26: ='Phase 2'!AA26 ->  | D26: ='Phase 2'!AB26 ->  | E26: ='Phase 2'!AC26 ->  | G26: =IF(C26<>"",'Final data'!S26,"") -> 
B27: 23 | C27: ='Phase 2'!AA27 -> NWT | D27: ='Phase 2'!AB27 -> E00001344 | E27: ='Phase 2'!AC27 -> Peatland restoration | G27: =IF(C27<>"",'Final data'!S27,"") -> 1.550209839
B28: 24 | C28: ='Phase 2'!AA28 ->  | D28: ='Phase 2'!AB28 ->  | E28: ='Phase 2'!AC28 ->  | G28: =IF(C28<>"",'Final data'!S28,"") -> 
B29: 25 | C29: ='Phase 2'!AA29 ->  | D29: ='Phase 2'!AB29 ->  | E29: ='Phase 2'!AC29 ->  | G29: =IF(C29<>"",'Final data'!S29,"") -> 
B30: 26 | C30: ='Phase 2'!AA30 ->  | D30: ='Phase 2'!AB30 ->  | E30: ='Phase 2'!AC30 ->  | G30: =IF(C30<>"",'Final data'!S30,"") -> 
B31: 27 | C31: ='Phase 2'!AA31 ->  | D31: ='Phase 2'!AB31 ->  | E31: ='Phase 2'!AC31 ->  | G31: =IF(C31<>"",'Final data'!S31,"") -> 
B32: 28 | C32: ='Phase 2'!AA32 -> WSH | D32: ='Phase 2'!AB32 -> CW21_2 | E32: ='Phase 2'!AC32 -> Net Zero Carbon Strategy: Carbon Work Package 6 (Peatland & Woodland Restoration) | G32: =IF(C32<>"",'Final data'!S32,"") -> -
B33: 29 | C33: ='Phase 2'!AA33 ->  | D33: ='Phase 2'!AB33 ->  | E33: ='Phase 2'!AC33 ->  | G33: =IF(C33<>"",'Final data'!S33,"") -> 
B34: 30 | C34: ='Phase 2'!AA34 ->  | D34: ='Phase 2'!AB34 ->  | E34: ='Phase 2'!AC34 ->  | G34: =IF(C34<>"",'Final data'!S34,"") -> 
G35: =IF(C35<>"",'Final data'!S35,"") -> 
B38: Process description Phase three drew from the deep dive review of process emissions schemes. It identifies where, according to the limited unit cost of abatement benchmarking, schemes showed best value for emissions abatement.

Sheet Allowance
A1: Allowance
A3: Summary of allowed costs
B5: Final list of schemes | H5: AMP8 totex (£m) | O5: Cumulated carbon benefits (tCO2e)
C6: Company | D6: Scheme ID | E6: Scheme name | F6: Selected or Feasible | H6: 2025-26 | I6: 2026-27 | J6: 2027-28 | K6: 2028-29 | L6: 2029-30 | M6: AMP8 totex | O6: 2025-26 | P6: 2026-27 | Q6: 2027-28 | R6: 2028-29 | S6: 2029-30 | T6: AMP8 benefits
B7: 18 | C7: NWT | D7: E00001344 | E7: Peatland restoration | F7: =INDEX('Final data'!$F$5:$F$96, MATCH(C7&D7,'Final data'!$C$5:$C$96&'Final data'!$D$5:$D$96,0),0) -> Selected | H7: =INDEX('Final data'!G$5:G$95, MATCH($C7&$D7,'Final data'!$C$5:$C$96&'Final data'!$D$5:$D$96,0),0) -> 2.017522404 | I7: =INDEX('Final data'!H$5:H$95, MATCH($C7&$D7,'Final data'!$C$5:$C$96&'Final data'!$D$5:$D$96,0),0) -> 5.542274159 | J7: =INDEX('Final data'!I$5:I$95, MATCH($C7&$D7,'Final data'!$C$5:$C$96&'Final data'!$D$5:$D$96,0),0) -> 5.500926803 | K7: =INDEX('Final data'!J$5:J$95, MATCH($C7&$D7,'Final data'!$C$5:$C$96&'Final data'!$D$5:$D$96,0),0) -> 5.587205871 | L7: =INDEX('Final data'!K$5:K$95, MATCH($C7&$D7,'Final data'!$C$5:$C$96&'Final data'!$D$5:$D$96,0),0) -> 1.856696309 | M7: =INDEX('Final data'!L$5:L$95, MATCH($C7&$D7,'Final data'!$C$5:$C$96&'Final data'!$D$5:$D$96,0),0) -> 20.50462555 | O7: =INDEX('Final data'!M$5:M$95, MATCH($C7&$D7,'Final data'!$C$5:$C$96&'Final data'!$D$5:$D$96,0),0) -> 0 | P7: =INDEX('Final data'!N$5:N$95, MATCH($C7&$D7,'Final data'!$C$5:$C$96&'Final data'!$D$5:$D$96,0),0) -> 0 | Q7: =INDEX('Final data'!O$5:O$95, MATCH($C7&$D7,'Final data'!$C$5:$C$96&'Final data'!$D$5:$D$96,0),0) -> 0 | R7: =INDEX('Final data'!P$5:P$95, MATCH($C7&$D7,'Final data'!$C$5:$C$96&'Final data'!$D$5:$D$96,0),0) -> 0 | S7: =INDEX('Final data'!Q$5:Q$95, MATCH($C7&$D7,'Final data'!$C$5:$C$96&'Final data'!$D$5:$D$96,0),0) -> -13227 | T7: =INDEX('Final data'!R$5:R$95, MATCH($C7&$D7,'Final data'!$C$5:$C$96&'Final data'!$D$5:$D$96,0),0) -> -13227
B8: 21 | C8: WSH | D8: CW21_2 | E8: Net Zero Carbon Strategy: Carbon Work Package 6 (Peatland & Woodland Restoration) | F8: =INDEX('Final data'!$F$5:$F$96, MATCH(C8&D8,'Final data'!$C$5:$C$96&'Final data'!$D$5:$D$96,0),0) -> Selected | H8: =INDEX('Final data'!G$5:G$95, MATCH($C8&$D8,'Final data'!$C$5:$C$96&'Final data'!$D$5:$D$96,0),0) -> 2.7374 | I8: =INDEX('Final data'!H$5:H$95, MATCH($C8&$D8,'Final data'!$C$5:$C$96&'Final data'!$D$5:$D$96,0),0) -> 2.7374 | J8: =INDEX('Final data'!I$5:I$95, MATCH($C8&$D8,'Final data'!$C$5:$C$96&'Final data'!$D$5:$D$96,0),0) -> 2.7374 | K8: =INDEX('Final data'!J$5:J$95, MATCH($C8&$D8,'Final data'!$C$5:$C$96&'Final data'!$D$5:$D$96,0),0) -> 2.7374 | L8: =INDEX('Final data'!K$5:K$95, MATCH($C8&$D8,'Final data'!$C$5:$C$96&'Final data'!$D$5:$D$96,0),0) -> 2.7374 | M8: =INDEX('Final data'!L$5:L$95, MATCH($C8&$D8,'Final data'!$C$5:$C$96&'Final data'!$D$5:$D$96,0),0) -> 13.687 | N8: Totex value from outbound query response, as separate value for peatland restoration. | O8: =INDEX('Final data'!M$5:M$95, MATCH($C8&$D8,'Final data'!$C$5:$C$96&'Final data'!$D$5:$D$96,0),0) -> 0 | P8: =INDEX('Final data'!N$5:N$95, MATCH($C8&$D8,'Final data'!$C$5:$C$96&'Final data'!$D$5:$D$96,0),0) -> 0 | Q8: =INDEX('Final data'!O$5:O$95, MATCH($C8&$D8,'Final data'!$C$5:$C$96&'Final data'!$D$5:$D$96,0),0) -> 0 | R8: =INDEX('Final data'!P$5:P$95, MATCH($C8&$D8,'Final data'!$C$5:$C$96&'Final data'!$D$5:$D$96,0),0) -> 0 | S8: =INDEX('Final data'!Q$5:Q$95, MATCH($C8&$D8,'Final data'!$C$5:$C$96&'Final data'!$D$5:$D$96,0),0) -> 0 | T8: =INDEX('Final data'!R$5:R$95, MATCH($C8&$D8,'Final data'!$C$5:$C$96&'Final data'!$D$5:$D$96,0),0) -> 0
B15: Allowances per company requested in DD representations | D15: AMP8 totex (£m) | K15: Cumulated carbon benefits (tCO2e) in DD representations
C16: Company | D16: 2025-26 | E16: 2026-27 | F16: 2027-28 | G16: 2028-29 | H16: 2029-30 | I16: AMP8 totex | K16: 2025-26 | L16: 2026-27 | M16: 2027-28 | N16: 2028-29 | O16: 2029-30 | P16: AMP8 benefits
B17: 1 | C17: ANH | D17: =SUMIF($C$7:$C$17,$C17,H$7:H$17) -> 0 | E17: =SUMIF($C$7:$C$17,$C17,I$7:I$17) -> 0 | F17: =SUMIF($C$7:$C$17,$C17,J$7:J$17) -> 0 | G17: =SUMIF($C$7:$C$17,$C17,K$7:K$17) -> 0 | H17: =SUMIF($C$7:$C$17,$C17,L$7:L$17) -> 0 | I17: =SUMIF($C$7:$C$17,$C17,M$7:M$17) -> 0 | K17: =SUMIF($C$7:$C$12,$C17,O$7:O$12) -> 0 | L17: =SUMIF($C$7:$C$12,$C17,P$7:P$12) -> 0 | M17: =SUMIF($C$7:$C$12,$C17,Q$7:Q$12) -> 0 | N17: =SUMIF($C$7:$C$12,$C17,R$7:R$12) -> 0 | O17: =SUMIF($C$7:$C$12,$C17,S$7:S$12) -> 0 | P17: =SUMIF($C$7:$C$12,$C17,T$7:T$12) -> 0
B18: 2 | C18: HDD | D18: 0 | E18: 0 | F18: 0 | G18: 0 | H18: 0 | I18: 0 | K18: 0 | L18: 0 | M18: 0 | N18: 0 | O18: 0 | P18: 0
B19: 3 | C19: NES | D19: 0 | E19: 0 | F19: 0 | G19: 0 | H19: 0 | I19: 0 | K19: 0 | L19: 0 | M19: 0 | N19: 0 | O19: 0 | P19: 0
B20: 4 | C20: NWT | D20: 2.017522404 | E20: 5.542274159 | F20: 5.500926803 | G20: 5.587205871 | H20: 1.856696309 | I20: 20.50462555 | K20: 0 | L20: 0 | M20: 0 | N20: 0 | O20: -13227 | P20: -13227
B21: 5 | C21: SRN | D21: 0 | E21: 0 | F21: 0 | G21: 0 | H21: 0 | I21: 0 | K21: 0 | L21: 0 | M21: 0 | N21: 0 | O21: 0 | P21: 0
B22: 6 | C22: SVE | D22: 0 | E22: 0 | F22: 0 | G22: 0 | H22: 0 | I22: 0 | K22: 0 | L22: 0 | M22: 0 | N22: 0 | O22: 0 | P22: 0
B23: 7 | C23: SWB | D23: 0 | E23: 0 | F23: 0 | G23: 0 | H23: 0 | I23: 0 | K23: 0 | L23: 0 | M23: 0 | N23: 0 | O23: 0 | P23: 0
B24: 8 | C24: TMS | D24: 0 | E24: 0 | F24: 0 | G24: 0 | H24: 0 | I24: 0 | K24: 0 | L24: 0 | M24: 0 | N24: 0 | O24: 0 | P24: 0
B25: 9 | C25: WSH | D25: 2.7374 | E25: 2.7374 | F25: 2.7374 | G25: 2.7374 | H25: 2.7374 | I25: 13.687 | K25: 0 | L25: 0 | M25: 0 | N25: 0 | O25: 0 | P25: 0
B26: 10 | C26: WSX | D26: 0 | E26: 0 | F26: 0 | G26: 0 | H26: 0 | I26: 0 | K26: 0 | L26: 0 | M26: 0 | N26: 0 | O26: 0 | P26: 0
B27: 11 | C27: YKY | D27: 0 | E27: 0 | F27: 0 | G27: 0 | H27: 0 | I27: 0 | K27: 0 | L27: 0 | M27: 0 | N27: 0 | O27: 0 | P27: 0
B28: 12 | C28: AFW | D28: 0 | E28: 0 | F28: 0 | G28: 0 | H28: 0 | I28: 0 | K28: 0 | L28: 0 | M28: 0 | N28: 0 | O28: 0 | P28: 0
B29: 13 | C29: BRL | D29: 0 | E29: 0 | F29: 0 | G29: 0 | H29: 0 | I29: 0 | K29: 0 | L29: 0 | M29: 0 | N29: 0 | O29: 0 | P29: 0
B30: 14 | C30: PRT | D30: 0 | E30: 0 | F30: 0 | G30: 0 | H30: 0 | I30: 0 | K30: 0 | L30: 0 | M30: 0 | N30: 0 | O30: 0 | P30: 0
B31: 15 | C31: SEW | D31: 0 | E31: 0 | F31: 0 | G31: 0 | H31: 0 | I31: 0 | K31: 0 | L31: 0 | M31: 0 | N31: 0 | O31: 0 | P31: 0
B32: 16 | C32: SSC | D32: 0 | E32: 0 | F32: 0 | G32: 0 | H32: 0 | I32: 0 | K32: 0 | L32: 0 | M32: 0 | N32: 0 | O32: 0 | P32: 0
B33: 17 | C33: SES | D33: 0 | E33: 0 | F33: 0 | G33: 0 | H33: 0 | I33: 0 | K33: 0 | L33: 0 | M33: 0 | N33: 0 | O33: 0 | P33: 0
C35: Total | D35: =SUM(D17:D33) -> 4.754922404 | E35: 8.279674159 | F35: 8.238326803 | G35: 8.324605871 | H35: 4.594096309 | I35: 34.19162555 | K35: =SUM(K17:K34) -> 0 | L35: =SUM(L17:L34) -> 0 | M35: 0 | N35: 0 | O35: -13227 | P35: -13227
G37: Pivot Table Note: Select "scheme name" in pivot table options to see all schemes
B40: Allowance requested in DD representations
L41: Assessed totex (£m) in DD representations- Selected schemes | O41: Assessed totex (£m) in DD representations- Feasible schemes | R41: Assessed totex (£m) in DD representations- Selected and Feasible schemes
B42: Sum of AMP8 totex (£m, 2025-30) | C42: Column Labels | L42: Overall assessed totex | M42: Company | O42: Overall assessed totex | P42: Company | R42: Overall assessed totex | S42: Company | T42: Compared to CWW3
C43: Fail | G43: Fail Total | H43: Pass | I43: Pass Total | J43: Grand Total | L43: =SUMIFS('Final data'!$L$5:$L$95, 'Final data'!$C$5:$C$95, B45, 'Final data'!$F$5:$F$95, "Selected") -> 0 | M43: AFW | O43: =SUMIFS('Final data'!$L$5:$L$95, 'Final data'!$C$5:$C$95, B45, 'Final data'!$F$5:$F$95, "Feasible") -> 0 | P43: AFW | R43: =O43+L43 -> 0 | S43: AFW
B44: Row Labels | C44: 0 | D44: Feasible | E44: Not defined | F44: Selected | H44: Selected | L44: =SUMIFS('Final data'!$L$5:$L$95, 'Final data'!$C$5:$C$95, B46, 'Final data'!$F$5:$F$95, "Selected") -> 0 | M44: ANH | O44: =SUMIFS('Final data'!$L$5:$L$95, 'Final data'!$C$5:$C$95, B46, 'Final data'!$F$5:$F$95, "Feasible") -> 0 | P44: ANH | R44: =O44+L44 -> 0 | S44: ANH
B45: AFW | E45: 0 | G45: 0 | J45: 0 | L45: =SUMIFS('Final data'!$L$5:$L$95, 'Final data'!$C$5:$C$95, B47, 'Final data'!$F$5:$F$95, "Selected") -> 1.14541423 | M45: HDD | O45: =SUMIFS('Final data'!$L$5:$L$95, 'Final data'!$C$5:$C$95, B47, 'Final data'!$F$5:$F$95, "Feasible") -> 0 | P45: HDD | R45: 1.14541423 | S45: HDD
B46: ANH | E46: 0 | G46: 0 | J46: 0 | L46: =SUMIFS('Final data'!$L$5:$L$95, 'Final data'!$C$5:$C$95, B48, 'Final data'!$F$5:$F$95, "Selected") -> 12.59602622 | M46: SEW | O46: =SUMIFS('Final data'!$L$5:$L$95, 'Final data'!$C$5:$C$95, B48, 'Final data'!$F$5:$F$95, "Feasible") -> 0 | P46: SEW | R46: 12.59602622 | S46: SEW
B47: HDD | F47: 1.14541423 | G47: 1.14541423 | J47: 1.14541423 | L47: =SUMIFS('Final data'!$L$5:$L$95, 'Final data'!$C$5:$C$95, B49, 'Final data'!$F$5:$F$95, "Selected") -> 7.23677048 | M47: SSC | O47: =SUMIFS('Final data'!$L$5:$L$95, 'Final data'!$C$5:$C$95, B49, 'Final data'!$F$5:$F$95, "Feasible") -> 0 | P47: SSC | R47: 7.23677048 | S47: SSC
B48: SEW | F48: 12.59602622 | G48: 12.59602622 | J48: 12.59602622 | L48: =SUMIFS('Final data'!$L$5:$L$95, 'Final data'!$C$5:$C$95, B50, 'Final data'!$F$5:$F$95, "Selected") -> 64.711 | M48: SVE | O48: =SUMIFS('Final data'!$L$5:$L$95, 'Final data'!$C$5:$C$95, B50, 'Final data'!$F$5:$F$95, "Feasible") -> 17.396 | P48: SVE | R48: 82.107 | S48: SVE
B49: SSC | F49: 7.23677048 | G49: 7.23677048 | J49: 7.23677048 | L49: =SUMIFS('Final data'!$L$5:$L$95, 'Final data'!$C$5:$C$95, B51, 'Final data'!$F$5:$F$95, "Selected") -> 0 | M49: TMS | O49: =SUMIFS('Final data'!$L$5:$L$95, 'Final data'!$C$5:$C$95, B51, 'Final data'!$F$5:$F$95, "Feasible") -> 16.378 | P49: TMS | R49: 16.378 | S49: TMS
B50: SVE | D50: 17.396 | F50: 64.711 | G50: 82.107 | J50: 82.107 | L50: =SUMIFS('Final data'!$L$5:$L$95, 'Final data'!$C$5:$C$95, B52, 'Final data'!$F$5:$F$95, "Selected") -> 26.19121262 | M50: NWT | O50: =SUMIFS('Final data'!$L$5:$L$95, 'Final data'!$C$5:$C$95, B52, 'Final data'!$F$5:$F$95, "Feasible") -> 0 | P50: NWT | R50: 26.19121262 | S50: NWT
B51: TMS | D51: 16.378 | G51: 16.378 | J51: 16.378 | L51: =SUMIFS('Final data'!$L$5:$L$95, 'Final data'!$C$5:$C$95, B53, 'Final data'!$F$5:$F$95, "Selected") -> 14.97650696 | M51: WSH | O51: =SUMIFS('Final data'!$L$5:$L$95, 'Final data'!$C$5:$C$95, B53, 'Final data'!$F$5:$F$95, "Feasible") -> 0 | P51: WSH | R51: 14.97650696 | S51: WSH
B52: NWT | E52: 0 | F52: 5.686587073 | G52: 5.686587073 | H52: 20.50462555 | I52: 20.50462555 | J52: 26.19121262 | L52: =SUMIFS('Final data'!$L$5:$L$95, 'Final data'!$C$5:$C$95, B54, 'Final data'!$F$5:$F$95, "Selected") -> 3.055933809 | M52: WSX | O52: =SUMIFS('Final data'!$L$5:$L$95, 'Final data'!$C$5:$C$95, B54, 'Final data'!$F$5:$F$95, "Feasible") -> 0 | P52: WSX | R52: 3.055933809 | S52: WSX
B53: WSH | F53: 1.289506962 | G53: 1.289506962 | H53: 13.687 | I53: 13.687 | J53: 14.97650696 | L53: =SUMIFS('Final data'!$L$5:$L$95, 'Final data'!$C$5:$C$95, B55, 'Final data'!$F$5:$F$95, "Selected") -> 0 | M53: YKY | O53: =SUMIFS('Final data'!$L$5:$L$95, 'Final data'!$C$5:$C$95, B55, 'Final data'!$F$5:$F$95, "Feasible") -> 0 | P53: YKY | R53: 0 | S53: YKY
B54: WSX | F54: 3.055933809 | G54: 3.055933809 | J54: 3.055933809
B55: YKY | C55: 0 | G55: 0 | J55: 0
B56: Grand Total | C56: 0 | D56: 33.774 | E56: 0 | F56: 95.72123877 | G56: 129.4952388 | H56: 34.19162555 | I56: 34.19162555 | J56: 163.6868643 | L56: =SUM(L43:L53) -> 129.9128643 | O56: =SUM(O43:O53) -> 33.774 | R56: =SUM(R43:R53) -> 163.6868643

Sheet F_Outputs
C1: PR24CA44
A2: Acronym | B2: Reference | C2: Item description | D2: Unit | E2: Model | F2: Constant | G2: 2023-24 | H2: 2024-25 | I2: 2025-26 | J2: 2026-27 | K2: 2027-28 | L2: 2028-29 | M2: 2029-30
A4: ANH | B4: =CONCATENATE("C_", $C$1, "_ENH_W_TOT") -> C_PR24CA44_ENH_W_TOT | C4: Total enhancement allowance - Water - Net zero - Totex | D4: £m | E4: Price Review 2024 | I4: =SUMIFS(Allowance!D$17:D$33, Allowance!$C$17:$C$33, $A4) -> 0 | J4: =SUMIFS(Allowance!E$17:E$33, Allowance!$C$17:$C$33, $A4) -> 0 | K4: =SUMIFS(Allowance!F$17:F$33, Allowance!$C$17:$C$33, $A4) -> 0 | L4: =SUMIFS(Allowance!G$17:G$33, Allowance!$C$17:$C$33, $A4) -> 0 | M4: =SUMIFS(Allowance!H$17:H$33, Allowance!$C$17:$C$33, $A4) -> 0
A5: ANH | B5: =CONCATENATE("C_", $C$1, "_ENH_W_AP") -> C_PR24CA44_ENH_W_AP | C5: Total enhancement allowance - Water - Net zero - Accelerated programme | D5: £m | E5: Price Review 2024
A6: ANH | B6: =CONCATENATE("C_", $C$1, "_ENH_W_TE") -> C_PR24CA44_ENH_W_TE | C6: Total enhancement allowance - Water - Net zero - Transition allowance | D6: £m | E6: Price Review 2024
A7: ANH | B7: =CONCATENATE("PR24QA_", $C$1, "_OUT1") -> PR24QA_PR24CA44_OUT1 | C7: =CONCATENATE("Date & Time for Model - ", $C$1) -> Date & Time for Model - PR24CA44 | D7: Text | E7: Price Review 2024 | F7: =CONCATENATE("[…]", TEXT(NOW(),"dd/mm/yyy hh:mm:ss")) -> […]16/12/2024 16:45:37 | G7: […]16/12/2024 16:45:37 | H7: […]16/12/2024 16:45:37 | I7: […]16/12/2024 16:45:37 | J7: […]16/12/2024 16:45:37 | K7: […]16/12/2024 16:45:37 | L7: […]16/12/2024 16:45:37 | M7: […]16/12/2024 16:45:37
A8: ANH | B8: =CONCATENATE("PR24QA_", $C$1, "_OUT2") -> PR24QA_PR24CA44_OUT2 | C8: =CONCATENATE("Name of Model - ", $C$1) -> Name of Model - PR24CA44 | D8: Text | E8: Price Review 2024 | F8: =MID(CELL("filename"),SEARCH("[",CELL("filename"))+1,SEARCH("]",CELL("filename"))-SEARCH("[",CELL("filename"))-1) -> 
A9: ANH | B9: =CONCATENATE("PR24QA_", $C$1, "_OUT3") -> PR24QA_PR24CA44_OUT3 | C9: =CONCATENATE("F_Inputs time stamp - ", $C$1) -> F_Inputs time stamp - PR24CA44 | D9: Text | E9: Price Review 2024 | F9: N/A | G9: N/A | H9: N/A | I9: N/A | J9: N/A | K9: N/A | L9: N/A | M9: N/A
A10: ANH | B10: =CONCATENATE("PR24QA_", $C$1, "_OUT4") -> PR24QA_PR24CA44_OUT4 | C10: =CONCATENATE("Model override switch for - ", $C$1) -> Model override switch for - PR24CA44 | D10: nr | E10: Price Review 2024 | F10: 0 | G10: 0 | H10: 0 | I10: 0 | J10: 0 | K10: 0 | L10: 0 | M10: 0
A11: ANH | B11: =CONCATENATE("C_", $C$1, "_ENH_W_ASSESSED") -> C_PR24CA44_ENH_W_ASSESSED | C11: =CONCATENATE("Total amount assessed - ", MID($C$4,31,200)) -> Total amount assessed - Water - Net zero - Totex | D11: £m | E11: Price Review 2024 | F11: =SUMIFS(Allowance!$R$43:$R$53, Allowance!$S$43:$S$53, A11) -> 0
A12: HDD | B12: =CONCATENATE("C_", $C$1, "_ENH_W_TOT") -> C_PR24CA44_ENH_W_TOT | C12: =$C$4 -> Total enhancement allowance - Water - Net zero - Totex | D12: £m | E12: Price Review 2024 | I12: =SUMIFS(Allowance!D$17:D$33, Allowance!$C$17:$C$33, $A12) -> 0 | J12: =SUMIFS(Allowance!E$17:E$33, Allowance!$C$17:$C$33, $A12) -> 0 | K12: =SUMIFS(Allowance!F$17:F$33, Allowance!$C$17:$C$33, $A12) -> 0 | L12: =SUMIFS(Allowance!G$17:G$33, Allowance!$C$17:$C$33, $A12) -> 0 | M12: =SUMIFS(Allowance!H$17:H$33, Allowance!$C$17:$C$33, $A12) -> 0
A13: HDD | B13: =CONCATENATE("C_", $C$1, "_ENH_W_AP") -> C_PR24CA44_ENH_W_AP | C13: =$C$5 -> Total enhancement allowance - Water - Net zero - Accelerated programme | D13: £m | E13: Price Review 2024
A14: HDD | B14: =CONCATENATE("C_", $C$1, "_ENH_W_TE") -> C_PR24CA44_ENH_W_TE | C14: =$C$6 -> Total enhancement allowance - Water - Net zero - Transition allowance | D14: £m | E14: Price Review 2024
A15: HDD | B15: =CONCATENATE("PR24QA_", $C$1, "_OUT1") -> PR24QA_PR24CA44_OUT1 | C15: =CONCATENATE("Date & Time for Model - ", $C$1) -> Date & Time for Model - PR24CA44 | D15: Text | E15: Price Review 2024 | F15: =CONCATENATE("[…]", TEXT(NOW(),"dd/mm/yyy hh:mm:ss")) -> […]16/12/2024 16:45:37 | G15: […]16/12/2024 16:45:37 | H15: […]16/12/2024 16:45:37 | I15: […]16/12/2024 16:45:37 | J15: […]16/12/2024 16:45:37 | K15: […]16/12/2024 16:45:37 | L15: […]16/12/2024 16:45:37 | M15: […]16/12/2024 16:45:37
A16: HDD | B16: =CONCATENATE("PR24QA_", $C$1, "_OUT2") -> PR24QA_PR24CA44_OUT2 | C16: =CONCATENATE("Name of Model - ", $C$1) -> Name of Model - PR24CA44 | D16: Text | E16: Price Review 2024 | F16: =MID(CELL("filename"),SEARCH("[",CELL("filename"))+1,SEARCH("]",CELL("filename"))-SEARCH("[",CELL("filename"))-1) -> 
A17: HDD | B17: =CONCATENATE("PR24QA_", $C$1, "_OUT3") -> PR24QA_PR24CA44_OUT3 | C17: =CONCATENATE("F_Inputs time stamp - ", $C$1) -> F_Inputs time stamp - PR24CA44 | D17: Text | E17: Price Review 2024 | F17: N/A | G17: N/A | H17: N/A | I17: N/A | J17: N/A | K17: N/A | L17: N/A | M17: N/A
A18: HDD | B18: =CONCATENATE("PR24QA_", $C$1, "_OUT4") -> PR24QA_PR24CA44_OUT4 | C18: =CONCATENATE("Model override switch for - ", $C$1) -> Model override switch for - PR24CA44 | D18: nr | E18: Price Review 2024 | F18: 0 | G18: 0 | H18: 0 | I18: 0 | J18: 0 | K18: 0 | L18: 0 | M18: 0
A19: HDD | B19: =CONCATENATE("C_", $C$1, "_ENH_W_ASSESSED") -> C_PR24CA44_ENH_W_ASSESSED | C19: =CONCATENATE("Total amount assessed - ", MID($C$4,31,200)) -> Total amount assessed - Water - Net zero - Totex | D19: £m | E19: Price Review 2024 | F19: =SUMIFS(Allowance!$R$43:$R$53, Allowance!$S$43:$S$53, A19) -> 1.14541423
A20: NES | B20: =CONCATENATE("C_", $C$1, "_ENH_W_TOT") -> C_PR24CA44_ENH_W_TOT | C20: =$C$4 -> Total enhancement allowance - Water - Net zero - Totex | D20: £m | E20: Price Review 2024 | I20: =SUMIFS(Allowance!D$17:D$33, Allowance!$C$17:$C$33, $A20) -> 0 | J20: =SUMIFS(Allowance!E$17:E$33, Allowance!$C$17:$C$33, $A20) -> 0 | K20: =SUMIFS(Allowance!F$17:F$33, Allowance!$C$17:$C$33, $A20) -> 0 | L20: =SUMIFS(Allowance!G$17:G$33, Allowance!$C$17:$C$33, $A20) -> 0 | M20: =SUMIFS(Allowance!H$17:H$33, Allowance!$C$17:$C$33, $A20) -> 0
A21: NES | B21: =CONCATENATE("C_", $C$1, "_ENH_W_AP") -> C_PR24CA44_ENH_W_AP | C21: =$C$5 -> Total enhancement allowance - Water - Net zero - Accelerated programme | D21: £m | E21: Price Review 2024
A22: NES | B22: =CONCATENATE("C_", $C$1, "_ENH_W_TE") -> C_PR24CA44_ENH_W_TE | C22: =$C$6 -> Total enhancement allowance - Water - Net zero - Transition allowance | D22: £m | E22: Price Review 2024
A23: NES | B23: =CONCATENATE("PR24QA_", $C$1, "_OUT1") -> PR24QA_PR24CA44_OUT1 | C23: =CONCATENATE("Date & Time for Model - ", $C$1) -> Date & Time for Model - PR24CA44 | D23: Text | E23: Price Review 2024 | F23: =CONCATENATE("[…]", TEXT(NOW(),"dd/mm/yyy hh:mm:ss")) -> […]16/12/2024 16:45:37 | G23: […]16/12/2024 16:45:37 | H23: […]16/12/2024 16:45:37 | I23: […]16/12/2024 16:45:37 | J23: […]16/12/2024 16:45:37 | K23: […]16/12/2024 16:45:37 | L23: […]16/12/2024 16:45:37 | M23: […]16/12/2024 16:45:37
A24: NES | B24: =CONCATENATE("PR24QA_", $C$1, "_OUT2") -> PR24QA_PR24CA44_OUT2 | C24: =CONCATENATE("Name of Model - ", $C$1) -> Name of Model - PR24CA44 | D24: Text | E24: Price Review 2024 | F24: =MID(CELL("filename"),SEARCH("[",CELL("filename"))+1,SEARCH("]",CELL("filename"))-SEARCH("[",CELL("filename"))-1) -> 
A25: NES | B25: =CONCATENATE("PR24QA_", $C$1, "_OUT3") -> PR24QA_PR24CA44_OUT3 | C25: =CONCATENATE("F_Inputs time stamp - ", $C$1) -> F_Inputs time stamp - PR24CA44 | D25: Text | E25: Price Review 2024 | F25: N/A | G25: N/A | H25: N/A | I25: N/A | J25: N/A | K25: N/A | L25: N/A | M25: N/A
A26: NES | B26: =CONCATENATE("PR24QA_", $C$1, "_OUT4") -> PR24QA_PR24CA44_OUT4 | C26: =CONCATENATE("Model override switch for - ", $C$1) -> Model override switch for - PR24CA44 | D26: nr | E26: Price Review 2024 | F26: 0 | G26: 0 | H26: 0 | I26: 0 | J26: 0 | K26: 0 | L26: 0 | M26: 0
A27: NES | B27: =CONCATENATE("C_", $C$1, "_ENH_W_ASSESSED") -> C_PR24CA44_ENH_W_ASSESSED | C27: =CONCATENATE("Total amount assessed - ", MID($C$4,31,200)) -> Total amount assessed - Water - Net zero - Totex | D27: £m | E27: Price Review 2024 | F27: =SUMIFS(Allowance!$R$43:$R$53, Allowance!$S$43:$S$53, A27) -> 0
A28: NWT | B28: =CONCATENATE("C_", $C$1, "_ENH_W_TOT") -> C_PR24CA44_ENH_W_TOT | C28: =$C$4 -> Total enhancement allowance - Water - Net zero - Totex | D28: £m | E28: Price Review 2024 | I28: =SUMIFS(Allowance!D$17:D$33, Allowance!$C$17:$C$33, $A28) -> 2.017522404 | J28: =SUMIFS(Allowance!E$17:E$33, Allowance!$C$17:$C$33, $A28) -> 5.542274159 | K28: =SUMIFS(Allowance!F$17:F$33, Allowance!$C$17:$C$33, $A28) -> 5.500926803 | L28: =SUMIFS(Allowance!G$17:G$33, Allowance!$C$17:$C$33, $A28) -> 5.587205871 | M28: =SUMIFS(Allowance!H$17:H$33, Allowance!$C$17:$C$33, $A28) -> 1.856696309
A29: NWT | B29: =CONCATENATE("C_", $C$1, "_ENH_W_AP") -> C_PR24CA44_ENH_W_AP | C29: =$C$5 -> Total enhancement allowance - Water - Net zero - Accelerated programme | D29: £m | E29: Price Review 2024
A30: NWT | B30: =CONCATENATE("C_", $C$1, "_ENH_W_TE") -> C_PR24CA44_ENH_W_TE | C30: =$C$6 -> Total enhancement allowance - Water - Net zero - Transition allowance | D30: £m | E30: Price Review 2024
A31: NWT | B31: =CONCATENATE("PR24QA_", $C$1, "_OUT1") -> PR24QA_PR24CA44_OUT1 | C31: =CONCATENATE("Date & Time for Model - ", $C$1) -> Date & Time for Model - PR24CA44 | D31: Text | E31: Price Review 2024 | F31: =CONCATENATE("[…]", TEXT(NOW(),"dd/mm/yyy hh:mm:ss")) -> […]16/12/2024 16:45:37 | G31: […]16/12/2024 16:45:37 | H31: […]16/12/2024 16:45:37 | I31: […]16/12/2024 16:45:37 | J31: […]16/12/2024 16:45:37 | K31: […]16/12/2024 16:45:37 | L31: […]16/12/2024 16:45:37 | M31: […]16/12/2024 16:45:37
A32: NWT | B32: =CONCATENATE("PR24QA_", $C$1, "_OUT2") -> PR24QA_PR24CA44_OUT2 | C32: =CONCATENATE("Name of Model - ", $C$1) -> Name of Model - PR24CA44 | D32: Text | E32: Price Review 2024 | F32: =MID(CELL("filename"),SEARCH("[",CELL("filename"))+1,SEARCH("]",CELL("filename"))-SEARCH("[",CELL("filename"))-1) -> 
A33: NWT | B33: =CONCATENATE("PR24QA_", $C$1, "_OUT3") -> PR24QA_PR24CA44_OUT3 | C33: =CONCATENATE("F_Inputs time stamp - ", $C$1) -> F_Inputs time stamp - PR24CA44 | D33: Text | E33: Price Review 2024 | F33: N/A | G33: N/A | H33: N/A | I33: N/A | J33: N/A | K33: N/A | L33: N/A | M33: N/A
A34: NWT | B34: =CONCATENATE("PR24QA_", $C$1, "_OUT4") -> PR24QA_PR24CA44_OUT4 | C34: =CONCATENATE("Model override switch for - ", $C$1) -> Model override switch for - PR24CA44 | D34: nr | E34: Price Review 2024 | F34: 0 | G34: 0 | H34: 0 | I34: 0 | J34: 0 | K34: 0 | L34: 0 | M34: 0
A35: NWT | B35: =CONCATENATE("C_", $C$1, "_ENH_W_ASSESSED") -> C_PR24CA44_ENH_W_ASSESSED | C35: =CONCATENATE("Total amount assessed - ", MID($C$4,31,200)) -> Total amount assessed - Water - Net zero - Totex | D35: £m | E35: Price Review 2024 | F35: =SUMIFS(Allowance!$R$43:$R$53, Allowance!$S$43:$S$53, A35) -> 26.19121262
A36: SRN | B36: =CONCATENATE("C_", $C$1, "_ENH_W_TOT") -> C_PR24CA44_ENH_W_TOT | C36: =$C$4 -> Total enhancement allowance - Water - Net zero - Totex | D36: £m | E36: Price Review 2024 | I36: =SUMIFS(Allowance!D$17:D$33, Allowance!$C$17:$C$33, $A36) -> 0 | J36: =SUMIFS(Allowance!E$17:E$33, Allowance!$C$17:$C$33, $A36) -> 0 | K36: =SUMIFS(Allowance!F$17:F$33, Allowance!$C$17:$C$33, $A36) -> 0 | L36: =SUMIFS(Allowance!G$17:G$33, Allowance!$C$17:$C$33, $A36) -> 0 | M36: =SUMIFS(Allowance!H$17:H$33, Allowance!$C$17:$C$33, $A36) -> 0
A37: SRN | B37: =CONCATENATE("C_", $C$1, "_ENH_W_AP") -> C_PR24CA44_ENH_W_AP | C37: =$C$5 -> Total enhancement allowance - Water - Net zero - Accelerated programme | D37: £m | E37: Price Review 2024
A38: SRN | B38: =CONCATENATE("C_", $C$1, "_ENH_W_TE") -> C_PR24CA44_ENH_W_TE | C38: =$C$6 -> Total enhancement allowance - Water - Net zero - Transition allowance | D38: £m | E38: Price Review 2024
A39: SRN | B39: =CONCATENATE("PR24QA_", $C$1, "_OUT1") -> PR24QA_PR24CA44_OUT1 | C39: =CONCATENATE("Date & Time for Model - ", $C$1) -> Date & Time for Model - PR24CA44 | D39: Text | E39: Price Review 2024 | F39: =CONCATENATE("[…]", TEXT(NOW(),"dd/mm/yyy hh:mm:ss")) -> […]16/12/2024 16:45:37 | G39: […]16/12/2024 16:45:37 | H39: […]16/12/2024 16:45:37 | I39: […]16/12/2024 16:45:37 | J39: […]16/12/2024 16:45:37 | K39: […]16/12/2024 16:45:37 | L39: […]16/12/2024 16:45:37 | M39: […]16/12/2024 16:45:37
A40: SRN | B40: =CONCATENATE("PR24QA_", $C$1, "_OUT2") -> PR24QA_PR24CA44_OUT2 | C40: =CONCATENATE("Name of Model - ", $C$1) -> Name of Model - PR24CA44 | D40: Text | E40: Price Review 2024 | F40: =MID(CELL("filename"),SEARCH("[",CELL("filename"))+1,SEARCH("]",CELL("filename"))-SEARCH("[",CELL("filename"))-1) -> 
A41: SRN | B41: =CONCATENATE("PR24QA_", $C$1, "_OUT3") -> PR24QA_PR24CA44_OUT3 | C41: =CONCATENATE("F_Inputs time stamp - ", $C$1) -> F_Inputs time stamp - PR24CA44 | D41: Text | E41: Price Review 2024 | F41: N/A | G41: N/A | H41: N/A | I41: N/A | J41: N/A | K41: N/A | L41: N/A | M41: N/A
A42: SRN | B42: =CONCATENATE("PR24QA_", $C$1, "_OUT4") -> PR24QA_PR24CA44_OUT4 | C42: =CONCATENATE("Model override switch for - ", $C$1) -> Model override switch for - PR24CA44 | D42: nr | E42: Price Review 2024 | F42: 0 | G42: 0 | H42: 0 | I42: 0 | J42: 0 | K42: 0 | L42: 0 | M42: 0
A43: SRN | B43: =CONCATENATE("C_", $C$1, "_ENH_W_ASSESSED") -> C_PR24CA44_ENH_W_ASSESSED | C43: =CONCATENATE("Total amount assessed - ", MID($C$4,31,200)) -> Total amount assessed - Water - Net zero - Totex | D43: £m | E43: Price Review 2024 | F43: =SUMIFS(Allowance!$R$43:$R$53, Allowance!$S$43:$S$53, A43) -> 0
A44: SVE | B44: =CONCATENATE("C_", $C$1, "_ENH_W_TOT") -> C_PR24CA44_ENH_W_TOT | C44: =$C$4 -> Total enhancement allowance - Water - Net zero - Totex | D44: £m | E44: Price Review 2024 | I44: =SUMIFS(Allowance!D$17:D$33, Allowance!$C$17:$C$33, $A44) -> 0 | J44: =SUMIFS(Allowance!E$17:E$33, Allowance!$C$17:$C$33, $A44) -> 0 | K44: =SUMIFS(Allowance!F$17:F$33, Allowance!$C$17:$C$33, $A44) -> 0 | L44: =SUMIFS(Allowance!G$17:G$33, Allowance!$C$17:$C$33, $A44) -> 0 | M44: =SUMIFS(Allowance!H$17:H$33, Allowance!$C$17:$C$33, $A44) -> 0
A45: SVE | B45: =CONCATENATE("C_", $C$1, "_ENH_W_AP") -> C_PR24CA44_ENH_W_AP | C45: =$C$5 -> Total enhancement allowance - Water - Net zero - Accelerated programme | D45: £m | E45: Price Review 2024
A46: SVE | B46: =CONCATENATE("C_", $C$1, "_ENH_W_TE") -> C_PR24CA44_ENH_W_TE | C46: =$C$6 -> Total enhancement allowance - Water - Net zero - Transition allowance | D46: £m | E46: Price Review 2024
A47: SVE | B47: =CONCATENATE("PR24QA_", $C$1, "_OUT1") -> PR24QA_PR24CA44_OUT1 | C47: =CONCATENATE("Date & Time for Model - ", $C$1) -> Date & Time for Model - PR24CA44 | D47: Text | E47: Price Review 2024 | F47: =CONCATENATE("[…]", TEXT(NOW(),"dd/mm/yyy hh:mm:ss")) -> […]16/12/2024 16:45:37 | G47: […]16/12/2024 16:45:37 | H47: […]16/12/2024 16:45:37 | I47: […]16/12/2024 16:45:37 | J47: […]16/12/2024 16:45:37 | K47: […]16/12/2024 16:45:37 | L47: […]16/12/2024 16:45:37 | M47: […]16/12/2024 16:45:37
A48: SVE | B48: =CONCATENATE("PR24QA_", $C$1, "_OUT2") -> PR24QA_PR24CA44_OUT2 | C48: =CONCATENATE("Name of Model - ", $C$1) -> Name of Model - PR24CA44 | D48: Text | E48: Price Review 2024 | F48: =MID(CELL("filename"),SEARCH("[",CELL("filename"))+1,SEARCH("]",CELL("filename"))-SEARCH("[",CELL("filename"))-1) -> 
A49: SVE | B49: =CONCATENATE("PR24QA_", $C$1, "_OUT3") -> PR24QA_PR24CA44_OUT3 | C49: =CONCATENATE("F_Inputs time stamp - ", $C$1) -> F_Inputs time stamp - PR24CA44 | D49: Text | E49: Price Review 2024 | F49: N/A | G49: N/A | H49: N/A | I49: N/A | J49: N/A | K49: N/A | L49: N/A | M49: N/A
A50: SVE | B50: =CONCATENATE("PR24QA_", $C$1, "_OUT4") -> PR24QA_PR24CA44_OUT4 | C50: =CONCATENATE("Model override switch for - ", $C$1) -> Model override switch for - PR24CA44 | D50: nr | E50: Price Review 2024 | F50: 0 | G50: 0 | H50: 0 | I50: 0 | J50: 0 | K50: 0 | L50: 0 | M50: 0
A51: SVE | B51: =CONCATENATE("C_", $C$1, "_ENH_W_ASSESSED") -> C_PR24CA44_ENH_W_ASSESSED | C51: =CONCATENATE("Total amount assessed - ", MID($C$4,31,200)) -> Total amount assessed - Water - Net zero - Totex | D51: £m | E51: Price Review 2024 | F51: =SUMIFS(Allowance!$R$43:$R$53, Allowance!$S$43:$S$53, A51) -> 82.107
A52: SWB | B52: =CONCATENATE("C_", $C$1, "_ENH_W_TOT") -> C_PR24CA44_ENH_W_TOT | C52: =$C$4 -> Total enhancement allowance - Water - Net zero - Totex | D52: £m | E52: Price Review 2024 | I52: =SUMIFS(Allowance!D$17:D$33, Allowance!$C$17:$C$33, $A52) -> 0 | J52: =SUMIFS(Allowance!E$17:E$33, Allowance!$C$17:$C$33, $A52) -> 0 | K52: =SUMIFS(Allowance!F$17:F$33, Allowance!$C$17:$C$33, $A52) -> 0 | L52: =SUMIFS(Allowance!G$17:G$33, Allowance!$C$17:$C$33, $A52) -> 0 | M52: =SUMIFS(Allowance!H$17:H$33, Allowance!$C$17:$C$33, $A52) -> 0
A53: SWB | B53: =CONCATENATE("C_", $C$1, "_ENH_W_AP") -> C_PR24CA44_ENH_W_AP | C53: =$C$5 -> Total enhancement allowance - Water - Net zero - Accelerated programme | D53: £m | E53: Price Review 2024
A54: SWB | B54: =CONCATENATE("C_", $C$1, "_ENH_W_TE") -> C_PR24CA44_ENH_W_TE | C54: =$C$6 -> Total enhancement allowance - Water - Net zero - Transition allowance | D54: £m | E54: Price Review 2024
A55: SWB | B55: =CONCATENATE("PR24QA_", $C$1, "_OUT1") -> PR24QA_PR24CA44_OUT1 | C55: =CONCATENATE("Date & Time for Model - ", $C$1) -> Date & Time for Model - PR24CA44 | D55: Text | E55: Price Review 2024 | F55: =CONCATENATE("[…]", TEXT(NOW(),"dd/mm/yyy hh:mm:ss")) -> […]16/12/2024 16:45:37 | G55: […]16/12/2024 16:45:37 | H55: […]16/12/2024 16:45:37 | I55: […]16/12/2024 16:45:37 | J55: […]16/12/2024 16:45:37 | K55: […]16/12/2024 16:45:37 | L55: […]16/12/2024 16:45:37 | M55: […]16/12/2024 16:45:37
A56: SWB | B56: =CONCATENATE("PR24QA_", $C$1, "_OUT2") -> PR24QA_PR24CA44_OUT2 | C56: =CONCATENATE("Name of Model - ", $C$1) -> Name of Model - PR24CA44 | D56: Text | E56: Price Review 2024 | F56: =MID(CELL("filename"),SEARCH("[",CELL("filename"))+1,SEARCH("]",CELL("filename"))-SEARCH("[",CELL("filename"))-1) -> 
A57: SWB | B57: =CONCATENATE("PR24QA_", $C$1, "_OUT3") -> PR24QA_PR24CA44_OUT3 | C57: =CONCATENATE("F_Inputs time stamp - ", $C$1) -> F_Inputs time stamp - PR24CA44 | D57: Text | E57: Price Review 2024 | F57: N/A | G57: N/A | H57: N/A | I57: N/A | J57: N/A | K57: N/A | L57: N/A | M57: N/A
A58: SWB | B58: =CONCATENATE("PR24QA_", $C$1, "_OUT4") -> PR24QA_PR24CA44_OUT4 | C58: =CONCATENATE("Model override switch for - ", $C$1) -> Model override switch for - PR24CA44 | D58: nr | E58: Price Review 2024 | F58: 0 | G58: 0 | H58: 0 | I58: 0 | J58: 0 | K58: 0 | L58: 0 | M58: 0
A59: SWB | B59: =CONCATENATE("C_", $C$1, "_ENH_W_ASSESSED") -> C_PR24CA44_ENH_W_ASSESSED | C59: =CONCATENATE("Total amount assessed - ", MID($C$4,31,200)) -> Total amount assessed - Water - Net zero - Totex | D59: £m | E59: Price Review 2024 | F59: =SUMIFS(Allowance!$R$43:$R$53, Allowance!$S$43:$S$53, A59) -> 0
A60: TMS | B60: =CONCATENATE("C_", $C$1, "_ENH_W_TOT") -> C_PR24CA44_ENH_W_TOT | C60: =$C$4 -> Total enhancement allowance - Water - Net zero - Totex | D60: £m | E60: Price Review 2024 | I60: =SUMIFS(Allowance!D$17:D$33, Allowance!$C$17:$C$33, $A60) -> 0 | J60: =SUMIFS(Allowance!E$17:E$33, Allowance!$C$17:$C$33, $A60) -> 0 | K60: =SUMIFS(Allowance!F$17:F$33, Allowance!$C$17:$C$33, $A60) -> 0 | L60: =SUMIFS(Allowance!G$17:G$33, Allowance!$C$17:$C$33, $A60) -> 0 | M60: =SUMIFS(Allowance!H$17:H$33, Allowance!$C$17:$C$33, $A60) -> 0
A61: TMS | B61: =CONCATENATE("C_", $C$1, "_ENH_W_AP") -> C_PR24CA44_ENH_W_AP | C61: =$C$5 -> Total enhancement allowance - Water - Net zero - Accelerated programme | D61: £m | E61: Price Review 2024
A62: TMS | B62: =CONCATENATE("C_", $C$1, "_ENH_W_TE") -> C_PR24CA44_ENH_W_TE | C62: =$C$6 -> Total enhancement allowance - Water - Net zero - Transition allowance | D62: £m | E62: Price Review 2024
A63: TMS | B63: =CONCATENATE("PR24QA_", $C$1, "_OUT1") -> PR24QA_PR24CA44_OUT1 | C63: =CONCATENATE("Date & Time for Model - ", $C$1) -> Date & Time for Model - PR24CA44 | D63: Text | E63: Price Review 2024 | F63: =CONCATENATE("[…]", TEXT(NOW(),"dd/mm/yyy hh:mm:ss")) -> […]16/12/2024 16:45:37 | G63: […]16/12/2024 16:45:37 | H63: […]16/12/2024 16:45:37 | I63: […]16/12/2024 16:45:37 | J63: […]16/12/2024 16:45:37 | K63: […]16/12/2024 16:45:37 | L63: […]16/12/2024 16:45:37 | M63: […]16/12/2024 16:45:37
A64: TMS | B64: =CONCATENATE("PR24QA_", $C$1, "_OUT2") -> PR24QA_PR24CA44_OUT2 | C64: =CONCATENATE("Name of Model - ", $C$1) -> Name of Model - PR24CA44 | D64: Text | E64: Price Review 2024 | F64: =MID(CELL("filename"),SEARCH("[",CELL("filename"))+1,SEARCH("]",CELL("filename"))-SEARCH("[",CELL("filename"))-1) -> 
A65: TMS | B65: =CONCATENATE("PR24QA_", $C$1, "_OUT3") -> PR24QA_PR24CA44_OUT3 | C65: =CONCATENATE("F_Inputs time stamp - ", $C$1) -> F_Inputs time stamp - PR24CA44 | D65: Text | E65: Price Review 2024 | F65: N/A | G65: N/A | H65: N/A | I65: N/A | J65: N/A | K65: N/A | L65: N/A | M65: N/A
A66: TMS | B66: =CONCATENATE("PR24QA_", $C$1, "_OUT4") -> PR24QA_PR24CA44_OUT4 | C66: =CONCATENATE("Model override switch for - ", $C$1) -> Model override switch for - PR24CA44 | D66: nr | E66: Price Review 2024 | F66: 0 | G66: 0 | H66: 0 | I66: 0 | J66: 0 | K66: 0 | L66: 0 | M66: 0
A67: TMS | B67: =CONCATENATE("C_", $C$1, "_ENH_W_ASSESSED") -> C_PR24CA44_ENH_W_ASSESSED | C67: =CONCATENATE("Total amount assessed - ", MID($C$4,31,200)) -> Total amount assessed - Water - Net zero - Totex | D67: £m | E67: Price Review 2024 | F67: =SUMIFS(Allowance!$R$43:$R$53, Allowance!$S$43:$S$53, A67) -> 16.378
A68: WSH | B68: =CONCATENATE("C_", $C$1, "_ENH_W_TOT") -> C_PR24CA44_ENH_W_TOT | C68: =$C$4 -> Total enhancement allowance - Water - Net zero - Totex | D68: £m | E68: Price Review 2024 | I68: =SUMIFS(Allowance!D$17:D$33, Allowance!$C$17:$C$33, $A68) -> 2.7374 | J68: =SUMIFS(Allowance!E$17:E$33, Allowance!$C$17:$C$33, $A68) -> 2.7374 | K68: =SUMIFS(Allowance!F$17:F$33, Allowance!$C$17:$C$33, $A68) -> 2.7374 | L68: =SUMIFS(Allowance!G$17:G$33, Allowance!$C$17:$C$33, $A68) -> 2.7374 | M68: =SUMIFS(Allowance!H$17:H$33, Allowance!$C$17:$C$33, $A68) -> 2.7374
A69: WSH | B69: =CONCATENATE("C_", $C$1, "_ENH_W_AP") -> C_PR24CA44_ENH_W_AP | C69: =$C$5 -> Total enhancement allowance - Water - Net zero - Accelerated programme | D69: £m | E69: Price Review 2024
A70: WSH | B70: =CONCATENATE("C_", $C$1, "_ENH_W_TE") -> C_PR24CA44_ENH_W_TE | C70: =$C$6 -> Total enhancement allowance - Water - Net zero - Transition allowance | D70: £m | E70: Price Review 2024
A71: WSH | B71: =CONCATENATE("PR24QA_", $C$1, "_OUT1") -> PR24QA_PR24CA44_OUT1 | C71: =CONCATENATE("Date & Time for Model - ", $C$1) -> Date & Time for Model - PR24CA44 | D71: Text | E71: Price Review 2024 | F71: =CONCATENATE("[…]", TEXT(NOW(),"dd/mm/yyy hh:mm:ss")) -> […]16/12/2024 16:45:37 | G71: […]16/12/2024 16:45:37 | H71: […]16/12/2024 16:45:37 | I71: […]16/12/2024 16:45:37 | J71: […]16/12/2024 16:45:37 | K71: […]16/12/2024 16:45:37 | L71: […]16/12/2024 16:45:37 | M71: […]16/12/2024 16:45:37
A72: WSH | B72: =CONCATENATE("PR24QA_", $C$1, "_OUT2") -> PR24QA_PR24CA44_OUT2 | C72: =CONCATENATE("Name of Model - ", $C$1) -> Name of Model - PR24CA44 | D72: Text | E72: Price Review 2024 | F72: =MID(CELL("filename"),SEARCH("[",CELL("filename"))+1,SEARCH("]",CELL("filename"))-SEARCH("[",CELL("filename"))-1) -> 
A73: WSH | B73: =CONCATENATE("PR24QA_", $C$1, "_OUT3") -> PR24QA_PR24CA44_OUT3 | C73: =CONCATENATE("F_Inputs time stamp - ", $C$1) -> F_Inputs time stamp - PR24CA44 | D73: Text | E73: Price Review 2024 | F73: N/A | G73: N/A | H73: N/A | I73: N/A | J73: N/A | K73: N/A | L73: N/A | M73: N/A
A74: WSH | B74: =CONCATENATE("PR24QA_", $C$1, "_OUT4") -> PR24QA_PR24CA44_OUT4 | C74: =CONCATENATE("Model override switch for - ", $C$1) -> Model override switch for - PR24CA44 | D74: nr | E74: Price Review 2024 | F74: 0 | G74: 0 | H74: 0 | I74: 0 | J74: 0 | K74: 0 | L74: 0 | M74: 0
A75: WSH | B75: =CONCATENATE("C_", $C$1, "_ENH_W_ASSESSED") -> C_PR24CA44_ENH_W_ASSESSED | C75: =CONCATENATE("Total amount assessed - ", MID($C$4,31,200)) -> Total amount assessed - Water - Net zero - Totex | D75: £m | E75: Price Review 2024 | F75: =SUMIFS(Allowance!$R$43:$R$53, Allowance!$S$43:$S$53, A75) -> 14.97650696
A76: WSX | B76: =CONCATENATE("C_", $C$1, "_ENH_W_TOT") -> C_PR24CA44_ENH_W_TOT | C76: =$C$4 -> Total enhancement allowance - Water - Net zero - Totex | D76: £m | E76: Price Review 2024 | I76: =SUMIFS(Allowance!D$17:D$33, Allowance!$C$17:$C$33, $A76) -> 0 | J76: =SUMIFS(Allowance!E$17:E$33, Allowance!$C$17:$C$33, $A76) -> 0 | K76: =SUMIFS(Allowance!F$17:F$33, Allowance!$C$17:$C$33, $A76) -> 0 | L76: =SUMIFS(Allowance!G$17:G$33, Allowance!$C$17:$C$33, $A76) -> 0 | M76: =SUMIFS(Allowance!H$17:H$33, Allowance!$C$17:$C$33, $A76) -> 0
A77: WSX | B77: =CONCATENATE("C_", $C$1, "_ENH_W_AP") -> C_PR24CA44_ENH_W_AP | C77: =$C$5 -> Total enhancement allowance - Water - Net zero - Accelerated programme | D77: £m | E77: Price Review 2024
A78: WSX | B78: =CONCATENATE("C_", $C$1, "_ENH_W_TE") -> C_PR24CA44_ENH_W_TE | C78: =$C$6 -> Total enhancement allowance - Water - Net zero - Transition allowance | D78: £m | E78: Price Review 2024
A79: WSX | B79: =CONCATENATE("PR24QA_", $C$1, "_OUT1") -> PR24QA_PR24CA44_OUT1 | C79: =CONCATENATE("Date & Time for Model - ", $C$1) -> Date & Time for Model - PR24CA44 | D79: Text | E79: Price Review 2024 | F79: =CONCATENATE("[…]", TEXT(NOW(),"dd/mm/yyy hh:mm:ss")) -> […]16/12/2024 16:45:37 | G79: […]16/12/2024 16:45:37 | H79: […]16/12/2024 16:45:37 | I79: […]16/12/2024 16:45:37 | J79: […]16/12/2024 16:45:37 | K79: […]16/12/2024 16:45:37 | L79: […]16/12/2024 16:45:37 | M79: […]16/12/2024 16:45:37
A80: WSX | B80: =CONCATENATE("PR24QA_", $C$1, "_OUT2") -> PR24QA_PR24CA44_OUT2 | C80: =CONCATENATE("Name of Model - ", $C$1) -> Name of Model - PR24CA44 | D80: Text | E80: Price Review 2024 | F80: =MID(CELL("filename"),SEARCH("[",CELL("filename"))+1,SEARCH("]",CELL("filename"))-SEARCH("[",CELL("filename"))-1) -> 
A81: WSX | B81: =CONCATENATE("PR24QA_", $C$1, "_OUT3") -> PR24QA_PR24CA44_OUT3 | C81: =CONCATENATE("F_Inputs time stamp - ", $C$1) -> F_Inputs time stamp - PR24CA44 | D81: Text | E81: Price Review 2024 | F81: N/A | G81: N/A | H81: N/A | I81: N/A | J81: N/A | K81: N/A | L81: N/A | M81: N/A
A82: WSX | B82: =CONCATENATE("PR24QA_", $C$1, "_OUT4") -> PR24QA_PR24CA44_OUT4 | C82: =CONCATENATE("Model override switch for - ", $C$1) -> Model override switch for - PR24CA44 | D82: nr | E82: Price Review 2024 | F82: 0 | G82: 0 | H82: 0 | I82: 0 | J82: 0 | K82: 0 | L82: 0 | M82: 0
A83: WSX | B83: =CONCATENATE("C_", $C$1, "_ENH_W_ASSESSED") -> C_PR24CA44_ENH_W_ASSESSED | C83: =CONCATENATE("Total amount assessed - ", MID($C$4,31,200)) -> Total amount assessed - Water - Net zero - Totex | D83: £m | E83: Price Review 2024 | F83: =SUMIFS(Allowance!$R$43:$R$53, Allowance!$S$43:$S$53, A83) -> 3.055933809
A84: YKY | B84: =CONCATENATE("C_", $C$1, "_ENH_W_TOT") -> C_PR24CA44_ENH_W_TOT | C84: =$C$4 -> Total enhancement allowance - Water - Net zero - Totex | D84: £m | E84: Price Review 2024 | I84: =SUMIFS(Allowance!D$17:D$33, Allowance!$C$17:$C$33, $A84) -> 0 | J84: =SUMIFS(Allowance!E$17:E$33, Allowance!$C$17:$C$33, $A84) -> 0 | K84: =SUMIFS(Allowance!F$17:F$33, Allowance!$C$17:$C$33, $A84) -> 0 | L84: =SUMIFS(Allowance!G$17:G$33, Allowance!$C$17:$C$33, $A84) -> 0 | M84: =SUMIFS(Allowance!H$17:H$33, Allowance!$C$17:$C$33, $A84) -> 0
A85: YKY | B85: =CONCATENATE("C_", $C$1, "_ENH_W_AP") -> C_PR24CA44_ENH_W_AP | C85: =$C$5 -> Total enhancement allowance - Water - Net zero - Accelerated programme | D85: £m | E85: Price Review 2024
A86: YKY | B86: =CONCATENATE("C_", $C$1, "_ENH_W_TE") -> C_PR24CA44_ENH_W_TE | C86: =$C$6 -> Total enhancement allowance - Water - Net zero - Transition allowance | D86: £m | E86: Price Review 2024
A87: YKY | B87: =CONCATENATE("PR24QA_", $C$1, "_OUT1") -> PR24QA_PR24CA44_OUT1 | C87: =CONCATENATE("Date & Time for Model - ", $C$1) -> Date & Time for Model - PR24CA44 | D87: Text | E87: Price Review 2024 | F87: =CONCATENATE("[…]", TEXT(NOW(),"dd/mm/yyy hh:mm:ss")) -> […]16/12/2024 16:45:37 | G87: […]16/12/2024 16:45:37 | H87: […]16/12/2024 16:45:37 | I87: […]16/12/2024 16:45:37 | J87: […]16/12/2024 16:45:37 | K87: […]16/12/2024 16:45:37 | L87: […]16/12/2024 16:45:37 | M87: […]16/12/2024 16:45:37
A88: YKY | B88: =CONCATENATE("PR24QA_", $C$1, "_OUT2") -> PR24QA_PR24CA44_OUT2 | C88: =CONCATENATE("Name of Model - ", $C$1) -> Name of Model - PR24CA44 | D88: Text | E88: Price Review 2024 | F88: =MID(CELL("filename"),SEARCH("[",CELL("filename"))+1,SEARCH("]",CELL("filename"))-SEARCH("[",CELL("filename"))-1) -> 
A89: YKY | B89: =CONCATENATE("PR24QA_", $C$1, "_OUT3") -> PR24QA_PR24CA44_OUT3 | C89: =CONCATENATE("F_Inputs time stamp - ", $C$1) -> F_Inputs time stamp - PR24CA44 | D89: Text | E89: Price Review 2024 | F89: N/A | G89: N/A | H89: N/A | I89: N/A | J89: N/A | K89: N/A | L89: N/A | M89: N/A
A90: YKY | B90: =CONCATENATE("PR24QA_", $C$1, "_OUT4") -> PR24QA_PR24CA44_OUT4 | C90: =CONCATENATE("Model override switch for - ", $C$1) -> Model override switch for - PR24CA44 | D90: nr | E90: Price Review 2024 | F90: 0 | G90: 0 | H90: 0 | I90: 0 | J90: 0 | K90: 0 | L90: 0 | M90: 0
A91: YKY | B91: =CONCATENATE("C_", $C$1, "_ENH_W_ASSESSED") -> C_PR24CA44_ENH_W_ASSESSED | C91: =CONCATENATE("Total amount assessed - ", MID($C$4,31,200)) -> Total amount assessed - Water - Net zero - Totex | D91: £m | E91: Price Review 2024 | F91: =SUMIFS(Allowance!$R$43:$R$53, Allowance!$S$43:$S$53, A91) -> 0
A92: AFW | B92: =CONCATENATE("C_", $C$1, "_ENH_W_TOT") -> C_PR24CA44_ENH_W_TOT | C92: =$C$4 -> Total enhancement allowance - Water - Net zero - Totex | D92: £m | E92: Price Review 2024 | I92: =SUMIFS(Allowance!D$17:D$33, Allowance!$C$17:$C$33, $A92) -> 0 | J92: =SUMIFS(Allowance!E$17:E$33, Allowance!$C$17:$C$33, $A92) -> 0 | K92: =SUMIFS(Allowance!F$17:F$33, Allowance!$C$17:$C$33, $A92) -> 0 | L92: =SUMIFS(Allowance!G$17:G$33, Allowance!$C$17:$C$33, $A92) -> 0 | M92: =SUMIFS(Allowance!H$17:H$33, Allowance!$C$17:$C$33, $A92) -> 0
A93: AFW | B93: =CONCATENATE("C_", $C$1, "_ENH_W_AP") -> C_PR24CA44_ENH_W_AP | C93: =$C$5 -> Total enhancement allowance - Water - Net zero - Accelerated programme | D93: £m | E93: Price Review 2024
A94: AFW | B94: =CONCATENATE("C_", $C$1, "_ENH_W_TE") -> C_PR24CA44_ENH_W_TE | C94: =$C$6 -> Total enhancement allowance - Water - Net zero - Transition allowance | D94: £m | E94: Price Review 2024
A95: AFW | B95: =CONCATENATE("PR24QA_", $C$1, "_OUT1") -> PR24QA_PR24CA44_OUT1 | C95: =CONCATENATE("Date & Time for Model - ", $C$1) -> Date & Time for Model - PR24CA44 | D95: Text | E95: Price Review 2024 | F95: =CONCATENATE("[…]", TEXT(NOW(),"dd/mm/yyy hh:mm:ss")) -> […]16/12/2024 16:45:37 | G95: […]16/12/2024 16:45:37 | H95: […]16/12/2024 16:45:37 | I95: […]16/12/2024 16:45:37 | J95: […]16/12/2024 16:45:37 | K95: […]16/12/2024 16:45:37 | L95: […]16/12/2024 16:45:37 | M95: […]16/12/2024 16:45:37
A96: AFW | B96: =CONCATENATE("PR24QA_", $C$1, "_OUT2") -> PR24QA_PR24CA44_OUT2 | C96: =CONCATENATE("Name of Model - ", $C$1) -> Name of Model - PR24CA44 | D96: Text | E96: Price Review 2024 | F96: =MID(CELL("filename"),SEARCH("[",CELL("filename"))+1,SEARCH("]",CELL("filename"))-SEARCH("[",CELL("filename"))-1) -> 
A97: AFW | B97: =CONCATENATE("PR24QA_", $C$1, "_OUT3") -> PR24QA_PR24CA44_OUT3 | C97: =CONCATENATE("F_Inputs time stamp - ", $C$1) -> F_Inputs time stamp - PR24CA44 | D97: Text | E97: Price Review 2024 | F97: N/A | G97: N/A | H97: N/A | I97: N/A | J97: N/A | K97: N/A | L97: N/A | M97: N/A
A98: AFW | B98: =CONCATENATE("PR24QA_", $C$1, "_OUT4") -> PR24QA_PR24CA44_OUT4 | C98: =CONCATENATE("Model override switch for - ", $C$1) -> Model override switch for - PR24CA44 | D98: nr | E98: Price Review 2024 | F98: 0 | G98: 0 | H98: 0 | I98: 0 | J98: 0 | K98: 0 | L98: 0 | M98: 0
A99: AFW | B99: =CONCATENATE("C_", $C$1, "_ENH_W_ASSESSED") -> C_PR24CA44_ENH_W_ASSESSED | C99: =CONCATENATE("Total amount assessed - ", MID($C$4,31,200)) -> Total amount assessed - Water - Net zero - Totex | D99: £m | E99: Price Review 2024 | F99: =SUMIFS(Allowance!$R$43:$R$53, Allowance!$S$43:$S$53, A99) -> 0
A100: BRL | B100: =CONCATENATE("C_", $C$1, "_ENH_W_TOT") -> C_PR24CA44_ENH_W_TOT | C100: =$C$4 -> Total enhancement allowance - Water - Net zero - Totex | D100: £m | E100: Price Review 2024 | I100: =SUMIFS(Allowance!D$17:D$33, Allowance!$C$17:$C$33, $A100) -> 0 | J100: =SUMIFS(Allowance!E$17:E$33, Allowance!$C$17:$C$33, $A100) -> 0 | K100: =SUMIFS(Allowance!F$17:F$33, Allowance!$C$17:$C$33, $A100) -> 0 | L100: =SUMIFS(Allowance!G$17:G$33, Allowance!$C$17:$C$33, $A100) -> 0 | M100: =SUMIFS(Allowance!H$17:H$33, Allowance!$C$17:$C$33, $A100) -> 0
A101: BRL | B101: =CONCATENATE("C_", $C$1, "_ENH_W_AP") -> C_PR24CA44_ENH_W_AP | C101: =$C$5 -> Total enhancement allowance - Water - Net zero - Accelerated programme | D101: £m | E101: Price Review 2024
A102: BRL | B102: =CONCATENATE("C_", $C$1, "_ENH_W_TE") -> C_PR24CA44_ENH_W_TE | C102: =$C$6 -> Total enhancement allowance - Water - Net zero - Transition allowance | D102: £m | E102: Price Review 2024
A103: BRL | B103: =CONCATENATE("PR24QA_", $C$1, "_OUT1") -> PR24QA_PR24CA44_OUT1 | C103: =CONCATENATE("Date & Time for Model - ", $C$1) -> Date & Time for Model - PR24CA44 | D103: Text | E103: Price Review 2024 | F103: =CONCATENATE("[…]", TEXT(NOW(),"dd/mm/yyy hh:mm:ss")) -> […]16/12/2024 16:45:37 | G103: […]16/12/2024 16:45:37 | H103: […]16/12/2024 16:45:37 | I103: =CONCATENATE("[…]", TEXT(NOW(),"dd/mm/yyy hh:mm:ss")) -> […]16/12/2024 16:45:37 | J103: […]16/12/2024 16:45:37 | K103: […]16/12/2024 16:45:37 | L103: […]16/12/2024 16:45:37 | M103: […]16/12/2024 16:45:37
A104: BRL | B104: =CONCATENATE("PR24QA_", $C$1, "_OUT2") -> PR24QA_PR24CA44_OUT2 | C104: =CONCATENATE("Name of Model - ", $C$1) -> Name of Model - PR24CA44 | D104: Text | E104: Price Review 2024 | F104: =MID(CELL("filename"),SEARCH("[",CELL("filename"))+1,SEARCH("]",CELL("filename"))-SEARCH("[",CELL("filename"))-1) -> 
A105: BRL | B105: =CONCATENATE("PR24QA_", $C$1, "_OUT3") -> PR24QA_PR24CA44_OUT3 | C105: =CONCATENATE("F_Inputs time stamp - ", $C$1) -> F_Inputs time stamp - PR24CA44 | D105: Text | E105: Price Review 2024 | F105: N/A | G105: N/A | H105: N/A | I105: N/A | J105: N/A | K105: N/A | L105: N/A | M105: N/A
A106: BRL | B106: =CONCATENATE("PR24QA_", $C$1, "_OUT4") -> PR24QA_PR24CA44_OUT4 | C106: =CONCATENATE("Model override switch for - ", $C$1) -> Model override switch for - PR24CA44 | D106: nr | E106: Price Review 2024 | F106: 0 | G106: 0 | H106: 0 | I106: 0 | J106: 0 | K106: 0 | L106: 0 | M106: 0
A107: BRL | B107: =CONCATENATE("C_", $C$1, "_ENH_W_ASSESSED") -> C_PR24CA44_ENH_W_ASSESSED | C107: =CONCATENATE("Total amount assessed - ", MID($C$4,31,200)) -> Total amount assessed - Water - Net zero - Totex | D107: £m | E107: Price Review 2024 | F107: =SUMIFS(Allowance!$R$43:$R$53, Allowance!$S$43:$S$53, A107) -> 0
A108: PRT | B108: =CONCATENATE("C_", $C$1, "_ENH_W_TOT") -> C_PR24CA44_ENH_W_TOT | C108: =$C$4 -> Total enhancement allowance - Water - Net zero - Totex | D108: £m | E108: Price Review 2024 | I108: =SUMIFS(Allowance!D$17:D$33, Allowance!$S$17:$S$33, $A108) -> 0 | J108: =SUMIFS(Allowance!E$17:E$33, Allowance!$S$17:$S$33, $A108) -> 0 | K108: =SUMIFS(Allowance!F$17:F$33, Allowance!$S$17:$S$33, $A108) -> 0 | L108: =SUMIFS(Allowance!G$17:G$33, Allowance!$S$17:$S$33, $A108) -> 0 | M108: =SUMIFS(Allowance!H$17:H$33, Allowance!$S$17:$S$33, $A108) -> 0
A109: PRT | B109: =CONCATENATE("C_", $C$1, "_ENH_W_AP") -> C_PR24CA44_ENH_W_AP | C109: =$C$5 -> Total enhancement allowance - Water - Net zero - Accelerated programme | D109: £m | E109: Price Review 2024
A110: PRT | B110: =CONCATENATE("C_", $C$1, "_ENH_W_TE") -> C_PR24CA44_ENH_W_TE | C110: =$C$6 -> Total enhancement allowance - Water - Net zero - Transition allowance | D110: £m | E110: Price Review 2024
A111: PRT | B111: =CONCATENATE("PR24QA_", $C$1, "_OUT1") -> PR24QA_PR24CA44_OUT1 | C111: =CONCATENATE("Date & Time for Model - ", $C$1) -> Date & Time for Model - PR24CA44 | D111: Text | E111: Price Review 2024 | F111: =CONCATENATE("[…]", TEXT(NOW(),"dd/mm/yyy hh:mm:ss")) -> […]16/12/2024 16:45:37 | G111: […]16/12/2024 16:45:37 | H111: […]16/12/2024 16:45:37 | I111: […]16/12/2024 16:45:37 | J111: […]16/12/2024 16:45:37 | K111: […]16/12/2024 16:45:37 | L111: […]16/12/2024 16:45:37 | M111: […]16/12/2024 16:45:37
A112: PRT | B112: =CONCATENATE("PR24QA_", $C$1, "_OUT2") -> PR24QA_PR24CA44_OUT2 | C112: =CONCATENATE("Name of Model - ", $C$1) -> Name of Model - PR24CA44 | D112: Text | E112: Price Review 2024 | F112: =MID(CELL("filename"),SEARCH("[",CELL("filename"))+1,SEARCH("]",CELL("filename"))-SEARCH("[",CELL("filename"))-1) -> 
A113: PRT | B113: =CONCATENATE("PR24QA_", $C$1, "_OUT3") -> PR24QA_PR24CA44_OUT3 | C113: =CONCATENATE("F_Inputs time stamp - ", $C$1) -> F_Inputs time stamp - PR24CA44 | D113: Text | E113: Price Review 2024 | F113: N/A | G113: N/A | H113: N/A | I113: N/A | J113: N/A | K113: N/A | L113: N/A | M113: N/A
A114: PRT | B114: =CONCATENATE("PR24QA_", $C$1, "_OUT4") -> PR24QA_PR24CA44_OUT4 | C114: =CONCATENATE("Model override switch for - ", $C$1) -> Model override switch for - PR24CA44 | D114: nr | E114: Price Review 2024 | F114: 0 | G114: 0 | H114: 0 | I114: 0 | J114: 0 | K114: 0 | L114: 0 | M114: 0
A115: PRT | B115: =CONCATENATE("C_", $C$1, "_ENH_W_ASSESSED") -> C_PR24CA44_ENH_W_ASSESSED | C115: =CONCATENATE("Total amount assessed - ", MID($C$4,31,200)) -> Total amount assessed - Water - Net zero - Totex | D115: £m | E115: Price Review 2024 | F115: =SUMIFS(Allowance!$R$43:$R$53, Allowance!$S$43:$S$53, A115) -> 0
A116: SEW | B116: =CONCATENATE("C_", $C$1, "_ENH_W_TOT") -> C_PR24CA44_ENH_W_TOT | C116: =$C$4 -> Total enhancement allowance - Water - Net zero - Totex | D116: £m | E116: Price Review 2024 | I116: =SUMIFS(Allowance!D$17:D$33, Allowance!$C$17:$C$33, $A116) -> 0 | J116: =SUMIFS(Allowance!E$17:E$33, Allowance!$C$17:$C$33, $A116) -> 0 | K116: =SUMIFS(Allowance!F$17:F$33, Allowance!$C$17:$C$33, $A116) -> 0 | L116: =SUMIFS(Allowance!G$17:G$33, Allowance!$C$17:$C$33, $A116) -> 0 | M116: =SUMIFS(Allowance!H$17:H$33, Allowance!$C$17:$C$33, $A116) -> 0
A117: SEW | B117: =CONCATENATE("C_", $C$1, "_ENH_W_AP") -> C_PR24CA44_ENH_W_AP | C117: =$C$5 -> Total enhancement allowance - Water - Net zero - Accelerated programme | D117: £m | E117: Price Review 2024
A118: SEW | B118: =CONCATENATE("C_", $C$1, "_ENH_W_TE") -> C_PR24CA44_ENH_W_TE | C118: =$C$6 -> Total enhancement allowance - Water - Net zero - Transition allowance | D118: £m | E118: Price Review 2024
A119: SEW | B119: =CONCATENATE("PR24QA_", $C$1, "_OUT1") -> PR24QA_PR24CA44_OUT1 | C119: =CONCATENATE("Date & Time for Model - ", $C$1) -> Date & Time for Model - PR24CA44 | D119: Text | E119: Price Review 2024 | F119: =CONCATENATE("[…]", TEXT(NOW(),"dd/mm/yyy hh:mm:ss")) -> […]16/12/2024 16:45:37 | G119: […]16/12/2024 16:45:37 | H119: […]16/12/2024 16:45:37 | I119: […]16/12/2024 16:45:37 | J119: […]16/12/2024 16:45:37 | K119: […]16/12/2024 16:45:37 | L119: […]16/12/2024 16:45:37 | M119: […]16/12/2024 16:45:37
A120: SEW | B120: =CONCATENATE("PR24QA_", $C$1, "_OUT2") -> PR24QA_PR24CA44_OUT2 | C120: =CONCATENATE("Name of Model - ", $C$1) -> Name of Model - PR24CA44 | D120: Text | E120: Price Review 2024 | F120: =MID(CELL("filename"),SEARCH("[",CELL("filename"))+1,SEARCH("]",CELL("filename"))-SEARCH("[",CELL("filename"))-1) -> 
A121: SEW | B121: =CONCATENATE("PR24QA_", $C$1, "_OUT3") -> PR24QA_PR24CA44_OUT3 | C121: =CONCATENATE("F_Inputs time stamp - ", $C$1) -> F_Inputs time stamp - PR24CA44 | D121: Text | E121: Price Review 2024 | F121: N/A | G121: N/A | H121: N/A | I121: N/A | J121: N/A | K121: N/A | L121: N/A | M121: N/A
A122: SEW | B122: =CONCATENATE("PR24QA_", $C$1, "_OUT4") -> PR24QA_PR24CA44_OUT4 | C122: =CONCATENATE("Model override switch for - ", $C$1) -> Model override switch for - PR24CA44 | D122: nr | E122: Price Review 2024 | F122: 0 | G122: 0 | H122: 0 | I122: 0 | J122: 0 | K122: 0 | L122: 0 | M122: 0
A123: SEW | B123: =CONCATENATE("C_", $C$1, "_ENH_W_ASSESSED") -> C_PR24CA44_ENH_W_ASSESSED | C123: =CONCATENATE("Total amount assessed - ", MID($C$4,31,200)) -> Total amount assessed - Water - Net zero - Totex | D123: £m | E123: Price Review 2024 | F123: =SUMIFS(Allowance!$R$43:$R$53, Allowance!$S$43:$S$53, A123) -> 12.59602622
A124: SSC | B124: =CONCATENATE("C_", $C$1, "_ENH_W_TOT") -> C_PR24CA44_ENH_W_TOT | C124: =$C$4 -> Total enhancement allowance - Water - Net zero - Totex | D124: £m | E124: Price Review 2024 | I124: =SUMIFS(Allowance!D$17:D$33, Allowance!$C$17:$C$33, $A124) -> 0 | J124: =SUMIFS(Allowance!E$17:E$33, Allowance!$C$17:$C$33, $A124) -> 0 | K124: =SUMIFS(Allowance!F$17:F$33, Allowance!$C$17:$C$33, $A124) -> 0 | L124: =SUMIFS(Allowance!G$17:G$33, Allowance!$C$17:$C$33, $A124) -> 0 | M124: =SUMIFS(Allowance!H$17:H$33, Allowance!$C$17:$C$33, $A124) -> 0
A125: SSC | B125: =CONCATENATE("C_", $C$1, "_ENH_W_AP") -> C_PR24CA44_ENH_W_AP | C125: =$C$5 -> Total enhancement allowance - Water - Net zero - Accelerated programme | D125: £m | E125: Price Review 2024
A126: SSC | B126: =CONCATENATE("C_", $C$1, "_ENH_W_TE") -> C_PR24CA44_ENH_W_TE | C126: =$C$6 -> Total enhancement allowance - Water - Net zero - Transition allowance | D126: £m | E126: Price Review 2024
A127: SSC | B127: =CONCATENATE("PR24QA_", $C$1, "_OUT1") -> PR24QA_PR24CA44_OUT1 | C127: =CONCATENATE("Date & Time for Model - ", $C$1) -> Date & Time for Model - PR24CA44 | D127: Text | E127: Price Review 2024 | F127: =CONCATENATE("[…]", TEXT(NOW(),"dd/mm/yyy hh:mm:ss")) -> […]16/12/2024 16:45:37 | G127: […]16/12/2024 16:45:37 | H127: […]16/12/2024 16:45:37 | I127: […]16/12/2024 16:45:37 | J127: […]16/12/2024 16:45:37 | K127: […]16/12/2024 16:45:37 | L127: […]16/12/2024 16:45:37 | M127: […]16/12/2024 16:45:37
A128: SSC | B128: =CONCATENATE("PR24QA_", $C$1, "_OUT2") -> PR24QA_PR24CA44_OUT2 | C128: =CONCATENATE("Name of Model - ", $C$1) -> Name of Model - PR24CA44 | D128: Text | E128: Price Review 2024 | F128: =MID(CELL("filename"),SEARCH("[",CELL("filename"))+1,SEARCH("]",CELL("filename"))-SEARCH("[",CELL("filename"))-1) -> 
A129: SSC | B129: =CONCATENATE("PR24QA_", $C$1, "_OUT3") -> PR24QA_PR24CA44_OUT3 | C129: =CONCATENATE("F_Inputs time stamp - ", $C$1) -> F_Inputs time stamp - PR24CA44 | D129: Text | E129: Price Review 2024 | F129: N/A | G129: N/A | H129: N/A | I129: N/A | J129: N/A | K129: N/A | L129: N/A | M129: N/A
A130: SSC | B130: =CONCATENATE("PR24QA_", $C$1, "_OUT4") -> PR24QA_PR24CA44_OUT4 | C130: =CONCATENATE("Model override switch for - ", $C$1) -> Model override switch for - PR24CA44 | D130: nr | E130: Price Review 2024 | F130: 0 | G130: 0 | H130: 0 | I130: 0 | J130: 0 | K130: 0 | L130: 0 | M130: 0
A131: SSC | B131: =CONCATENATE("C_", $C$1, "_ENH_W_ASSESSED") -> C_PR24CA44_ENH_W_ASSESSED | C131: =CONCATENATE("Total amount assessed - ", MID($C$4,31,200)) -> Total amount assessed - Water - Net zero - Totex | D131: £m | E131: Price Review 2024 | F131: =SUMIFS(Allowance!$R$43:$R$53, Allowance!$S$43:$S$53, A131) -> 7.23677048
A132: SES | B132: =CONCATENATE("C_", $C$1, "_ENH_W_TOT") -> C_PR24CA44_ENH_W_TOT | C132: =$C$4 -> Total enhancement allowance - Water - Net zero - Totex | D132: £m | E132: Price Review 2024 | I132: =SUMIFS(Allowance!D$17:D$33, Allowance!$C$17:$C$33, $A132) -> 0 | J132: =SUMIFS(Allowance!E$17:E$33, Allowance!$C$17:$C$33, $A132) -> 0 | K132: =SUMIFS(Allowance!F$17:F$33, Allowance!$C$17:$C$33, $A132) -> 0 | L132: =SUMIFS(Allowance!G$17:G$33, Allowance!$C$17:$C$33, $A132) -> 0 | M132: =SUMIFS(Allowance!H$17:H$33, Allowance!$C$17:$C$33, $A132) -> 0
A133: SES | B133: =CONCATENATE("C_", $C$1, "_ENH_W_AP") -> C_PR24CA44_ENH_W_AP | C133: =$C$5 -> Total enhancement allowance - Water - Net zero - Accelerated programme | D133: £m | E133: Price Review 2024
A134: SES | B134: =CONCATENATE("C_", $C$1, "_ENH_W_TE") -> C_PR24CA44_ENH_W_TE | C134: =$C$6 -> Total enhancement allowance - Water - Net zero - Transition allowance | D134: £m | E134: Price Review 2024
A135: SES | B135: =CONCATENATE("PR24QA_", $C$1, "_OUT1") -> PR24QA_PR24CA44_OUT1 | C135: =CONCATENATE("Date & Time for Model - ", $C$1) -> Date & Time for Model - PR24CA44 | D135: Text | E135: Price Review 2024 | F135: =CONCATENATE("[…]", TEXT(NOW(),"dd/mm/yyy hh:mm:ss")) -> […]16/12/2024 16:45:37 | G135: […]16/12/2024 16:45:37 | H135: […]16/12/2024 16:45:37 | I135: […]16/12/2024 16:45:37 | J135: […]16/12/2024 16:45:37 | K135: […]16/12/2024 16:45:37 | L135: […]16/12/2024 16:45:37 | M135: […]16/12/2024 16:45:37
A136: SES | B136: =CONCATENATE("PR24QA_", $C$1, "_OUT2") -> PR24QA_PR24CA44_OUT2 | C136: =CONCATENATE("Name of Model - ", $C$1) -> Name of Model - PR24CA44 | D136: Text | E136: Price Review 2024 | F136: =MID(CELL("filename"),SEARCH("[",CELL("filename"))+1,SEARCH("]",CELL("filename"))-SEARCH("[",CELL("filename"))-1) -> 
A137: SES | B137: =CONCATENATE("PR24QA_", $C$1, "_OUT3") -> PR24QA_PR24CA44_OUT3 | C137: =CONCATENATE("F_Inputs time stamp - ", $C$1) -> F_Inputs time stamp - PR24CA44 | D137: Text | E137: Price Review 2024 | F137: N/A | G137: N/A | H137: N/A | I137: N/A | J137: N/A | K137: N/A | L137: N/A | M137: N/A
A138: SES | B138: =CONCATENATE("PR24QA_", $C$1, "_OUT4") -> PR24QA_PR24CA44_OUT4 | C138: =CONCATENATE("Model override switch for - ", $C$1) -> Model override switch for - PR24CA44 | D138: nr | E138: Price Review 2024 | F138: 0 | G138: 0 | H138: 0 | I138: 0 | J138: 0 | K138: 0 | L138: 0 | M138: 0
A139: SES | B139: =CONCATENATE("C_", $C$1, "_ENH_W_ASSESSED") -> C_PR24CA44_ENH_W_ASSESSED | C139: =CONCATENATE("Total amount assessed - ", MID($C$4,31,200)) -> Total amount assessed - Water - Net zero - Totex | D139: £m | E139: Price Review 2024 | F139: =SUMIFS(Allowance!$R$43:$R$53, Allowance!$S$43:$S$53, A139) -> 0
